{"text_format":"3","workbook":"xlsx","n_sheets":12,"sheets":["THG1","THG2","THG3","THG4","THG5","THG6","THG7","THG8","THG9","THG10","THG11","THG12"],"not_rendered":{"defined_names":40},"read":"whole","date_system":"1900"}

{"sheet":"THG1","index":0,"n_rows":20,"n_cols":9,"rows_kept":20,"merged":[[16,2,17,2],[16,3,17,3],[17,4,19,8]]}
[null,"THG1","CN",{"$f":"UPPER(TEXT(D3,\"aaa\"))","v":"T2"},"T3","TƯ","NĂM","SÁU","BẢY"]
[null,{"$f":"YEAR(TODAY())","v":2018}]
[null,null,{"$f":"Ngày_và_tuần+DATE(Năm_trên_lịch,1,1)-WEEKDAY(DATE(Năm_trên_lịch,1,1),(Đầu_tuần=\"T2\")+1)+1","v":"2017-12-31"},"2018-01-01","2018-01-02","2018-01-03","2018-01-04","2018-01-05","2018-01-06"]
[null,null,{"$f":"IF(DAY(CalendarDay)=1,CONCATENATE(\"Tuần \",WEEKNUM(CalendarDay),\"/Ngày \",CalendarDay-DATE(YEAR(CalendarDay),1,0)),CONCATENATE(\"Ngày \",CalendarDay-DATE(YEAR(CalendarDay),1,0)))","v":"Ngày 365"},{"$f":"IF(DAY(CalendarDay)=1,CONCATENATE(\"Tuần \",WEEKNUM(CalendarDay),\"/Ngày \",CalendarDay-DATE(YEAR(CalendarDay),1,0)),CONCATENATE(\"Ngày \",CalendarDay-DATE(YEAR(CalendarDay),1,0)))","v":"Tuần 1/Ngày 1"},{"$f":"IF(DAY(CalendarDay)=1,CONCATENATE(\"Tuần \",WEEKNUM(CalendarDay),\"/Ngày \",CalendarDay-DATE(YEAR(CalendarDay),1,0)),CONCATENATE(\"Ngày \",CalendarDay-DATE(YEAR(CalendarDay),1,0)))","v":"Ngày 2"},{"$f":"IF(DAY(CalendarDay)=1,CONCATENATE(\"Tuần \",WEEKNUM(CalendarDay),\"/Ngày \",CalendarDay-DATE(YEAR(CalendarDay),1,0)),CONCATENATE(\"Ngày \",CalendarDay-DATE(YEAR(CalendarDay),1,0)))","v":"Ngày 3"},{"$f":"IF(DAY(CalendarDay)=1,CONCATENATE(\"Tuần \",WEEKNUM(CalendarDay),\"/Ngày \",CalendarDay-DATE(YEAR(CalendarDay),1,0)),CONCATENATE(\"Ngày \",CalendarDay-DATE(YEAR(CalendarDay),1,0)))","v":"Ngày 4"},{"$f":"IF(DAY(CalendarDay)=1,CONCATENATE(\"Tuần \",WEEKNUM(CalendarDay),\"/Ngày \",CalendarDay-DATE(YEAR(CalendarDay),1,0)),CONCATENATE(\"Ngày \",CalendarDay-DATE(YEAR(CalendarDay),1,0)))","v":"Ngày 5"},{"$f":"IF(DAY(CalendarDay)=1,CONCATENATE(\"Tuần \",WEEKNUM(CalendarDay),\"/Ngày \",CalendarDay-DATE(YEAR(CalendarDay),1,0)),CONCATENATE(\"Ngày \",CalendarDay-DATE(YEAR(CalendarDay),1,0)))","v":"Ngày 6"}]
[]
[null,null,{"$f":"Ngày_và_tuần+DATE(Năm_trên_lịch,1,1)-WEEKDAY(DATE(Năm_trên_lịch,1,1),(Đầu_tuần=\"T2\")+1)+8","v":"2018-01-07"},"2018-01-08","2018-01-09","2018-01-10","2018-01-11","2018-01-12","2018-01-13"]
[null,null,{"$f":"IF(WEEKDAY(CalendarDay)=Giá_trị_đầu_tuần,CONCATENATE(\"Tuần \",WEEKNUM(CalendarDay),\"/Ngày \",CalendarDay-DATE(YEAR(CalendarDay),1,0)),CONCATENATE(\"Ngày \",CalendarDay-DATE(YEAR(CalendarDay),1,0)))","v":"Tuần 2/Ngày 7"},{"$f":"IF(WEEKDAY(CalendarDay)=Giá_trị_đầu_tuần,CONCATENATE(\"Tuần \",WEEKNUM(CalendarDay),\"/Ngày \",CalendarDay-DATE(YEAR(CalendarDay),1,0)),CONCATENATE(\"Ngày \",CalendarDay-DATE(YEAR(CalendarDay),1,0)))","v":"Ngày 8"},{"$f":"IF(WEEKDAY(CalendarDay)=Giá_trị_đầu_tuần,CONCATENATE(\"Tuần \",WEEKNUM(CalendarDay),\"/Ngày \",CalendarDay-DATE(YEAR(CalendarDay),1,0)),CONCATENATE(\"Ngày \",CalendarDay-DATE(YEAR(CalendarDay),1,0)))","v":"Ngày 9"},{"$f":"IF(WEEKDAY(CalendarDay)=Giá_trị_đầu_tuần,CONCATENATE(\"Tuần \",WEEKNUM(CalendarDay),\"/Ngày \",CalendarDay-DATE(YEAR(CalendarDay),1,0)),CONCATENATE(\"Ngày \",CalendarDay-DATE(YEAR(CalendarDay),1,0)))","v":"Ngày 10"},{"$f":"IF(WEEKDAY(CalendarDay)=Giá_trị_đầu_tuần,CONCATENATE(\"Tuần \",WEEKNUM(CalendarDay),\"/Ngày \",CalendarDay-DATE(YEAR(CalendarDay),1,0)),CONCATENATE(\"Ngày \",CalendarDay-DATE(YEAR(CalendarDay),1,0)))","v":"Ngày 11"},{"$f":"IF(WEEKDAY(CalendarDay)=Giá_trị_đầu_tuần,CONCATENATE(\"Tuần \",WEEKNUM(CalendarDay),\"/Ngày \",CalendarDay-DATE(YEAR(CalendarDay),1,0)),CONCATENATE(\"Ngày \",CalendarDay-DATE(YEAR(CalendarDay),1,0)))","v":"Ngày 12"},{"$f":"IF(WEEKDAY(CalendarDay)=Giá_trị_đầu_tuần,CONCATENATE(\"Tuần \",WEEKNUM(CalendarDay),\"/Ngày \",CalendarDay-DATE(YEAR(CalendarDay),1,0)),CONCATENATE(\"Ngày \",CalendarDay-DATE(YEAR(CalendarDay),1,0)))","v":"Ngày 13"}]
[]
[null,null,{"$f":"Ngày_và_tuần+DATE(Năm_trên_lịch,1,1)-WEEKDAY(DATE(Năm_trên_lịch,1,1),(Đầu_tuần=\"T2\")+1)+15","v":"2018-01-14"},"2018-01-15","2018-01-16","2018-01-17","2018-01-18","2018-01-19","2018-01-20"]
[null,null,{"$f":"IF(WEEKDAY(CalendarDay)=Giá_trị_đầu_tuần,CONCATENATE(\"Tuần \",WEEKNUM(CalendarDay),\"/Ngày \",CalendarDay-DATE(YEAR(CalendarDay),1,0)),CONCATENATE(\"Ngày \",CalendarDay-DATE(YEAR(CalendarDay),1,0)))","v":"Tuần 3/Ngày 14"},{"$f":"IF(WEEKDAY(CalendarDay)=Giá_trị_đầu_tuần,CONCATENATE(\"Tuần \",WEEKNUM(CalendarDay),\"/Ngày \",CalendarDay-DATE(YEAR(CalendarDay),1,0)),CONCATENATE(\"Ngày \",CalendarDay-DATE(YEAR(CalendarDay),1,0)))","v":"Ngày 15"},{"$f":"IF(WEEKDAY(CalendarDay)=Giá_trị_đầu_tuần,CONCATENATE(\"Tuần \",WEEKNUM(CalendarDay),\"/Ngày \",CalendarDay-DATE(YEAR(CalendarDay),1,0)),CONCATENATE(\"Ngày \",CalendarDay-DATE(YEAR(CalendarDay),1,0)))","v":"Ngày 16"},{"$f":"IF(WEEKDAY(CalendarDay)=Giá_trị_đầu_tuần,CONCATENATE(\"Tuần \",WEEKNUM(CalendarDay),\"/Ngày \",CalendarDay-DATE(YEAR(CalendarDay),1,0)),CONCATENATE(\"Ngày \",CalendarDay-DATE(YEAR(CalendarDay),1,0)))","v":"Ngày 17"},{"$f":"IF(WEEKDAY(CalendarDay)=Giá_trị_đầu_tuần,CONCATENATE(\"Tuần \",WEEKNUM(CalendarDay),\"/Ngày \",CalendarDay-DATE(YEAR(CalendarDay),1,0)),CONCATENATE(\"Ngày \",CalendarDay-DATE(YEAR(CalendarDay),1,0)))","v":"Ngày 18"},{"$f":"IF(WEEKDAY(CalendarDay)=Giá_trị_đầu_tuần,CONCATENATE(\"Tuần \",WEEKNUM(CalendarDay),\"/Ngày \",CalendarDay-DATE(YEAR(CalendarDay),1,0)),CONCATENATE(\"Ngày \",CalendarDay-DATE(YEAR(CalendarDay),1,0)))","v":"Ngày 19"},{"$f":"IF(WEEKDAY(CalendarDay)=Giá_trị_đầu_tuần,CONCATENATE(\"Tuần \",WEEKNUM(CalendarDay),\"/Ngày \",CalendarDay-DATE(YEAR(CalendarDay),1,0)),CONCATENATE(\"Ngày \",CalendarDay-DATE(YEAR(CalendarDay),1,0)))","v":"Ngày 20"}]
[]
[null,null,{"$f":"Ngày_và_tuần+DATE(Năm_trên_lịch,1,1)-WEEKDAY(DATE(Năm_trên_lịch,1,1),(Đầu_tuần=\"T2\")+1)+22","v":"2018-01-21"},"2018-01-22","2018-01-23","2018-01-24","2018-01-25","2018-01-26","2018-01-27"]
[null,null,{"$f":"IF(WEEKDAY(CalendarDay)=Giá_trị_đầu_tuần,CONCATENATE(\"Tuần \",WEEKNUM(CalendarDay),\"/Ngày \",CalendarDay-DATE(YEAR(CalendarDay),1,0)),CONCATENATE(\"Ngày \",CalendarDay-DATE(YEAR(CalendarDay),1,0)))","v":"Tuần 4/Ngày 21"},{"$f":"IF(WEEKDAY(CalendarDay)=Giá_trị_đầu_tuần,CONCATENATE(\"Tuần \",WEEKNUM(CalendarDay),\"/Ngày \",CalendarDay-DATE(YEAR(CalendarDay),1,0)),CONCATENATE(\"Ngày \",CalendarDay-DATE(YEAR(CalendarDay),1,0)))","v":"Ngày 22"},{"$f":"IF(WEEKDAY(CalendarDay)=Giá_trị_đầu_tuần,CONCATENATE(\"Tuần \",WEEKNUM(CalendarDay),\"/Ngày \",CalendarDay-DATE(YEAR(CalendarDay),1,0)),CONCATENATE(\"Ngày \",CalendarDay-DATE(YEAR(CalendarDay),1,0)))","v":"Ngày 23"},{"$f":"IF(WEEKDAY(CalendarDay)=Giá_trị_đầu_tuần,CONCATENATE(\"Tuần \",WEEKNUM(CalendarDay),\"/Ngày \",CalendarDay-DATE(YEAR(CalendarDay),1,0)),CONCATENATE(\"Ngày \",CalendarDay-DATE(YEAR(CalendarDay),1,0)))","v":"Ngày 24"},{"$f":"IF(WEEKDAY(CalendarDay)=Giá_trị_đầu_tuần,CONCATENATE(\"Tuần \",WEEKNUM(CalendarDay),\"/Ngày \",CalendarDay-DATE(YEAR(CalendarDay),1,0)),CONCATENATE(\"Ngày \",CalendarDay-DATE(YEAR(CalendarDay),1,0)))","v":"Ngày 25"},{"$f":"IF(WEEKDAY(CalendarDay)=Giá_trị_đầu_tuần,CONCATENATE(\"Tuần \",WEEKNUM(CalendarDay),\"/Ngày \",CalendarDay-DATE(YEAR(CalendarDay),1,0)),CONCATENATE(\"Ngày \",CalendarDay-DATE(YEAR(CalendarDay),1,0)))","v":"Ngày 26"},{"$f":"IF(WEEKDAY(CalendarDay)=Giá_trị_đầu_tuần,CONCATENATE(\"Tuần \",WEEKNUM(CalendarDay),\"/Ngày \",CalendarDay-DATE(YEAR(CalendarDay),1,0)),CONCATENATE(\"Ngày \",CalendarDay-DATE(YEAR(CalendarDay),1,0)))","v":"Ngày 27"}]
[]
[null,null,{"$f":"Ngày_và_tuần+DATE(Năm_trên_lịch,1,1)-WEEKDAY(DATE(Năm_trên_lịch,1,1),(Đầu_tuần=\"T2\")+1)+29","v":"2018-01-28"},"2018-01-29","2018-01-30","2018-01-31","2018-02-01","2018-02-02","2018-02-03"]
[null,null,{"$f":"IF(WEEKDAY(CalendarDay)=Giá_trị_đầu_tuần,CONCATENATE(\"Tuần \",WEEKNUM(CalendarDay),\"/Ngày \",CalendarDay-DATE(YEAR(CalendarDay),1,0)),CONCATENATE(\"Ngày \",CalendarDay-DATE(YEAR(CalendarDay),1,0)))","v":"Tuần 5/Ngày 28"},{"$f":"IF(WEEKDAY(CalendarDay)=Giá_trị_đầu_tuần,CONCATENATE(\"Tuần \",WEEKNUM(CalendarDay),\"/Ngày \",CalendarDay-DATE(YEAR(CalendarDay),1,0)),CONCATENATE(\"Ngày \",CalendarDay-DATE(YEAR(CalendarDay),1,0)))","v":"Ngày 29"},{"$f":"IF(WEEKDAY(CalendarDay)=Giá_trị_đầu_tuần,CONCATENATE(\"Tuần \",WEEKNUM(CalendarDay),\"/Ngày \",CalendarDay-DATE(YEAR(CalendarDay),1,0)),CONCATENATE(\"Ngày \",CalendarDay-DATE(YEAR(CalendarDay),1,0)))","v":"Ngày 30"},{"$f":"IF(WEEKDAY(CalendarDay)=Giá_trị_đầu_tuần,CONCATENATE(\"Tuần \",WEEKNUM(CalendarDay),\"/Ngày \",CalendarDay-DATE(YEAR(CalendarDay),1,0)),CONCATENATE(\"Ngày \",CalendarDay-DATE(YEAR(CalendarDay),1,0)))","v":"Ngày 31"},{"$f":"IF(WEEKDAY(CalendarDay)=Giá_trị_đầu_tuần,CONCATENATE(\"Tuần \",WEEKNUM(CalendarDay),\"/Ngày \",CalendarDay-DATE(YEAR(CalendarDay),1,0)),CONCATENATE(\"Ngày \",CalendarDay-DATE(YEAR(CalendarDay),1,0)))","v":"Ngày 32"},{"$f":"IF(WEEKDAY(CalendarDay)=Giá_trị_đầu_tuần,CONCATENATE(\"Tuần \",WEEKNUM(CalendarDay),\"/Ngày \",CalendarDay-DATE(YEAR(CalendarDay),1,0)),CONCATENATE(\"Ngày \",CalendarDay-DATE(YEAR(CalendarDay),1,0)))","v":"Ngày 33"},{"$f":"IF(WEEKDAY(CalendarDay)=Giá_trị_đầu_tuần,CONCATENATE(\"Tuần \",WEEKNUM(CalendarDay),\"/Ngày \",CalendarDay-DATE(YEAR(CalendarDay),1,0)),CONCATENATE(\"Ngày \",CalendarDay-DATE(YEAR(CalendarDay),1,0)))","v":"Ngày 34"}]
[{"$nulls":4},"GHI CHÚ"]
[]
[null,null,{"$f":"Ngày_và_tuần+DATE(Năm_trên_lịch,1,1)-WEEKDAY(DATE(Năm_trên_lịch,1,1),(Đầu_tuần=\"T2\")+1)+36","v":"2018-02-04"},"2018-02-05"]
[null,null,{"$f":"IF(WEEKDAY(CalendarDay)=Giá_trị_đầu_tuần,CONCATENATE(\"Tuần \",WEEKNUM(CalendarDay),\"/Ngày \",CalendarDay-DATE(YEAR(CalendarDay),1,0)),CONCATENATE(\"Ngày \",CalendarDay-DATE(YEAR(CalendarDay),1,0)))","v":"Tuần 6/Ngày 35"},{"$f":"IF(WEEKDAY(CalendarDay)=Giá_trị_đầu_tuần,CONCATENATE(\"Tuần \",WEEKNUM(CalendarDay),\"/Ngày \",CalendarDay-DATE(YEAR(CalendarDay),1,0)),CONCATENATE(\"Ngày \",CalendarDay-DATE(YEAR(CalendarDay),1,0)))","v":"Ngày 36"}]

{"sheet":"THG2","index":1,"n_rows":20,"n_cols":9,"rows_kept":20,"merged":[[16,2,17,2],[17,4,19,8]]}
[null,"THG2",{"$f":"UPPER(TEXT(Đầu_tuần,\"ddd\"))","v":"CN"},{"$f":"UPPER(TEXT(D3,\"aaa\"))","v":"T2"},"T3","TƯ","NĂM","SÁU","BẢY"]
[null,{"$f":"Năm_trên_lịch","v":2018}]
[null,null,{"$f":"Ngày_và_tuần+DATE(Năm_trên_lịch,2,1)-WEEKDAY(DATE(Năm_trên_lịch,2,1),(Đầu_tuần=\"T2\")+1)+1","v":"2018-01-28"},"2018-01-29","2018-01-30","2018-01-31","2018-02-01","2018-02-02","2018-02-03"]
[null,null,{"$f":"IF(DAY(CalendarDay)=1,CONCATENATE(\"Tuần \",WEEKNUM(CalendarDay),\"/Ngày \",CalendarDay-DATE(YEAR(CalendarDay),1,0)),CONCATENATE(\"Ngày \",CalendarDay-DATE(YEAR(CalendarDay),1,0)))","v":"Ngày 28"},{"$f":"IF(DAY(CalendarDay)=1,CONCATENATE(\"Tuần \",WEEKNUM(CalendarDay),\"/Ngày \",CalendarDay-DATE(YEAR(CalendarDay),1,0)),CONCATENATE(\"Ngày \",CalendarDay-DATE(YEAR(CalendarDay),1,0)))","v":"Ngày 29"},{"$f":"IF(DAY(CalendarDay)=1,CONCATENATE(\"Tuần \",WEEKNUM(CalendarDay),\"/Ngày \",CalendarDay-DATE(YEAR(CalendarDay),1,0)),CONCATENATE(\"Ngày \",CalendarDay-DATE(YEAR(CalendarDay),1,0)))","v":"Ngày 30"},{"$f":"IF(DAY(CalendarDay)=1,CONCATENATE(\"Tuần \",WEEKNUM(CalendarDay),\"/Ngày \",CalendarDay-DATE(YEAR(CalendarDay),1,0)),CONCATENATE(\"Ngày \",CalendarDay-DATE(YEAR(CalendarDay),1,0)))","v":"Ngày 31"},{"$f":"IF(DAY(CalendarDay)=1,CONCATENATE(\"Tuần \",WEEKNUM(CalendarDay),\"/Ngày \",CalendarDay-DATE(YEAR(CalendarDay),1,0)),CONCATENATE(\"Ngày \",CalendarDay-DATE(YEAR(CalendarDay),1,0)))","v":"Tuần 5/Ngày 32"},{"$f":"IF(DAY(CalendarDay)=1,CONCATENATE(\"Tuần \",WEEKNUM(CalendarDay),\"/Ngày \",CalendarDay-DATE(YEAR(CalendarDay),1,0)),CONCATENATE(\"Ngày \",CalendarDay-DATE(YEAR(CalendarDay),1,0)))","v":"Ngày 33"},{"$f":"IF(DAY(CalendarDay)=1,CONCATENATE(\"Tuần \",WEEKNUM(CalendarDay),\"/Ngày \",CalendarDay-DATE(YEAR(CalendarDay),1,0)),CONCATENATE(\"Ngày \",CalendarDay-DATE(YEAR(CalendarDay),1,0)))","v":"Ngày 34"}]
[]
[null,null,{"$f":"Ngày_và_tuần+DATE(Năm_trên_lịch,2,1)-WEEKDAY(DATE(Năm_trên_lịch,2,1),(Đầu_tuần=\"T2\")+1)+8","v":"2018-02-04"},"2018-02-05","2018-02-06","2018-02-07","2018-02-08","2018-02-09","2018-02-10"]
[null,null,{"$f":"IF(WEEKDAY(CalendarDay)=Giá_trị_đầu_tuần,CONCATENATE(\"Tuần \",WEEKNUM(CalendarDay),\"/Ngày \",CalendarDay-DATE(YEAR(CalendarDay),1,0)),CONCATENATE(\"Ngày \",CalendarDay-DATE(YEAR(CalendarDay),1,0)))","v":"Tuần 6/Ngày 35"},{"$f":"IF(WEEKDAY(CalendarDay)=Giá_trị_đầu_tuần,CONCATENATE(\"Tuần \",WEEKNUM(CalendarDay),\"/Ngày \",CalendarDay-DATE(YEAR(CalendarDay),1,0)),CONCATENATE(\"Ngày \",CalendarDay-DATE(YEAR(CalendarDay),1,0)))","v":"Ngày 36"},{"$f":"IF(WEEKDAY(CalendarDay)=Giá_trị_đầu_tuần,CONCATENATE(\"Tuần \",WEEKNUM(CalendarDay),\"/Ngày \",CalendarDay-DATE(YEAR(CalendarDay),1,0)),CONCATENATE(\"Ngày \",CalendarDay-DATE(YEAR(CalendarDay),1,0)))","v":"Ngày 37"},{"$f":"IF(WEEKDAY(CalendarDay)=Giá_trị_đầu_tuần,CONCATENATE(\"Tuần \",WEEKNUM(CalendarDay),\"/Ngày \",CalendarDay-DATE(YEAR(CalendarDay),1,0)),CONCATENATE(\"Ngày \",CalendarDay-DATE(YEAR(CalendarDay),1,0)))","v":"Ngày 38"},{"$f":"IF(WEEKDAY(CalendarDay)=Giá_trị_đầu_tuần,CONCATENATE(\"Tuần \",WEEKNUM(CalendarDay),\"/Ngày \",CalendarDay-DATE(YEAR(CalendarDay),1,0)),CONCATENATE(\"Ngày \",CalendarDay-DATE(YEAR(CalendarDay),1,0)))","v":"Ngày 39"},{"$f":"IF(WEEKDAY(CalendarDay)=Giá_trị_đầu_tuần,CONCATENATE(\"Tuần \",WEEKNUM(CalendarDay),\"/Ngày \",CalendarDay-DATE(YEAR(CalendarDay),1,0)),CONCATENATE(\"Ngày \",CalendarDay-DATE(YEAR(CalendarDay),1,0)))","v":"Ngày 40"},{"$f":"IF(WEEKDAY(CalendarDay)=Giá_trị_đầu_tuần,CONCATENATE(\"Tuần \",WEEKNUM(CalendarDay),\"/Ngày \",CalendarDay-DATE(YEAR(CalendarDay),1,0)),CONCATENATE(\"Ngày \",CalendarDay-DATE(YEAR(CalendarDay),1,0)))","v":"Ngày 41"}]
[]
[null,null,{"$f":"Ngày_và_tuần+DATE(Năm_trên_lịch,2,1)-WEEKDAY(DATE(Năm_trên_lịch,2,1),(Đầu_tuần=\"T2\")+1)+15","v":"2018-02-11"},"2018-02-12","2018-02-13","2018-02-14","2018-02-15","2018-02-16","2018-02-17"]
[null,null,{"$f":"IF(WEEKDAY(CalendarDay)=Giá_trị_đầu_tuần,CONCATENATE(\"Tuần \",WEEKNUM(CalendarDay),\"/Ngày \",CalendarDay-DATE(YEAR(CalendarDay),1,0)),CONCATENATE(\"Ngày \",CalendarDay-DATE(YEAR(CalendarDay),1,0)))","v":"Tuần 7/Ngày 42"},{"$f":"IF(WEEKDAY(CalendarDay)=Giá_trị_đầu_tuần,CONCATENATE(\"Tuần \",WEEKNUM(CalendarDay),\"/Ngày \",CalendarDay-DATE(YEAR(CalendarDay),1,0)),CONCATENATE(\"Ngày \",CalendarDay-DATE(YEAR(CalendarDay),1,0)))","v":"Ngày 43"},{"$f":"IF(WEEKDAY(CalendarDay)=Giá_trị_đầu_tuần,CONCATENATE(\"Tuần \",WEEKNUM(CalendarDay),\"/Ngày \",CalendarDay-DATE(YEAR(CalendarDay),1,0)),CONCATENATE(\"Ngày \",CalendarDay-DATE(YEAR(CalendarDay),1,0)))","v":"Ngày 44"},{"$f":"IF(WEEKDAY(CalendarDay)=Giá_trị_đầu_tuần,CONCATENATE(\"Tuần \",WEEKNUM(CalendarDay),\"/Ngày \",CalendarDay-DATE(YEAR(CalendarDay),1,0)),CONCATENATE(\"Ngày \",CalendarDay-DATE(YEAR(CalendarDay),1,0)))","v":"Ngày 45"},{"$f":"IF(WEEKDAY(CalendarDay)=Giá_trị_đầu_tuần,CONCATENATE(\"Tuần \",WEEKNUM(CalendarDay),\"/Ngày \",CalendarDay-DATE(YEAR(CalendarDay),1,0)),CONCATENATE(\"Ngày \",CalendarDay-DATE(YEAR(CalendarDay),1,0)))","v":"Ngày 46"},{"$f":"IF(WEEKDAY(CalendarDay)=Giá_trị_đầu_tuần,CONCATENATE(\"Tuần \",WEEKNUM(CalendarDay),\"/Ngày \",CalendarDay-DATE(YEAR(CalendarDay),1,0)),CONCATENATE(\"Ngày \",CalendarDay-DATE(YEAR(CalendarDay),1,0)))","v":"Ngày 47"},{"$f":"IF(WEEKDAY(CalendarDay)=Giá_trị_đầu_tuần,CONCATENATE(\"Tuần \",WEEKNUM(CalendarDay),\"/Ngày \",CalendarDay-DATE(YEAR(CalendarDay),1,0)),CONCATENATE(\"Ngày \",CalendarDay-DATE(YEAR(CalendarDay),1,0)))","v":"Ngày 48"}]
[]
[null,null,{"$f":"Ngày_và_tuần+DATE(Năm_trên_lịch,2,1)-WEEKDAY(DATE(Năm_trên_lịch,2,1),(Đầu_tuần=\"T2\")+1)+22","v":"2018-02-18"},"2018-02-19","2018-02-20","2018-02-21","2018-02-22","2018-02-23","2018-02-24"]
[null,null,{"$f":"IF(WEEKDAY(CalendarDay)=Giá_trị_đầu_tuần,CONCATENATE(\"Tuần \",WEEKNUM(CalendarDay),\"/Ngày \",CalendarDay-DATE(YEAR(CalendarDay),1,0)),CONCATENATE(\"Ngày \",CalendarDay-DATE(YEAR(CalendarDay),1,0)))","v":"Tuần 8/Ngày 49"},{"$f":"IF(WEEKDAY(CalendarDay)=Giá_trị_đầu_tuần,CONCATENATE(\"Tuần \",WEEKNUM(CalendarDay),\"/Ngày \",CalendarDay-DATE(YEAR(CalendarDay),1,0)),CONCATENATE(\"Ngày \",CalendarDay-DATE(YEAR(CalendarDay),1,0)))","v":"Ngày 50"},{"$f":"IF(WEEKDAY(CalendarDay)=Giá_trị_đầu_tuần,CONCATENATE(\"Tuần \",WEEKNUM(CalendarDay),\"/Ngày \",CalendarDay-DATE(YEAR(CalendarDay),1,0)),CONCATENATE(\"Ngày \",CalendarDay-DATE(YEAR(CalendarDay),1,0)))","v":"Ngày 51"},{"$f":"IF(WEEKDAY(CalendarDay)=Giá_trị_đầu_tuần,CONCATENATE(\"Tuần \",WEEKNUM(CalendarDay),\"/Ngày \",CalendarDay-DATE(YEAR(CalendarDay),1,0)),CONCATENATE(\"Ngày \",CalendarDay-DATE(YEAR(CalendarDay),1,0)))","v":"Ngày 52"},{"$f":"IF(WEEKDAY(CalendarDay)=Giá_trị_đầu_tuần,CONCATENATE(\"Tuần \",WEEKNUM(CalendarDay),\"/Ngày \",CalendarDay-DATE(YEAR(CalendarDay),1,0)),CONCATENATE(\"Ngày \",CalendarDay-DATE(YEAR(CalendarDay),1,0)))","v":"Ngày 53"},{"$f":"IF(WEEKDAY(CalendarDay)=Giá_trị_đầu_tuần,CONCATENATE(\"Tuần \",WEEKNUM(CalendarDay),\"/Ngày \",CalendarDay-DATE(YEAR(CalendarDay),1,0)),CONCATENATE(\"Ngày \",CalendarDay-DATE(YEAR(CalendarDay),1,0)))","v":"Ngày 54"},{"$f":"IF(WEEKDAY(CalendarDay)=Giá_trị_đầu_tuần,CONCATENATE(\"Tuần \",WEEKNUM(CalendarDay),\"/Ngày \",CalendarDay-DATE(YEAR(CalendarDay),1,0)),CONCATENATE(\"Ngày \",CalendarDay-DATE(YEAR(CalendarDay),1,0)))","v":"Ngày 55"}]
[]
[null,null,{"$f":"Ngày_và_tuần+DATE(Năm_trên_lịch,2,1)-WEEKDAY(DATE(Năm_trên_lịch,2,1),(Đầu_tuần=\"T2\")+1)+29","v":"2018-02-25"},"2018-02-26","2018-02-27","2018-02-28","2018-03-01","2018-03-02","2018-03-03"]
[null,null,{"$f":"IF(WEEKDAY(CalendarDay)=Giá_trị_đầu_tuần,CONCATENATE(\"Tuần \",WEEKNUM(CalendarDay),\"/Ngày \",CalendarDay-DATE(YEAR(CalendarDay),1,0)),CONCATENATE(\"Ngày \",CalendarDay-DATE(YEAR(CalendarDay),1,0)))","v":"Tuần 9/Ngày 56"},{"$f":"IF(WEEKDAY(CalendarDay)=Giá_trị_đầu_tuần,CONCATENATE(\"Tuần \",WEEKNUM(CalendarDay),\"/Ngày \",CalendarDay-DATE(YEAR(CalendarDay),1,0)),CONCATENATE(\"Ngày \",CalendarDay-DATE(YEAR(CalendarDay),1,0)))","v":"Ngày 57"},{"$f":"IF(WEEKDAY(CalendarDay)=Giá_trị_đầu_tuần,CONCATENATE(\"Tuần \",WEEKNUM(CalendarDay),\"/Ngày \",CalendarDay-DATE(YEAR(CalendarDay),1,0)),CONCATENATE(\"Ngày \",CalendarDay-DATE(YEAR(CalendarDay),1,0)))","v":"Ngày 58"},{"$f":"IF(WEEKDAY(CalendarDay)=Giá_trị_đầu_tuần,CONCATENATE(\"Tuần \",WEEKNUM(CalendarDay),\"/Ngày \",CalendarDay-DATE(YEAR(CalendarDay),1,0)),CONCATENATE(\"Ngày \",CalendarDay-DATE(YEAR(CalendarDay),1,0)))","v":"Ngày 59"},{"$f":"IF(WEEKDAY(CalendarDay)=Giá_trị_đầu_tuần,CONCATENATE(\"Tuần \",WEEKNUM(CalendarDay),\"/Ngày \",CalendarDay-DATE(YEAR(CalendarDay),1,0)),CONCATENATE(\"Ngày \",CalendarDay-DATE(YEAR(CalendarDay),1,0)))","v":"Ngày 60"},{"$f":"IF(WEEKDAY(CalendarDay)=Giá_trị_đầu_tuần,CONCATENATE(\"Tuần \",WEEKNUM(CalendarDay),\"/Ngày \",CalendarDay-DATE(YEAR(CalendarDay),1,0)),CONCATENATE(\"Ngày \",CalendarDay-DATE(YEAR(CalendarDay),1,0)))","v":"Ngày 61"},{"$f":"IF(WEEKDAY(CalendarDay)=Giá_trị_đầu_tuần,CONCATENATE(\"Tuần \",WEEKNUM(CalendarDay),\"/Ngày \",CalendarDay-DATE(YEAR(CalendarDay),1,0)),CONCATENATE(\"Ngày \",CalendarDay-DATE(YEAR(CalendarDay),1,0)))","v":"Ngày 62"}]
[{"$nulls":4},"GHI CHÚ"]
[]
[null,null,{"$f":"Ngày_và_tuần+DATE(Năm_trên_lịch,2,1)-WEEKDAY(DATE(Năm_trên_lịch,2,1),(Đầu_tuần=\"T2\")+1)+36","v":"2018-03-04"},"2018-03-05"]
[null,null,{"$f":"IF(WEEKDAY(CalendarDay)=Giá_trị_đầu_tuần,CONCATENATE(\"Tuần \",WEEKNUM(CalendarDay),\"/Ngày \",CalendarDay-DATE(YEAR(CalendarDay),1,0)),CONCATENATE(\"Ngày \",CalendarDay-DATE(YEAR(CalendarDay),1,0)))","v":"Tuần 10/Ngày 63"},{"$f":"IF(WEEKDAY(CalendarDay)=Giá_trị_đầu_tuần,CONCATENATE(\"Tuần \",WEEKNUM(CalendarDay),\"/Ngày \",CalendarDay-DATE(YEAR(CalendarDay),1,0)),CONCATENATE(\"Ngày \",CalendarDay-DATE(YEAR(CalendarDay),1,0)))","v":"Ngày 64"}]

{"sheet":"THG3","index":2,"n_rows":20,"n_cols":9,"rows_kept":20,"merged":[[16,2,17,2],[17,4,19,8]]}
[null,"THG3",{"$f":"UPPER(TEXT(Đầu_tuần,\"ddd\"))","v":"CN"},{"$f":"UPPER(TEXT(D3,\"aaa\"))","v":"T2"},"T3","TƯ","NĂM","SÁU","BẢY"]
[null,{"$f":"Năm_trên_lịch","v":2018}]
[null,null,{"$f":"Ngày_và_tuần+DATE(Năm_trên_lịch,3,1)-WEEKDAY(DATE(Năm_trên_lịch,3,1),(Đầu_tuần=\"T2\")+1)+1","v":"2018-02-25"},"2018-02-26","2018-02-27","2018-02-28","2018-03-01","2018-03-02","2018-03-03"]
[null,null,{"$f":"IF(DAY(CalendarDay)=1,CONCATENATE(\"Tuần \",WEEKNUM(CalendarDay),\"/Ngày \",CalendarDay-DATE(YEAR(CalendarDay),1,0)),CONCATENATE(\"Ngày \",CalendarDay-DATE(YEAR(CalendarDay),1,0)))","v":"Ngày 56"},{"$f":"IF(DAY(CalendarDay)=1,CONCATENATE(\"Tuần \",WEEKNUM(CalendarDay),\"/Ngày \",CalendarDay-DATE(YEAR(CalendarDay),1,0)),CONCATENATE(\"Ngày \",CalendarDay-DATE(YEAR(CalendarDay),1,0)))","v":"Ngày 57"},{"$f":"IF(DAY(CalendarDay)=1,CONCATENATE(\"Tuần \",WEEKNUM(CalendarDay),\"/Ngày \",CalendarDay-DATE(YEAR(CalendarDay),1,0)),CONCATENATE(\"Ngày \",CalendarDay-DATE(YEAR(CalendarDay),1,0)))","v":"Ngày 58"},{"$f":"IF(DAY(CalendarDay)=1,CONCATENATE(\"Tuần \",WEEKNUM(CalendarDay),\"/Ngày \",CalendarDay-DATE(YEAR(CalendarDay),1,0)),CONCATENATE(\"Ngày \",CalendarDay-DATE(YEAR(CalendarDay),1,0)))","v":"Ngày 59"},{"$f":"IF(DAY(CalendarDay)=1,CONCATENATE(\"Tuần \",WEEKNUM(CalendarDay),\"/Ngày \",CalendarDay-DATE(YEAR(CalendarDay),1,0)),CONCATENATE(\"Ngày \",CalendarDay-DATE(YEAR(CalendarDay),1,0)))","v":"Tuần 9/Ngày 60"},{"$f":"IF(DAY(CalendarDay)=1,CONCATENATE(\"Tuần \",WEEKNUM(CalendarDay),\"/Ngày \",CalendarDay-DATE(YEAR(CalendarDay),1,0)),CONCATENATE(\"Ngày \",CalendarDay-DATE(YEAR(CalendarDay),1,0)))","v":"Ngày 61"},{"$f":"IF(DAY(CalendarDay)=1,CONCATENATE(\"Tuần \",WEEKNUM(CalendarDay),\"/Ngày \",CalendarDay-DATE(YEAR(CalendarDay),1,0)),CONCATENATE(\"Ngày \",CalendarDay-DATE(YEAR(CalendarDay),1,0)))","v":"Ngày 62"}]
[]
[null,null,{"$f":"Ngày_và_tuần+DATE(Năm_trên_lịch,3,1)-WEEKDAY(DATE(Năm_trên_lịch,3,1),(Đầu_tuần=\"T2\")+1)+8","v":"2018-03-04"},"2018-03-05","2018-03-06","2018-03-07","2018-03-08","2018-03-09","2018-03-10"]
[null,null,{"$f":"IF(WEEKDAY(CalendarDay)=Giá_trị_đầu_tuần,CONCATENATE(\"Tuần \",WEEKNUM(CalendarDay),\"/Ngày \",CalendarDay-DATE(YEAR(CalendarDay),1,0)),CONCATENATE(\"Ngày \",CalendarDay-DATE(YEAR(CalendarDay),1,0)))","v":"Tuần 10/Ngày 63"},{"$f":"IF(WEEKDAY(CalendarDay)=Giá_trị_đầu_tuần,CONCATENATE(\"Tuần \",WEEKNUM(CalendarDay),\"/Ngày \",CalendarDay-DATE(YEAR(CalendarDay),1,0)),CONCATENATE(\"Ngày \",CalendarDay-DATE(YEAR(CalendarDay),1,0)))","v":"Ngày 64"},{"$f":"IF(WEEKDAY(CalendarDay)=Giá_trị_đầu_tuần,CONCATENATE(\"Tuần \",WEEKNUM(CalendarDay),\"/Ngày \",CalendarDay-DATE(YEAR(CalendarDay),1,0)),CONCATENATE(\"Ngày \",CalendarDay-DATE(YEAR(CalendarDay),1,0)))","v":"Ngày 65"},{"$f":"IF(WEEKDAY(CalendarDay)=Giá_trị_đầu_tuần,CONCATENATE(\"Tuần \",WEEKNUM(CalendarDay),\"/Ngày \",CalendarDay-DATE(YEAR(CalendarDay),1,0)),CONCATENATE(\"Ngày \",CalendarDay-DATE(YEAR(CalendarDay),1,0)))","v":"Ngày 66"},{"$f":"IF(WEEKDAY(CalendarDay)=Giá_trị_đầu_tuần,CONCATENATE(\"Tuần \",WEEKNUM(CalendarDay),\"/Ngày \",CalendarDay-DATE(YEAR(CalendarDay),1,0)),CONCATENATE(\"Ngày \",CalendarDay-DATE(YEAR(CalendarDay),1,0)))","v":"Ngày 67"},{"$f":"IF(WEEKDAY(CalendarDay)=Giá_trị_đầu_tuần,CONCATENATE(\"Tuần \",WEEKNUM(CalendarDay),\"/Ngày \",CalendarDay-DATE(YEAR(CalendarDay),1,0)),CONCATENATE(\"Ngày \",CalendarDay-DATE(YEAR(CalendarDay),1,0)))","v":"Ngày 68"},{"$f":"IF(WEEKDAY(CalendarDay)=Giá_trị_đầu_tuần,CONCATENATE(\"Tuần \",WEEKNUM(CalendarDay),\"/Ngày \",CalendarDay-DATE(YEAR(CalendarDay),1,0)),CONCATENATE(\"Ngày \",CalendarDay-DATE(YEAR(CalendarDay),1,0)))","v":"Ngày 69"}]
[]
[null,null,{"$f":"Ngày_và_tuần+DATE(Năm_trên_lịch,3,1)-WEEKDAY(DATE(Năm_trên_lịch,3,1),(Đầu_tuần=\"T2\")+1)+15","v":"2018-03-11"},"2018-03-12","2018-03-13","2018-03-14","2018-03-15","2018-03-16","2018-03-17"]
[null,null,{"$f":"IF(WEEKDAY(CalendarDay)=Giá_trị_đầu_tuần,CONCATENATE(\"Tuần \",WEEKNUM(CalendarDay),\"/Ngày \",CalendarDay-DATE(YEAR(CalendarDay),1,0)),CONCATENATE(\"Ngày \",CalendarDay-DATE(YEAR(CalendarDay),1,0)))","v":"Tuần 11/Ngày 70"},{"$f":"IF(WEEKDAY(CalendarDay)=Giá_trị_đầu_tuần,CONCATENATE(\"Tuần \",WEEKNUM(CalendarDay),\"/Ngày \",CalendarDay-DATE(YEAR(CalendarDay),1,0)),CONCATENATE(\"Ngày \",CalendarDay-DATE(YEAR(CalendarDay),1,0)))","v":"Ngày 71"},{"$f":"IF(WEEKDAY(CalendarDay)=Giá_trị_đầu_tuần,CONCATENATE(\"Tuần \",WEEKNUM(CalendarDay),\"/Ngày \",CalendarDay-DATE(YEAR(CalendarDay),1,0)),CONCATENATE(\"Ngày \",CalendarDay-DATE(YEAR(CalendarDay),1,0)))","v":"Ngày 72"},{"$f":"IF(WEEKDAY(CalendarDay)=Giá_trị_đầu_tuần,CONCATENATE(\"Tuần \",WEEKNUM(CalendarDay),\"/Ngày \",CalendarDay-DATE(YEAR(CalendarDay),1,0)),CONCATENATE(\"Ngày \",CalendarDay-DATE(YEAR(CalendarDay),1,0)))","v":"Ngày 73"},{"$f":"IF(WEEKDAY(CalendarDay)=Giá_trị_đầu_tuần,CONCATENATE(\"Tuần \",WEEKNUM(CalendarDay),\"/Ngày \",CalendarDay-DATE(YEAR(CalendarDay),1,0)),CONCATENATE(\"Ngày \",CalendarDay-DATE(YEAR(CalendarDay),1,0)))","v":"Ngày 74"},{"$f":"IF(WEEKDAY(CalendarDay)=Giá_trị_đầu_tuần,CONCATENATE(\"Tuần \",WEEKNUM(CalendarDay),\"/Ngày \",CalendarDay-DATE(YEAR(CalendarDay),1,0)),CONCATENATE(\"Ngày \",CalendarDay-DATE(YEAR(CalendarDay),1,0)))","v":"Ngày 75"},{"$f":"IF(WEEKDAY(CalendarDay)=Giá_trị_đầu_tuần,CONCATENATE(\"Tuần \",WEEKNUM(CalendarDay),\"/Ngày \",CalendarDay-DATE(YEAR(CalendarDay),1,0)),CONCATENATE(\"Ngày \",CalendarDay-DATE(YEAR(CalendarDay),1,0)))","v":"Ngày 76"}]
[]
[null,null,{"$f":"Ngày_và_tuần+DATE(Năm_trên_lịch,3,1)-WEEKDAY(DATE(Năm_trên_lịch,3,1),(Đầu_tuần=\"T2\")+1)+22","v":"2018-03-18"},"2018-03-19","2018-03-20","2018-03-21","2018-03-22","2018-03-23","2018-03-24"]
[null,null,{"$f":"IF(WEEKDAY(CalendarDay)=Giá_trị_đầu_tuần,CONCATENATE(\"Tuần \",WEEKNUM(CalendarDay),\"/Ngày \",CalendarDay-DATE(YEAR(CalendarDay),1,0)),CONCATENATE(\"Ngày \",CalendarDay-DATE(YEAR(CalendarDay),1,0)))","v":"Tuần 12/Ngày 77"},{"$f":"IF(WEEKDAY(CalendarDay)=Giá_trị_đầu_tuần,CONCATENATE(\"Tuần \",WEEKNUM(CalendarDay),\"/Ngày \",CalendarDay-DATE(YEAR(CalendarDay),1,0)),CONCATENATE(\"Ngày \",CalendarDay-DATE(YEAR(CalendarDay),1,0)))","v":"Ngày 78"},{"$f":"IF(WEEKDAY(CalendarDay)=Giá_trị_đầu_tuần,CONCATENATE(\"Tuần \",WEEKNUM(CalendarDay),\"/Ngày \",CalendarDay-DATE(YEAR(CalendarDay),1,0)),CONCATENATE(\"Ngày \",CalendarDay-DATE(YEAR(CalendarDay),1,0)))","v":"Ngày 79"},{"$f":"IF(WEEKDAY(CalendarDay)=Giá_trị_đầu_tuần,CONCATENATE(\"Tuần \",WEEKNUM(CalendarDay),\"/Ngày \",CalendarDay-DATE(YEAR(CalendarDay),1,0)),CONCATENATE(\"Ngày \",CalendarDay-DATE(YEAR(CalendarDay),1,0)))","v":"Ngày 80"},{"$f":"IF(WEEKDAY(CalendarDay)=Giá_trị_đầu_tuần,CONCATENATE(\"Tuần \",WEEKNUM(CalendarDay),\"/Ngày \",CalendarDay-DATE(YEAR(CalendarDay),1,0)),CONCATENATE(\"Ngày \",CalendarDay-DATE(YEAR(CalendarDay),1,0)))","v":"Ngày 81"},{"$f":"IF(WEEKDAY(CalendarDay)=Giá_trị_đầu_tuần,CONCATENATE(\"Tuần \",WEEKNUM(CalendarDay),\"/Ngày \",CalendarDay-DATE(YEAR(CalendarDay),1,0)),CONCATENATE(\"Ngày \",CalendarDay-DATE(YEAR(CalendarDay),1,0)))","v":"Ngày 82"},{"$f":"IF(WEEKDAY(CalendarDay)=Giá_trị_đầu_tuần,CONCATENATE(\"Tuần \",WEEKNUM(CalendarDay),\"/Ngày \",CalendarDay-DATE(YEAR(CalendarDay),1,0)),CONCATENATE(\"Ngày \",CalendarDay-DATE(YEAR(CalendarDay),1,0)))","v":"Ngày 83"}]
[]
[null,null,{"$f":"Ngày_và_tuần+DATE(Năm_trên_lịch,3,1)-WEEKDAY(DATE(Năm_trên_lịch,3,1),(Đầu_tuần=\"T2\")+1)+29","v":"2018-03-25"},"2018-03-26","2018-03-27","2018-03-28","2018-03-29","2018-03-30","2018-03-31"]
[null,null,{"$f":"IF(WEEKDAY(CalendarDay)=Giá_trị_đầu_tuần,CONCATENATE(\"Tuần \",WEEKNUM(CalendarDay),\"/Ngày \",CalendarDay-DATE(YEAR(CalendarDay),1,0)),CONCATENATE(\"Ngày \",CalendarDay-DATE(YEAR(CalendarDay),1,0)))","v":"Tuần 13/Ngày 84"},{"$f":"IF(WEEKDAY(CalendarDay)=Giá_trị_đầu_tuần,CONCATENATE(\"Tuần \",WEEKNUM(CalendarDay),\"/Ngày \",CalendarDay-DATE(YEAR(CalendarDay),1,0)),CONCATENATE(\"Ngày \",CalendarDay-DATE(YEAR(CalendarDay),1,0)))","v":"Ngày 85"},{"$f":"IF(WEEKDAY(CalendarDay)=Giá_trị_đầu_tuần,CONCATENATE(\"Tuần \",WEEKNUM(CalendarDay),\"/Ngày \",CalendarDay-DATE(YEAR(CalendarDay),1,0)),CONCATENATE(\"Ngày \",CalendarDay-DATE(YEAR(CalendarDay),1,0)))","v":"Ngày 86"},{"$f":"IF(WEEKDAY(CalendarDay)=Giá_trị_đầu_tuần,CONCATENATE(\"Tuần \",WEEKNUM(CalendarDay),\"/Ngày \",CalendarDay-DATE(YEAR(CalendarDay),1,0)),CONCATENATE(\"Ngày \",CalendarDay-DATE(YEAR(CalendarDay),1,0)))","v":"Ngày 87"},{"$f":"IF(WEEKDAY(CalendarDay)=Giá_trị_đầu_tuần,CONCATENATE(\"Tuần \",WEEKNUM(CalendarDay),\"/Ngày \",CalendarDay-DATE(YEAR(CalendarDay),1,0)),CONCATENATE(\"Ngày \",CalendarDay-DATE(YEAR(CalendarDay),1,0)))","v":"Ngày 88"},{"$f":"IF(WEEKDAY(CalendarDay)=Giá_trị_đầu_tuần,CONCATENATE(\"Tuần \",WEEKNUM(CalendarDay),\"/Ngày \",CalendarDay-DATE(YEAR(CalendarDay),1,0)),CONCATENATE(\"Ngày \",CalendarDay-DATE(YEAR(CalendarDay),1,0)))","v":"Ngày 89"},{"$f":"IF(WEEKDAY(CalendarDay)=Giá_trị_đầu_tuần,CONCATENATE(\"Tuần \",WEEKNUM(CalendarDay),\"/Ngày \",CalendarDay-DATE(YEAR(CalendarDay),1,0)),CONCATENATE(\"Ngày \",CalendarDay-DATE(YEAR(CalendarDay),1,0)))","v":"Ngày 90"}]
[{"$nulls":4},"GHI CHÚ"]
[]
[null,null,{"$f":"Ngày_và_tuần+DATE(Năm_trên_lịch,3,1)-WEEKDAY(DATE(Năm_trên_lịch,3,1),(Đầu_tuần=\"T2\")+1)+36","v":"2018-04-01"},"2018-04-02"]
[null,null,{"$f":"IF(WEEKDAY(CalendarDay)=Giá_trị_đầu_tuần,CONCATENATE(\"Tuần \",WEEKNUM(CalendarDay),\"/Ngày \",CalendarDay-DATE(YEAR(CalendarDay),1,0)),CONCATENATE(\"Ngày \",CalendarDay-DATE(YEAR(CalendarDay),1,0)))","v":"Tuần 14/Ngày 91"},{"$f":"IF(WEEKDAY(CalendarDay)=Giá_trị_đầu_tuần,CONCATENATE(\"Tuần \",WEEKNUM(CalendarDay),\"/Ngày \",CalendarDay-DATE(YEAR(CalendarDay),1,0)),CONCATENATE(\"Ngày \",CalendarDay-DATE(YEAR(CalendarDay),1,0)))","v":"Ngày 92"}]

{"sheet":"THG4","index":3,"n_rows":20,"n_cols":9,"rows_kept":20,"merged":[[16,2,17,2],[17,4,19,8]]}
[null,"THG4",{"$f":"UPPER(TEXT(Đầu_tuần,\"ddd\"))","v":"CN"},{"$f":"UPPER(TEXT(D3,\"aaa\"))","v":"T2"},"T3","TƯ","NĂM","SÁU","BẢY"]
[null,{"$f":"Năm_trên_lịch","v":2018}]
[null,null,{"$f":"Ngày_và_tuần+DATE(Năm_trên_lịch,4,1)-WEEKDAY(DATE(Năm_trên_lịch,4,1),(Đầu_tuần=\"T2\")+1)+1","v":"2018-04-01"},"2018-04-02","2018-04-03","2018-04-04","2018-04-05","2018-04-06","2018-04-07"]
[null,null,{"$f":"IF(DAY(CalendarDay)=1,CONCATENATE(\"Tuần \",WEEKNUM(CalendarDay),\"/Ngày \",CalendarDay-DATE(YEAR(CalendarDay),1,0)),CONCATENATE(\"Ngày \",CalendarDay-DATE(YEAR(CalendarDay),1,0)))","v":"Tuần 14/Ngày 91"},{"$f":"IF(DAY(CalendarDay)=1,CONCATENATE(\"Tuần \",WEEKNUM(CalendarDay),\"/Ngày \",CalendarDay-DATE(YEAR(CalendarDay),1,0)),CONCATENATE(\"Ngày \",CalendarDay-DATE(YEAR(CalendarDay),1,0)))","v":"Ngày 92"},{"$f":"IF(DAY(CalendarDay)=1,CONCATENATE(\"Tuần \",WEEKNUM(CalendarDay),\"/Ngày \",CalendarDay-DATE(YEAR(CalendarDay),1,0)),CONCATENATE(\"Ngày \",CalendarDay-DATE(YEAR(CalendarDay),1,0)))","v":"Ngày 93"},{"$f":"IF(DAY(CalendarDay)=1,CONCATENATE(\"Tuần \",WEEKNUM(CalendarDay),\"/Ngày \",CalendarDay-DATE(YEAR(CalendarDay),1,0)),CONCATENATE(\"Ngày \",CalendarDay-DATE(YEAR(CalendarDay),1,0)))","v":"Ngày 94"},{"$f":"IF(DAY(CalendarDay)=1,CONCATENATE(\"Tuần \",WEEKNUM(CalendarDay),\"/Ngày \",CalendarDay-DATE(YEAR(CalendarDay),1,0)),CONCATENATE(\"Ngày \",CalendarDay-DATE(YEAR(CalendarDay),1,0)))","v":"Ngày 95"},{"$f":"IF(DAY(CalendarDay)=1,CONCATENATE(\"Tuần \",WEEKNUM(CalendarDay),\"/Ngày \",CalendarDay-DATE(YEAR(CalendarDay),1,0)),CONCATENATE(\"Ngày \",CalendarDay-DATE(YEAR(CalendarDay),1,0)))","v":"Ngày 96"},{"$f":"IF(DAY(CalendarDay)=1,CONCATENATE(\"Tuần \",WEEKNUM(CalendarDay),\"/Ngày \",CalendarDay-DATE(YEAR(CalendarDay),1,0)),CONCATENATE(\"Ngày \",CalendarDay-DATE(YEAR(CalendarDay),1,0)))","v":"Ngày 97"}]
[]
[null,null,{"$f":"Ngày_và_tuần+DATE(Năm_trên_lịch,4,1)-WEEKDAY(DATE(Năm_trên_lịch,4,1),(Đầu_tuần=\"T2\")+1)+8","v":"2018-04-08"},"2018-04-09","2018-04-10","2018-04-11","2018-04-12","2018-04-13","2018-04-14"]
[null,null,{"$f":"IF(WEEKDAY(CalendarDay)=Giá_trị_đầu_tuần,CONCATENATE(\"Tuần \",WEEKNUM(CalendarDay),\"/Ngày \",CalendarDay-DATE(YEAR(CalendarDay),1,0)),CONCATENATE(\"Ngày \",CalendarDay-DATE(YEAR(CalendarDay),1,0)))","v":"Tuần 15/Ngày 98"},{"$f":"IF(WEEKDAY(CalendarDay)=Giá_trị_đầu_tuần,CONCATENATE(\"Tuần \",WEEKNUM(CalendarDay),\"/Ngày \",CalendarDay-DATE(YEAR(CalendarDay),1,0)),CONCATENATE(\"Ngày \",CalendarDay-DATE(YEAR(CalendarDay),1,0)))","v":"Ngày 99"},{"$f":"IF(WEEKDAY(CalendarDay)=Giá_trị_đầu_tuần,CONCATENATE(\"Tuần \",WEEKNUM(CalendarDay),\"/Ngày \",CalendarDay-DATE(YEAR(CalendarDay),1,0)),CONCATENATE(\"Ngày \",CalendarDay-DATE(YEAR(CalendarDay),1,0)))","v":"Ngày 100"},{"$f":"IF(WEEKDAY(CalendarDay)=Giá_trị_đầu_tuần,CONCATENATE(\"Tuần \",WEEKNUM(CalendarDay),\"/Ngày \",CalendarDay-DATE(YEAR(CalendarDay),1,0)),CONCATENATE(\"Ngày \",CalendarDay-DATE(YEAR(CalendarDay),1,0)))","v":"Ngày 101"},{"$f":"IF(WEEKDAY(CalendarDay)=Giá_trị_đầu_tuần,CONCATENATE(\"Tuần \",WEEKNUM(CalendarDay),\"/Ngày \",CalendarDay-DATE(YEAR(CalendarDay),1,0)),CONCATENATE(\"Ngày \",CalendarDay-DATE(YEAR(CalendarDay),1,0)))","v":"Ngày 102"},{"$f":"IF(WEEKDAY(CalendarDay)=Giá_trị_đầu_tuần,CONCATENATE(\"Tuần \",WEEKNUM(CalendarDay),\"/Ngày \",CalendarDay-DATE(YEAR(CalendarDay),1,0)),CONCATENATE(\"Ngày \",CalendarDay-DATE(YEAR(CalendarDay),1,0)))","v":"Ngày 103"},{"$f":"IF(WEEKDAY(CalendarDay)=Giá_trị_đầu_tuần,CONCATENATE(\"Tuần \",WEEKNUM(CalendarDay),\"/Ngày \",CalendarDay-DATE(YEAR(CalendarDay),1,0)),CONCATENATE(\"Ngày \",CalendarDay-DATE(YEAR(CalendarDay),1,0)))","v":"Ngày 104"}]
[]
[null,null,{"$f":"Ngày_và_tuần+DATE(Năm_trên_lịch,4,1)-WEEKDAY(DATE(Năm_trên_lịch,4,1),(Đầu_tuần=\"T2\")+1)+15","v":"2018-04-15"},"2018-04-16","2018-04-17","2018-04-18","2018-04-19","2018-04-20","2018-04-21"]
[null,null,{"$f":"IF(WEEKDAY(CalendarDay)=Giá_trị_đầu_tuần,CONCATENATE(\"Tuần \",WEEKNUM(CalendarDay),\"/Ngày \",CalendarDay-DATE(YEAR(CalendarDay),1,0)),CONCATENATE(\"Ngày \",CalendarDay-DATE(YEAR(CalendarDay),1,0)))","v":"Tuần 16/Ngày 105"},{"$f":"IF(WEEKDAY(CalendarDay)=Giá_trị_đầu_tuần,CONCATENATE(\"Tuần \",WEEKNUM(CalendarDay),\"/Ngày \",CalendarDay-DATE(YEAR(CalendarDay),1,0)),CONCATENATE(\"Ngày \",CalendarDay-DATE(YEAR(CalendarDay),1,0)))","v":"Ngày 106"},{"$f":"IF(WEEKDAY(CalendarDay)=Giá_trị_đầu_tuần,CONCATENATE(\"Tuần \",WEEKNUM(CalendarDay),\"/Ngày \",CalendarDay-DATE(YEAR(CalendarDay),1,0)),CONCATENATE(\"Ngày \",CalendarDay-DATE(YEAR(CalendarDay),1,0)))","v":"Ngày 107"},{"$f":"IF(WEEKDAY(CalendarDay)=Giá_trị_đầu_tuần,CONCATENATE(\"Tuần \",WEEKNUM(CalendarDay),\"/Ngày \",CalendarDay-DATE(YEAR(CalendarDay),1,0)),CONCATENATE(\"Ngày \",CalendarDay-DATE(YEAR(CalendarDay),1,0)))","v":"Ngày 108"},{"$f":"IF(WEEKDAY(CalendarDay)=Giá_trị_đầu_tuần,CONCATENATE(\"Tuần \",WEEKNUM(CalendarDay),\"/Ngày \",CalendarDay-DATE(YEAR(CalendarDay),1,0)),CONCATENATE(\"Ngày \",CalendarDay-DATE(YEAR(CalendarDay),1,0)))","v":"Ngày 109"},{"$f":"IF(WEEKDAY(CalendarDay)=Giá_trị_đầu_tuần,CONCATENATE(\"Tuần \",WEEKNUM(CalendarDay),\"/Ngày \",CalendarDay-DATE(YEAR(CalendarDay),1,0)),CONCATENATE(\"Ngày \",CalendarDay-DATE(YEAR(CalendarDay),1,0)))","v":"Ngày 110"},{"$f":"IF(WEEKDAY(CalendarDay)=Giá_trị_đầu_tuần,CONCATENATE(\"Tuần \",WEEKNUM(CalendarDay),\"/Ngày \",CalendarDay-DATE(YEAR(CalendarDay),1,0)),CONCATENATE(\"Ngày \",CalendarDay-DATE(YEAR(CalendarDay),1,0)))","v":"Ngày 111"}]
[]
[null,null,{"$f":"Ngày_và_tuần+DATE(Năm_trên_lịch,4,1)-WEEKDAY(DATE(Năm_trên_lịch,4,1),(Đầu_tuần=\"T2\")+1)+22","v":"2018-04-22"},"2018-04-23","2018-04-24","2018-04-25","2018-04-26","2018-04-27","2018-04-28"]
[null,null,{"$f":"IF(WEEKDAY(CalendarDay)=Giá_trị_đầu_tuần,CONCATENATE(\"Tuần \",WEEKNUM(CalendarDay),\"/Ngày \",CalendarDay-DATE(YEAR(CalendarDay),1,0)),CONCATENATE(\"Ngày \",CalendarDay-DATE(YEAR(CalendarDay),1,0)))","v":"Tuần 17/Ngày 112"},{"$f":"IF(WEEKDAY(CalendarDay)=Giá_trị_đầu_tuần,CONCATENATE(\"Tuần \",WEEKNUM(CalendarDay),\"/Ngày \",CalendarDay-DATE(YEAR(CalendarDay),1,0)),CONCATENATE(\"Ngày \",CalendarDay-DATE(YEAR(CalendarDay),1,0)))","v":"Ngày 113"},{"$f":"IF(WEEKDAY(CalendarDay)=Giá_trị_đầu_tuần,CONCATENATE(\"Tuần \",WEEKNUM(CalendarDay),\"/Ngày \",CalendarDay-DATE(YEAR(CalendarDay),1,0)),CONCATENATE(\"Ngày \",CalendarDay-DATE(YEAR(CalendarDay),1,0)))","v":"Ngày 114"},{"$f":"IF(WEEKDAY(CalendarDay)=Giá_trị_đầu_tuần,CONCATENATE(\"Tuần \",WEEKNUM(CalendarDay),\"/Ngày \",CalendarDay-DATE(YEAR(CalendarDay),1,0)),CONCATENATE(\"Ngày \",CalendarDay-DATE(YEAR(CalendarDay),1,0)))","v":"Ngày 115"},{"$f":"IF(WEEKDAY(CalendarDay)=Giá_trị_đầu_tuần,CONCATENATE(\"Tuần \",WEEKNUM(CalendarDay),\"/Ngày \",CalendarDay-DATE(YEAR(CalendarDay),1,0)),CONCATENATE(\"Ngày \",CalendarDay-DATE(YEAR(CalendarDay),1,0)))","v":"Ngày 116"},{"$f":"IF(WEEKDAY(CalendarDay)=Giá_trị_đầu_tuần,CONCATENATE(\"Tuần \",WEEKNUM(CalendarDay),\"/Ngày \",CalendarDay-DATE(YEAR(CalendarDay),1,0)),CONCATENATE(\"Ngày \",CalendarDay-DATE(YEAR(CalendarDay),1,0)))","v":"Ngày 117"},{"$f":"IF(WEEKDAY(CalendarDay)=Giá_trị_đầu_tuần,CONCATENATE(\"Tuần \",WEEKNUM(CalendarDay),\"/Ngày \",CalendarDay-DATE(YEAR(CalendarDay),1,0)),CONCATENATE(\"Ngày \",CalendarDay-DATE(YEAR(CalendarDay),1,0)))","v":"Ngày 118"}]
[]
[null,null,{"$f":"Ngày_và_tuần+DATE(Năm_trên_lịch,4,1)-WEEKDAY(DATE(Năm_trên_lịch,4,1),(Đầu_tuần=\"T2\")+1)+29","v":"2018-04-29"},"2018-04-30","2018-05-01","2018-05-02","2018-05-03","2018-05-04","2018-05-05"]
[null,null,{"$f":"IF(WEEKDAY(CalendarDay)=Giá_trị_đầu_tuần,CONCATENATE(\"Tuần \",WEEKNUM(CalendarDay),\"/Ngày \",CalendarDay-DATE(YEAR(CalendarDay),1,0)),CONCATENATE(\"Ngày \",CalendarDay-DATE(YEAR(CalendarDay),1,0)))","v":"Tuần 18/Ngày 119"},{"$f":"IF(WEEKDAY(CalendarDay)=Giá_trị_đầu_tuần,CONCATENATE(\"Tuần \",WEEKNUM(CalendarDay),\"/Ngày \",CalendarDay-DATE(YEAR(CalendarDay),1,0)),CONCATENATE(\"Ngày \",CalendarDay-DATE(YEAR(CalendarDay),1,0)))","v":"Ngày 120"},{"$f":"IF(WEEKDAY(CalendarDay)=Giá_trị_đầu_tuần,CONCATENATE(\"Tuần \",WEEKNUM(CalendarDay),\"/Ngày \",CalendarDay-DATE(YEAR(CalendarDay),1,0)),CONCATENATE(\"Ngày \",CalendarDay-DATE(YEAR(CalendarDay),1,0)))","v":"Ngày 121"},{"$f":"IF(WEEKDAY(CalendarDay)=Giá_trị_đầu_tuần,CONCATENATE(\"Tuần \",WEEKNUM(CalendarDay),\"/Ngày \",CalendarDay-DATE(YEAR(CalendarDay),1,0)),CONCATENATE(\"Ngày \",CalendarDay-DATE(YEAR(CalendarDay),1,0)))","v":"Ngày 122"},{"$f":"IF(WEEKDAY(CalendarDay)=Giá_trị_đầu_tuần,CONCATENATE(\"Tuần \",WEEKNUM(CalendarDay),\"/Ngày \",CalendarDay-DATE(YEAR(CalendarDay),1,0)),CONCATENATE(\"Ngày \",CalendarDay-DATE(YEAR(CalendarDay),1,0)))","v":"Ngày 123"},{"$f":"IF(WEEKDAY(CalendarDay)=Giá_trị_đầu_tuần,CONCATENATE(\"Tuần \",WEEKNUM(CalendarDay),\"/Ngày \",CalendarDay-DATE(YEAR(CalendarDay),1,0)),CONCATENATE(\"Ngày \",CalendarDay-DATE(YEAR(CalendarDay),1,0)))","v":"Ngày 124"},{"$f":"IF(WEEKDAY(CalendarDay)=Giá_trị_đầu_tuần,CONCATENATE(\"Tuần \",WEEKNUM(CalendarDay),\"/Ngày \",CalendarDay-DATE(YEAR(CalendarDay),1,0)),CONCATENATE(\"Ngày \",CalendarDay-DATE(YEAR(CalendarDay),1,0)))","v":"Ngày 125"}]
[{"$nulls":4},"GHI CHÚ"]
[]
[null,null,{"$f":"Ngày_và_tuần+DATE(Năm_trên_lịch,4,1)-WEEKDAY(DATE(Năm_trên_lịch,4,1),(Đầu_tuần=\"T2\")+1)+36","v":"2018-05-06"},"2018-05-07"]
[null,null,{"$f":"IF(WEEKDAY(CalendarDay)=Giá_trị_đầu_tuần,CONCATENATE(\"Tuần \",WEEKNUM(CalendarDay),\"/Ngày \",CalendarDay-DATE(YEAR(CalendarDay),1,0)),CONCATENATE(\"Ngày \",CalendarDay-DATE(YEAR(CalendarDay),1,0)))","v":"Tuần 19/Ngày 126"},{"$f":"IF(WEEKDAY(CalendarDay)=Giá_trị_đầu_tuần,CONCATENATE(\"Tuần \",WEEKNUM(CalendarDay),\"/Ngày \",CalendarDay-DATE(YEAR(CalendarDay),1,0)),CONCATENATE(\"Ngày \",CalendarDay-DATE(YEAR(CalendarDay),1,0)))","v":"Ngày 127"}]

{"sheet":"THG5","index":4,"n_rows":20,"n_cols":9,"rows_kept":20,"merged":[[16,2,17,2],[17,4,19,8]]}
[null,"THG5",{"$f":"UPPER(TEXT(Đầu_tuần,\"ddd\"))","v":"CN"},{"$f":"UPPER(TEXT(D3,\"aaa\"))","v":"T2"},"T3","TƯ","NĂM","SÁU","BẢY"]
[null,{"$f":"Năm_trên_lịch","v":2018}]
[null,null,{"$f":"Ngày_và_tuần+DATE(Năm_trên_lịch,5,1)-WEEKDAY(DATE(Năm_trên_lịch,5,1),(Đầu_tuần=\"T2\")+1)+1","v":"2018-04-29"},"2018-04-30","2018-05-01","2018-05-02","2018-05-03","2018-05-04","2018-05-05"]
[null,null,{"$f":"IF(DAY(CalendarDay)=1,CONCATENATE(\"Tuần \",WEEKNUM(CalendarDay),\"/Ngày \",CalendarDay-DATE(YEAR(CalendarDay),1,0)),CONCATENATE(\"Ngày \",CalendarDay-DATE(YEAR(CalendarDay),1,0)))","v":"Ngày 119"},{"$f":"IF(DAY(CalendarDay)=1,CONCATENATE(\"Tuần \",WEEKNUM(CalendarDay),\"/Ngày \",CalendarDay-DATE(YEAR(CalendarDay),1,0)),CONCATENATE(\"Ngày \",CalendarDay-DATE(YEAR(CalendarDay),1,0)))","v":"Ngày 120"},{"$f":"IF(DAY(CalendarDay)=1,CONCATENATE(\"Tuần \",WEEKNUM(CalendarDay),\"/Ngày \",CalendarDay-DATE(YEAR(CalendarDay),1,0)),CONCATENATE(\"Ngày \",CalendarDay-DATE(YEAR(CalendarDay),1,0)))","v":"Tuần 18/Ngày 121"},{"$f":"IF(DAY(CalendarDay)=1,CONCATENATE(\"Tuần \",WEEKNUM(CalendarDay),\"/Ngày \",CalendarDay-DATE(YEAR(CalendarDay),1,0)),CONCATENATE(\"Ngày \",CalendarDay-DATE(YEAR(CalendarDay),1,0)))","v":"Ngày 122"},{"$f":"IF(DAY(CalendarDay)=1,CONCATENATE(\"Tuần \",WEEKNUM(CalendarDay),\"/Ngày \",CalendarDay-DATE(YEAR(CalendarDay),1,0)),CONCATENATE(\"Ngày \",CalendarDay-DATE(YEAR(CalendarDay),1,0)))","v":"Ngày 123"},{"$f":"IF(DAY(CalendarDay)=1,CONCATENATE(\"Tuần \",WEEKNUM(CalendarDay),\"/Ngày \",CalendarDay-DATE(YEAR(CalendarDay),1,0)),CONCATENATE(\"Ngày \",CalendarDay-DATE(YEAR(CalendarDay),1,0)))","v":"Ngày 124"},{"$f":"IF(DAY(CalendarDay)=1,CONCATENATE(\"Tuần \",WEEKNUM(CalendarDay),\"/Ngày \",CalendarDay-DATE(YEAR(CalendarDay),1,0)),CONCATENATE(\"Ngày \",CalendarDay-DATE(YEAR(CalendarDay),1,0)))","v":"Ngày 125"}]
[]
[null,null,{"$f":"Ngày_và_tuần+DATE(Năm_trên_lịch,5,1)-WEEKDAY(DATE(Năm_trên_lịch,5,1),(Đầu_tuần=\"T2\")+1)+8","v":"2018-05-06"},"2018-05-07","2018-05-08","2018-05-09","2018-05-10","2018-05-11","2018-05-12"]
[null,null,{"$f":"IF(WEEKDAY(CalendarDay)=Giá_trị_đầu_tuần,CONCATENATE(\"Tuần \",WEEKNUM(CalendarDay),\"/Ngày \",CalendarDay-DATE(YEAR(CalendarDay),1,0)),CONCATENATE(\"Ngày \",CalendarDay-DATE(YEAR(CalendarDay),1,0)))","v":"Tuần 19/Ngày 126"},{"$f":"IF(WEEKDAY(CalendarDay)=Giá_trị_đầu_tuần,CONCATENATE(\"Tuần \",WEEKNUM(CalendarDay),\"/Ngày \",CalendarDay-DATE(YEAR(CalendarDay),1,0)),CONCATENATE(\"Ngày \",CalendarDay-DATE(YEAR(CalendarDay),1,0)))","v":"Ngày 127"},{"$f":"IF(WEEKDAY(CalendarDay)=Giá_trị_đầu_tuần,CONCATENATE(\"Tuần \",WEEKNUM(CalendarDay),\"/Ngày \",CalendarDay-DATE(YEAR(CalendarDay),1,0)),CONCATENATE(\"Ngày \",CalendarDay-DATE(YEAR(CalendarDay),1,0)))","v":"Ngày 128"},{"$f":"IF(WEEKDAY(CalendarDay)=Giá_trị_đầu_tuần,CONCATENATE(\"Tuần \",WEEKNUM(CalendarDay),\"/Ngày \",CalendarDay-DATE(YEAR(CalendarDay),1,0)),CONCATENATE(\"Ngày \",CalendarDay-DATE(YEAR(CalendarDay),1,0)))","v":"Ngày 129"},{"$f":"IF(WEEKDAY(CalendarDay)=Giá_trị_đầu_tuần,CONCATENATE(\"Tuần \",WEEKNUM(CalendarDay),\"/Ngày \",CalendarDay-DATE(YEAR(CalendarDay),1,0)),CONCATENATE(\"Ngày \",CalendarDay-DATE(YEAR(CalendarDay),1,0)))","v":"Ngày 130"},{"$f":"IF(WEEKDAY(CalendarDay)=Giá_trị_đầu_tuần,CONCATENATE(\"Tuần \",WEEKNUM(CalendarDay),\"/Ngày \",CalendarDay-DATE(YEAR(CalendarDay),1,0)),CONCATENATE(\"Ngày \",CalendarDay-DATE(YEAR(CalendarDay),1,0)))","v":"Ngày 131"},{"$f":"IF(WEEKDAY(CalendarDay)=Giá_trị_đầu_tuần,CONCATENATE(\"Tuần \",WEEKNUM(CalendarDay),\"/Ngày \",CalendarDay-DATE(YEAR(CalendarDay),1,0)),CONCATENATE(\"Ngày \",CalendarDay-DATE(YEAR(CalendarDay),1,0)))","v":"Ngày 132"}]
[]
[null,null,{"$f":"Ngày_và_tuần+DATE(Năm_trên_lịch,5,1)-WEEKDAY(DATE(Năm_trên_lịch,5,1),(Đầu_tuần=\"T2\")+1)+15","v":"2018-05-13"},"2018-05-14","2018-05-15","2018-05-16","2018-05-17","2018-05-18","2018-05-19"]
[null,null,{"$f":"IF(WEEKDAY(CalendarDay)=Giá_trị_đầu_tuần,CONCATENATE(\"Tuần \",WEEKNUM(CalendarDay),\"/Ngày \",CalendarDay-DATE(YEAR(CalendarDay),1,0)),CONCATENATE(\"Ngày \",CalendarDay-DATE(YEAR(CalendarDay),1,0)))","v":"Tuần 20/Ngày 133"},{"$f":"IF(WEEKDAY(CalendarDay)=Giá_trị_đầu_tuần,CONCATENATE(\"Tuần \",WEEKNUM(CalendarDay),\"/Ngày \",CalendarDay-DATE(YEAR(CalendarDay),1,0)),CONCATENATE(\"Ngày \",CalendarDay-DATE(YEAR(CalendarDay),1,0)))","v":"Ngày 134"},{"$f":"IF(WEEKDAY(CalendarDay)=Giá_trị_đầu_tuần,CONCATENATE(\"Tuần \",WEEKNUM(CalendarDay),\"/Ngày \",CalendarDay-DATE(YEAR(CalendarDay),1,0)),CONCATENATE(\"Ngày \",CalendarDay-DATE(YEAR(CalendarDay),1,0)))","v":"Ngày 135"},{"$f":"IF(WEEKDAY(CalendarDay)=Giá_trị_đầu_tuần,CONCATENATE(\"Tuần \",WEEKNUM(CalendarDay),\"/Ngày \",CalendarDay-DATE(YEAR(CalendarDay),1,0)),CONCATENATE(\"Ngày \",CalendarDay-DATE(YEAR(CalendarDay),1,0)))","v":"Ngày 136"},{"$f":"IF(WEEKDAY(CalendarDay)=Giá_trị_đầu_tuần,CONCATENATE(\"Tuần \",WEEKNUM(CalendarDay),\"/Ngày \",CalendarDay-DATE(YEAR(CalendarDay),1,0)),CONCATENATE(\"Ngày \",CalendarDay-DATE(YEAR(CalendarDay),1,0)))","v":"Ngày 137"},{"$f":"IF(WEEKDAY(CalendarDay)=Giá_trị_đầu_tuần,CONCATENATE(\"Tuần \",WEEKNUM(CalendarDay),\"/Ngày \",CalendarDay-DATE(YEAR(CalendarDay),1,0)),CONCATENATE(\"Ngày \",CalendarDay-DATE(YEAR(CalendarDay),1,0)))","v":"Ngày 138"},{"$f":"IF(WEEKDAY(CalendarDay)=Giá_trị_đầu_tuần,CONCATENATE(\"Tuần \",WEEKNUM(CalendarDay),\"/Ngày \",CalendarDay-DATE(YEAR(CalendarDay),1,0)),CONCATENATE(\"Ngày \",CalendarDay-DATE(YEAR(CalendarDay),1,0)))","v":"Ngày 139"}]
[]
[null,null,{"$f":"Ngày_và_tuần+DATE(Năm_trên_lịch,5,1)-WEEKDAY(DATE(Năm_trên_lịch,5,1),(Đầu_tuần=\"T2\")+1)+22","v":"2018-05-20"},"2018-05-21","2018-05-22","2018-05-23","2018-05-24","2018-05-25","2018-05-26"]
[null,null,{"$f":"IF(WEEKDAY(CalendarDay)=Giá_trị_đầu_tuần,CONCATENATE(\"Tuần \",WEEKNUM(CalendarDay),\"/Ngày \",CalendarDay-DATE(YEAR(CalendarDay),1,0)),CONCATENATE(\"Ngày \",CalendarDay-DATE(YEAR(CalendarDay),1,0)))","v":"Tuần 21/Ngày 140"},{"$f":"IF(WEEKDAY(CalendarDay)=Giá_trị_đầu_tuần,CONCATENATE(\"Tuần \",WEEKNUM(CalendarDay),\"/Ngày \",CalendarDay-DATE(YEAR(CalendarDay),1,0)),CONCATENATE(\"Ngày \",CalendarDay-DATE(YEAR(CalendarDay),1,0)))","v":"Ngày 141"},{"$f":"IF(WEEKDAY(CalendarDay)=Giá_trị_đầu_tuần,CONCATENATE(\"Tuần \",WEEKNUM(CalendarDay),\"/Ngày \",CalendarDay-DATE(YEAR(CalendarDay),1,0)),CONCATENATE(\"Ngày \",CalendarDay-DATE(YEAR(CalendarDay),1,0)))","v":"Ngày 142"},{"$f":"IF(WEEKDAY(CalendarDay)=Giá_trị_đầu_tuần,CONCATENATE(\"Tuần \",WEEKNUM(CalendarDay),\"/Ngày \",CalendarDay-DATE(YEAR(CalendarDay),1,0)),CONCATENATE(\"Ngày \",CalendarDay-DATE(YEAR(CalendarDay),1,0)))","v":"Ngày 143"},{"$f":"IF(WEEKDAY(CalendarDay)=Giá_trị_đầu_tuần,CONCATENATE(\"Tuần \",WEEKNUM(CalendarDay),\"/Ngày \",CalendarDay-DATE(YEAR(CalendarDay),1,0)),CONCATENATE(\"Ngày \",CalendarDay-DATE(YEAR(CalendarDay),1,0)))","v":"Ngày 144"},{"$f":"IF(WEEKDAY(CalendarDay)=Giá_trị_đầu_tuần,CONCATENATE(\"Tuần \",WEEKNUM(CalendarDay),\"/Ngày \",CalendarDay-DATE(YEAR(CalendarDay),1,0)),CONCATENATE(\"Ngày \",CalendarDay-DATE(YEAR(CalendarDay),1,0)))","v":"Ngày 145"},{"$f":"IF(WEEKDAY(CalendarDay)=Giá_trị_đầu_tuần,CONCATENATE(\"Tuần \",WEEKNUM(CalendarDay),\"/Ngày \",CalendarDay-DATE(YEAR(CalendarDay),1,0)),CONCATENATE(\"Ngày \",CalendarDay-DATE(YEAR(CalendarDay),1,0)))","v":"Ngày 146"}]
[]
[null,null,{"$f":"Ngày_và_tuần+DATE(Năm_trên_lịch,5,1)-WEEKDAY(DATE(Năm_trên_lịch,5,1),(Đầu_tuần=\"T2\")+1)+29","v":"2018-05-27"},"2018-05-28","2018-05-29","2018-05-30","2018-05-31","2018-06-01","2018-06-02"]
[null,null,{"$f":"IF(WEEKDAY(CalendarDay)=Giá_trị_đầu_tuần,CONCATENATE(\"Tuần \",WEEKNUM(CalendarDay),\"/Ngày \",CalendarDay-DATE(YEAR(CalendarDay),1,0)),CONCATENATE(\"Ngày \",CalendarDay-DATE(YEAR(CalendarDay),1,0)))","v":"Tuần 22/Ngày 147"},{"$f":"IF(WEEKDAY(CalendarDay)=Giá_trị_đầu_tuần,CONCATENATE(\"Tuần \",WEEKNUM(CalendarDay),\"/Ngày \",CalendarDay-DATE(YEAR(CalendarDay),1,0)),CONCATENATE(\"Ngày \",CalendarDay-DATE(YEAR(CalendarDay),1,0)))","v":"Ngày 148"},{"$f":"IF(WEEKDAY(CalendarDay)=Giá_trị_đầu_tuần,CONCATENATE(\"Tuần \",WEEKNUM(CalendarDay),\"/Ngày \",CalendarDay-DATE(YEAR(CalendarDay),1,0)),CONCATENATE(\"Ngày \",CalendarDay-DATE(YEAR(CalendarDay),1,0)))","v":"Ngày 149"},{"$f":"IF(WEEKDAY(CalendarDay)=Giá_trị_đầu_tuần,CONCATENATE(\"Tuần \",WEEKNUM(CalendarDay),\"/Ngày \",CalendarDay-DATE(YEAR(CalendarDay),1,0)),CONCATENATE(\"Ngày \",CalendarDay-DATE(YEAR(CalendarDay),1,0)))","v":"Ngày 150"},{"$f":"IF(WEEKDAY(CalendarDay)=Giá_trị_đầu_tuần,CONCATENATE(\"Tuần \",WEEKNUM(CalendarDay),\"/Ngày \",CalendarDay-DATE(YEAR(CalendarDay),1,0)),CONCATENATE(\"Ngày \",CalendarDay-DATE(YEAR(CalendarDay),1,0)))","v":"Ngày 151"},{"$f":"IF(WEEKDAY(CalendarDay)=Giá_trị_đầu_tuần,CONCATENATE(\"Tuần \",WEEKNUM(CalendarDay),\"/Ngày \",CalendarDay-DATE(YEAR(CalendarDay),1,0)),CONCATENATE(\"Ngày \",CalendarDay-DATE(YEAR(CalendarDay),1,0)))","v":"Ngày 152"},{"$f":"IF(WEEKDAY(CalendarDay)=Giá_trị_đầu_tuần,CONCATENATE(\"Tuần \",WEEKNUM(CalendarDay),\"/Ngày \",CalendarDay-DATE(YEAR(CalendarDay),1,0)),CONCATENATE(\"Ngày \",CalendarDay-DATE(YEAR(CalendarDay),1,0)))","v":"Ngày 153"}]
[{"$nulls":4},"GHI CHÚ"]
[]
[null,null,{"$f":"Ngày_và_tuần+DATE(Năm_trên_lịch,5,1)-WEEKDAY(DATE(Năm_trên_lịch,5,1),(Đầu_tuần=\"T2\")+1)+36","v":"2018-06-03"},"2018-06-04"]
[null,null,{"$f":"IF(WEEKDAY(CalendarDay)=Giá_trị_đầu_tuần,CONCATENATE(\"Tuần \",WEEKNUM(CalendarDay),\"/Ngày \",CalendarDay-DATE(YEAR(CalendarDay),1,0)),CONCATENATE(\"Ngày \",CalendarDay-DATE(YEAR(CalendarDay),1,0)))","v":"Tuần 23/Ngày 154"},{"$f":"IF(WEEKDAY(CalendarDay)=Giá_trị_đầu_tuần,CONCATENATE(\"Tuần \",WEEKNUM(CalendarDay),\"/Ngày \",CalendarDay-DATE(YEAR(CalendarDay),1,0)),CONCATENATE(\"Ngày \",CalendarDay-DATE(YEAR(CalendarDay),1,0)))","v":"Ngày 155"}]

{"sheet":"THG6","index":5,"n_rows":20,"n_cols":9,"rows_kept":20,"merged":[[16,2,17,2],[17,4,19,8]]}
[null,"THG6",{"$f":"UPPER(TEXT(Đầu_tuần,\"ddd\"))","v":"CN"},{"$f":"UPPER(TEXT(D3,\"aaa\"))","v":"T2"},"T3","TƯ","NĂM","SÁU","BẢY"]
[null,{"$f":"Năm_trên_lịch","v":2018}]
[null,null,{"$f":"Ngày_và_tuần+DATE(Năm_trên_lịch,6,1)-WEEKDAY(DATE(Năm_trên_lịch,6,1),(Đầu_tuần=\"T2\")+1)+1","v":"2018-05-27"},"2018-05-28","2018-05-29","2018-05-30","2018-05-31","2018-06-01","2018-06-02"]
[null,null,{"$f":"IF(DAY(CalendarDay)=1,CONCATENATE(\"Tuần \",WEEKNUM(CalendarDay),\"/Ngày \",CalendarDay-DATE(YEAR(CalendarDay),1,0)),CONCATENATE(\"Ngày \",CalendarDay-DATE(YEAR(CalendarDay),1,0)))","v":"Ngày 147"},{"$f":"IF(DAY(CalendarDay)=1,CONCATENATE(\"Tuần \",WEEKNUM(CalendarDay),\"/Ngày \",CalendarDay-DATE(YEAR(CalendarDay),1,0)),CONCATENATE(\"Ngày \",CalendarDay-DATE(YEAR(CalendarDay),1,0)))","v":"Ngày 148"},{"$f":"IF(DAY(CalendarDay)=1,CONCATENATE(\"Tuần \",WEEKNUM(CalendarDay),\"/Ngày \",CalendarDay-DATE(YEAR(CalendarDay),1,0)),CONCATENATE(\"Ngày \",CalendarDay-DATE(YEAR(CalendarDay),1,0)))","v":"Ngày 149"},{"$f":"IF(DAY(CalendarDay)=1,CONCATENATE(\"Tuần \",WEEKNUM(CalendarDay),\"/Ngày \",CalendarDay-DATE(YEAR(CalendarDay),1,0)),CONCATENATE(\"Ngày \",CalendarDay-DATE(YEAR(CalendarDay),1,0)))","v":"Ngày 150"},{"$f":"IF(DAY(CalendarDay)=1,CONCATENATE(\"Tuần \",WEEKNUM(CalendarDay),\"/Ngày \",CalendarDay-DATE(YEAR(CalendarDay),1,0)),CONCATENATE(\"Ngày \",CalendarDay-DATE(YEAR(CalendarDay),1,0)))","v":"Ngày 151"},{"$f":"IF(DAY(CalendarDay)=1,CONCATENATE(\"Tuần \",WEEKNUM(CalendarDay),\"/Ngày \",CalendarDay-DATE(YEAR(CalendarDay),1,0)),CONCATENATE(\"Ngày \",CalendarDay-DATE(YEAR(CalendarDay),1,0)))","v":"Tuần 22/Ngày 152"},{"$f":"IF(DAY(CalendarDay)=1,CONCATENATE(\"Tuần \",WEEKNUM(CalendarDay),\"/Ngày \",CalendarDay-DATE(YEAR(CalendarDay),1,0)),CONCATENATE(\"Ngày \",CalendarDay-DATE(YEAR(CalendarDay),1,0)))","v":"Ngày 153"}]
[]
[null,null,{"$f":"Ngày_và_tuần+DATE(Năm_trên_lịch,6,1)-WEEKDAY(DATE(Năm_trên_lịch,6,1),(Đầu_tuần=\"T2\")+1)+8","v":"2018-06-03"},"2018-06-04","2018-06-05","2018-06-06","2018-06-07","2018-06-08","2018-06-09"]
[null,null,{"$f":"IF(WEEKDAY(CalendarDay)=Giá_trị_đầu_tuần,CONCATENATE(\"Tuần \",WEEKNUM(CalendarDay),\"/Ngày \",CalendarDay-DATE(YEAR(CalendarDay),1,0)),CONCATENATE(\"Ngày \",CalendarDay-DATE(YEAR(CalendarDay),1,0)))","v":"Tuần 23/Ngày 154"},{"$f":"IF(WEEKDAY(CalendarDay)=Giá_trị_đầu_tuần,CONCATENATE(\"Tuần \",WEEKNUM(CalendarDay),\"/Ngày \",CalendarDay-DATE(YEAR(CalendarDay),1,0)),CONCATENATE(\"Ngày \",CalendarDay-DATE(YEAR(CalendarDay),1,0)))","v":"Ngày 155"},{"$f":"IF(WEEKDAY(CalendarDay)=Giá_trị_đầu_tuần,CONCATENATE(\"Tuần \",WEEKNUM(CalendarDay),\"/Ngày \",CalendarDay-DATE(YEAR(CalendarDay),1,0)),CONCATENATE(\"Ngày \",CalendarDay-DATE(YEAR(CalendarDay),1,0)))","v":"Ngày 156"},{"$f":"IF(WEEKDAY(CalendarDay)=Giá_trị_đầu_tuần,CONCATENATE(\"Tuần \",WEEKNUM(CalendarDay),\"/Ngày \",CalendarDay-DATE(YEAR(CalendarDay),1,0)),CONCATENATE(\"Ngày \",CalendarDay-DATE(YEAR(CalendarDay),1,0)))","v":"Ngày 157"},{"$f":"IF(WEEKDAY(CalendarDay)=Giá_trị_đầu_tuần,CONCATENATE(\"Tuần \",WEEKNUM(CalendarDay),\"/Ngày \",CalendarDay-DATE(YEAR(CalendarDay),1,0)),CONCATENATE(\"Ngày \",CalendarDay-DATE(YEAR(CalendarDay),1,0)))","v":"Ngày 158"},{"$f":"IF(WEEKDAY(CalendarDay)=Giá_trị_đầu_tuần,CONCATENATE(\"Tuần \",WEEKNUM(CalendarDay),\"/Ngày \",CalendarDay-DATE(YEAR(CalendarDay),1,0)),CONCATENATE(\"Ngày \",CalendarDay-DATE(YEAR(CalendarDay),1,0)))","v":"Ngày 159"},{"$f":"IF(WEEKDAY(CalendarDay)=Giá_trị_đầu_tuần,CONCATENATE(\"Tuần \",WEEKNUM(CalendarDay),\"/Ngày \",CalendarDay-DATE(YEAR(CalendarDay),1,0)),CONCATENATE(\"Ngày \",CalendarDay-DATE(YEAR(CalendarDay),1,0)))","v":"Ngày 160"}]
[]
[null,null,{"$f":"Ngày_và_tuần+DATE(Năm_trên_lịch,6,1)-WEEKDAY(DATE(Năm_trên_lịch,6,1),(Đầu_tuần=\"T2\")+1)+15","v":"2018-06-10"},"2018-06-11","2018-06-12","2018-06-13","2018-06-14","2018-06-15","2018-06-16"]
[null,null,{"$f":"IF(WEEKDAY(CalendarDay)=Giá_trị_đầu_tuần,CONCATENATE(\"Tuần \",WEEKNUM(CalendarDay),\"/Ngày \",CalendarDay-DATE(YEAR(CalendarDay),1,0)),CONCATENATE(\"Ngày \",CalendarDay-DATE(YEAR(CalendarDay),1,0)))","v":"Tuần 24/Ngày 161"},{"$f":"IF(WEEKDAY(CalendarDay)=Giá_trị_đầu_tuần,CONCATENATE(\"Tuần \",WEEKNUM(CalendarDay),\"/Ngày \",CalendarDay-DATE(YEAR(CalendarDay),1,0)),CONCATENATE(\"Ngày \",CalendarDay-DATE(YEAR(CalendarDay),1,0)))","v":"Ngày 162"},{"$f":"IF(WEEKDAY(CalendarDay)=Giá_trị_đầu_tuần,CONCATENATE(\"Tuần \",WEEKNUM(CalendarDay),\"/Ngày \",CalendarDay-DATE(YEAR(CalendarDay),1,0)),CONCATENATE(\"Ngày \",CalendarDay-DATE(YEAR(CalendarDay),1,0)))","v":"Ngày 163"},{"$f":"IF(WEEKDAY(CalendarDay)=Giá_trị_đầu_tuần,CONCATENATE(\"Tuần \",WEEKNUM(CalendarDay),\"/Ngày \",CalendarDay-DATE(YEAR(CalendarDay),1,0)),CONCATENATE(\"Ngày \",CalendarDay-DATE(YEAR(CalendarDay),1,0)))","v":"Ngày 164"},{"$f":"IF(WEEKDAY(CalendarDay)=Giá_trị_đầu_tuần,CONCATENATE(\"Tuần \",WEEKNUM(CalendarDay),\"/Ngày \",CalendarDay-DATE(YEAR(CalendarDay),1,0)),CONCATENATE(\"Ngày \",CalendarDay-DATE(YEAR(CalendarDay),1,0)))","v":"Ngày 165"},{"$f":"IF(WEEKDAY(CalendarDay)=Giá_trị_đầu_tuần,CONCATENATE(\"Tuần \",WEEKNUM(CalendarDay),\"/Ngày \",CalendarDay-DATE(YEAR(CalendarDay),1,0)),CONCATENATE(\"Ngày \",CalendarDay-DATE(YEAR(CalendarDay),1,0)))","v":"Ngày 166"},{"$f":"IF(WEEKDAY(CalendarDay)=Giá_trị_đầu_tuần,CONCATENATE(\"Tuần \",WEEKNUM(CalendarDay),\"/Ngày \",CalendarDay-DATE(YEAR(CalendarDay),1,0)),CONCATENATE(\"Ngày \",CalendarDay-DATE(YEAR(CalendarDay),1,0)))","v":"Ngày 167"}]
[]
[null,null,{"$f":"Ngày_và_tuần+DATE(Năm_trên_lịch,6,1)-WEEKDAY(DATE(Năm_trên_lịch,6,1),(Đầu_tuần=\"T2\")+1)+22","v":"2018-06-17"},"2018-06-18","2018-06-19","2018-06-20","2018-06-21","2018-06-22","2018-06-23"]
[null,null,{"$f":"IF(WEEKDAY(CalendarDay)=Giá_trị_đầu_tuần,CONCATENATE(\"Tuần \",WEEKNUM(CalendarDay),\"/Ngày \",CalendarDay-DATE(YEAR(CalendarDay),1,0)),CONCATENATE(\"Ngày \",CalendarDay-DATE(YEAR(CalendarDay),1,0)))","v":"Tuần 25/Ngày 168"},{"$f":"IF(WEEKDAY(CalendarDay)=Giá_trị_đầu_tuần,CONCATENATE(\"Tuần \",WEEKNUM(CalendarDay),\"/Ngày \",CalendarDay-DATE(YEAR(CalendarDay),1,0)),CONCATENATE(\"Ngày \",CalendarDay-DATE(YEAR(CalendarDay),1,0)))","v":"Ngày 169"},{"$f":"IF(WEEKDAY(CalendarDay)=Giá_trị_đầu_tuần,CONCATENATE(\"Tuần \",WEEKNUM(CalendarDay),\"/Ngày \",CalendarDay-DATE(YEAR(CalendarDay),1,0)),CONCATENATE(\"Ngày \",CalendarDay-DATE(YEAR(CalendarDay),1,0)))","v":"Ngày 170"},{"$f":"IF(WEEKDAY(CalendarDay)=Giá_trị_đầu_tuần,CONCATENATE(\"Tuần \",WEEKNUM(CalendarDay),\"/Ngày \",CalendarDay-DATE(YEAR(CalendarDay),1,0)),CONCATENATE(\"Ngày \",CalendarDay-DATE(YEAR(CalendarDay),1,0)))","v":"Ngày 171"},{"$f":"IF(WEEKDAY(CalendarDay)=Giá_trị_đầu_tuần,CONCATENATE(\"Tuần \",WEEKNUM(CalendarDay),\"/Ngày \",CalendarDay-DATE(YEAR(CalendarDay),1,0)),CONCATENATE(\"Ngày \",CalendarDay-DATE(YEAR(CalendarDay),1,0)))","v":"Ngày 172"},{"$f":"IF(WEEKDAY(CalendarDay)=Giá_trị_đầu_tuần,CONCATENATE(\"Tuần \",WEEKNUM(CalendarDay),\"/Ngày \",CalendarDay-DATE(YEAR(CalendarDay),1,0)),CONCATENATE(\"Ngày \",CalendarDay-DATE(YEAR(CalendarDay),1,0)))","v":"Ngày 173"},{"$f":"IF(WEEKDAY(CalendarDay)=Giá_trị_đầu_tuần,CONCATENATE(\"Tuần \",WEEKNUM(CalendarDay),\"/Ngày \",CalendarDay-DATE(YEAR(CalendarDay),1,0)),CONCATENATE(\"Ngày \",CalendarDay-DATE(YEAR(CalendarDay),1,0)))","v":"Ngày 174"}]
[]
[null,null,{"$f":"Ngày_và_tuần+DATE(Năm_trên_lịch,6,1)-WEEKDAY(DATE(Năm_trên_lịch,6,1),(Đầu_tuần=\"T2\")+1)+29","v":"2018-06-24"},"2018-06-25","2018-06-26","2018-06-27","2018-06-28","2018-06-29","2018-06-30"]
[null,null,{"$f":"IF(WEEKDAY(CalendarDay)=Giá_trị_đầu_tuần,CONCATENATE(\"Tuần \",WEEKNUM(CalendarDay),\"/Ngày \",CalendarDay-DATE(YEAR(CalendarDay),1,0)),CONCATENATE(\"Ngày \",CalendarDay-DATE(YEAR(CalendarDay),1,0)))","v":"Tuần 26/Ngày 175"},{"$f":"IF(WEEKDAY(CalendarDay)=Giá_trị_đầu_tuần,CONCATENATE(\"Tuần \",WEEKNUM(CalendarDay),\"/Ngày \",CalendarDay-DATE(YEAR(CalendarDay),1,0)),CONCATENATE(\"Ngày \",CalendarDay-DATE(YEAR(CalendarDay),1,0)))","v":"Ngày 176"},{"$f":"IF(WEEKDAY(CalendarDay)=Giá_trị_đầu_tuần,CONCATENATE(\"Tuần \",WEEKNUM(CalendarDay),\"/Ngày \",CalendarDay-DATE(YEAR(CalendarDay),1,0)),CONCATENATE(\"Ngày \",CalendarDay-DATE(YEAR(CalendarDay),1,0)))","v":"Ngày 177"},{"$f":"IF(WEEKDAY(CalendarDay)=Giá_trị_đầu_tuần,CONCATENATE(\"Tuần \",WEEKNUM(CalendarDay),\"/Ngày \",CalendarDay-DATE(YEAR(CalendarDay),1,0)),CONCATENATE(\"Ngày \",CalendarDay-DATE(YEAR(CalendarDay),1,0)))","v":"Ngày 178"},{"$f":"IF(WEEKDAY(CalendarDay)=Giá_trị_đầu_tuần,CONCATENATE(\"Tuần \",WEEKNUM(CalendarDay),\"/Ngày \",CalendarDay-DATE(YEAR(CalendarDay),1,0)),CONCATENATE(\"Ngày \",CalendarDay-DATE(YEAR(CalendarDay),1,0)))","v":"Ngày 179"},{"$f":"IF(WEEKDAY(CalendarDay)=Giá_trị_đầu_tuần,CONCATENATE(\"Tuần \",WEEKNUM(CalendarDay),\"/Ngày \",CalendarDay-DATE(YEAR(CalendarDay),1,0)),CONCATENATE(\"Ngày \",CalendarDay-DATE(YEAR(CalendarDay),1,0)))","v":"Ngày 180"},{"$f":"IF(WEEKDAY(CalendarDay)=Giá_trị_đầu_tuần,CONCATENATE(\"Tuần \",WEEKNUM(CalendarDay),\"/Ngày \",CalendarDay-DATE(YEAR(CalendarDay),1,0)),CONCATENATE(\"Ngày \",CalendarDay-DATE(YEAR(CalendarDay),1,0)))","v":"Ngày 181"}]
[{"$nulls":4},"GHI CHÚ"]
[]
[null,null,{"$f":"Ngày_và_tuần+DATE(Năm_trên_lịch,6,1)-WEEKDAY(DATE(Năm_trên_lịch,6,1),(Đầu_tuần=\"T2\")+1)+36","v":"2018-07-01"},"2018-07-02"]
[null,null,{"$f":"IF(WEEKDAY(CalendarDay)=Giá_trị_đầu_tuần,CONCATENATE(\"Tuần \",WEEKNUM(CalendarDay),\"/Ngày \",CalendarDay-DATE(YEAR(CalendarDay),1,0)),CONCATENATE(\"Ngày \",CalendarDay-DATE(YEAR(CalendarDay),1,0)))","v":"Tuần 27/Ngày 182"},{"$f":"IF(WEEKDAY(CalendarDay)=Giá_trị_đầu_tuần,CONCATENATE(\"Tuần \",WEEKNUM(CalendarDay),\"/Ngày \",CalendarDay-DATE(YEAR(CalendarDay),1,0)),CONCATENATE(\"Ngày \",CalendarDay-DATE(YEAR(CalendarDay),1,0)))","v":"Ngày 183"}]

{"sheet":"THG7","index":6,"n_rows":20,"n_cols":9,"rows_kept":20,"merged":[[16,2,17,2],[17,4,19,8]]}
[null,"THG7",{"$f":"UPPER(TEXT(Đầu_tuần,\"ddd\"))","v":"CN"},{"$f":"UPPER(TEXT(D3,\"aaa\"))","v":"T2"},"T3","TƯ","NĂM","SÁU","BẢY"]
[null,{"$f":"Năm_trên_lịch","v":2018}]
[null,null,{"$f":"Ngày_và_tuần+DATE(Năm_trên_lịch,7,1)-WEEKDAY(DATE(Năm_trên_lịch,7,1),(Đầu_tuần=\"T2\")+1)+1","v":"2018-07-01"},"2018-07-02","2018-07-03","2018-07-04","2018-07-05","2018-07-06","2018-07-07"]
[null,null,{"$f":"IF(DAY(CalendarDay)=1,CONCATENATE(\"Tuần \",WEEKNUM(CalendarDay),\"/Ngày \",CalendarDay-DATE(YEAR(CalendarDay),1,0)),CONCATENATE(\"Ngày \",CalendarDay-DATE(YEAR(CalendarDay),1,0)))","v":"Tuần 27/Ngày 182"},{"$f":"IF(DAY(CalendarDay)=1,CONCATENATE(\"Tuần \",WEEKNUM(CalendarDay),\"/Ngày \",CalendarDay-DATE(YEAR(CalendarDay),1,0)),CONCATENATE(\"Ngày \",CalendarDay-DATE(YEAR(CalendarDay),1,0)))","v":"Ngày 183"},{"$f":"IF(DAY(CalendarDay)=1,CONCATENATE(\"Tuần \",WEEKNUM(CalendarDay),\"/Ngày \",CalendarDay-DATE(YEAR(CalendarDay),1,0)),CONCATENATE(\"Ngày \",CalendarDay-DATE(YEAR(CalendarDay),1,0)))","v":"Ngày 184"},{"$f":"IF(DAY(CalendarDay)=1,CONCATENATE(\"Tuần \",WEEKNUM(CalendarDay),\"/Ngày \",CalendarDay-DATE(YEAR(CalendarDay),1,0)),CONCATENATE(\"Ngày \",CalendarDay-DATE(YEAR(CalendarDay),1,0)))","v":"Ngày 185"},{"$f":"IF(DAY(CalendarDay)=1,CONCATENATE(\"Tuần \",WEEKNUM(CalendarDay),\"/Ngày \",CalendarDay-DATE(YEAR(CalendarDay),1,0)),CONCATENATE(\"Ngày \",CalendarDay-DATE(YEAR(CalendarDay),1,0)))","v":"Ngày 186"},{"$f":"IF(DAY(CalendarDay)=1,CONCATENATE(\"Tuần \",WEEKNUM(CalendarDay),\"/Ngày \",CalendarDay-DATE(YEAR(CalendarDay),1,0)),CONCATENATE(\"Ngày \",CalendarDay-DATE(YEAR(CalendarDay),1,0)))","v":"Ngày 187"},{"$f":"IF(DAY(CalendarDay)=1,CONCATENATE(\"Tuần \",WEEKNUM(CalendarDay),\"/Ngày \",CalendarDay-DATE(YEAR(CalendarDay),1,0)),CONCATENATE(\"Ngày \",CalendarDay-DATE(YEAR(CalendarDay),1,0)))","v":"Ngày 188"}]
[]
[null,null,{"$f":"Ngày_và_tuần+DATE(Năm_trên_lịch,7,1)-WEEKDAY(DATE(Năm_trên_lịch,7,1),(Đầu_tuần=\"T2\")+1)+8","v":"2018-07-08"},"2018-07-09","2018-07-10","2018-07-11","2018-07-12","2018-07-13","2018-07-14"]
[null,null,{"$f":"IF(WEEKDAY(CalendarDay)=Giá_trị_đầu_tuần,CONCATENATE(\"Tuần \",WEEKNUM(CalendarDay),\"/Ngày \",CalendarDay-DATE(YEAR(CalendarDay),1,0)),CONCATENATE(\"Ngày \",CalendarDay-DATE(YEAR(CalendarDay),1,0)))","v":"Tuần 28/Ngày 189"},{"$f":"IF(WEEKDAY(CalendarDay)=Giá_trị_đầu_tuần,CONCATENATE(\"Tuần \",WEEKNUM(CalendarDay),\"/Ngày \",CalendarDay-DATE(YEAR(CalendarDay),1,0)),CONCATENATE(\"Ngày \",CalendarDay-DATE(YEAR(CalendarDay),1,0)))","v":"Ngày 190"},{"$f":"IF(WEEKDAY(CalendarDay)=Giá_trị_đầu_tuần,CONCATENATE(\"Tuần \",WEEKNUM(CalendarDay),\"/Ngày \",CalendarDay-DATE(YEAR(CalendarDay),1,0)),CONCATENATE(\"Ngày \",CalendarDay-DATE(YEAR(CalendarDay),1,0)))","v":"Ngày 191"},{"$f":"IF(WEEKDAY(CalendarDay)=Giá_trị_đầu_tuần,CONCATENATE(\"Tuần \",WEEKNUM(CalendarDay),\"/Ngày \",CalendarDay-DATE(YEAR(CalendarDay),1,0)),CONCATENATE(\"Ngày \",CalendarDay-DATE(YEAR(CalendarDay),1,0)))","v":"Ngày 192"},{"$f":"IF(WEEKDAY(CalendarDay)=Giá_trị_đầu_tuần,CONCATENATE(\"Tuần \",WEEKNUM(CalendarDay),\"/Ngày \",CalendarDay-DATE(YEAR(CalendarDay),1,0)),CONCATENATE(\"Ngày \",CalendarDay-DATE(YEAR(CalendarDay),1,0)))","v":"Ngày 193"},{"$f":"IF(WEEKDAY(CalendarDay)=Giá_trị_đầu_tuần,CONCATENATE(\"Tuần \",WEEKNUM(CalendarDay),\"/Ngày \",CalendarDay-DATE(YEAR(CalendarDay),1,0)),CONCATENATE(\"Ngày \",CalendarDay-DATE(YEAR(CalendarDay),1,0)))","v":"Ngày 194"},{"$f":"IF(WEEKDAY(CalendarDay)=Giá_trị_đầu_tuần,CONCATENATE(\"Tuần \",WEEKNUM(CalendarDay),\"/Ngày \",CalendarDay-DATE(YEAR(CalendarDay),1,0)),CONCATENATE(\"Ngày \",CalendarDay-DATE(YEAR(CalendarDay),1,0)))","v":"Ngày 195"}]
[]
[null,null,{"$f":"Ngày_và_tuần+DATE(Năm_trên_lịch,7,1)-WEEKDAY(DATE(Năm_trên_lịch,7,1),(Đầu_tuần=\"T2\")+1)+15","v":"2018-07-15"},"2018-07-16","2018-07-17","2018-07-18","2018-07-19","2018-07-20","2018-07-21"]
[null,null,{"$f":"IF(WEEKDAY(CalendarDay)=Giá_trị_đầu_tuần,CONCATENATE(\"Tuần \",WEEKNUM(CalendarDay),\"/Ngày \",CalendarDay-DATE(YEAR(CalendarDay),1,0)),CONCATENATE(\"Ngày \",CalendarDay-DATE(YEAR(CalendarDay),1,0)))","v":"Tuần 29/Ngày 196"},{"$f":"IF(WEEKDAY(CalendarDay)=Giá_trị_đầu_tuần,CONCATENATE(\"Tuần \",WEEKNUM(CalendarDay),\"/Ngày \",CalendarDay-DATE(YEAR(CalendarDay),1,0)),CONCATENATE(\"Ngày \",CalendarDay-DATE(YEAR(CalendarDay),1,0)))","v":"Ngày 197"},{"$f":"IF(WEEKDAY(CalendarDay)=Giá_trị_đầu_tuần,CONCATENATE(\"Tuần \",WEEKNUM(CalendarDay),\"/Ngày \",CalendarDay-DATE(YEAR(CalendarDay),1,0)),CONCATENATE(\"Ngày \",CalendarDay-DATE(YEAR(CalendarDay),1,0)))","v":"Ngày 198"},{"$f":"IF(WEEKDAY(CalendarDay)=Giá_trị_đầu_tuần,CONCATENATE(\"Tuần \",WEEKNUM(CalendarDay),\"/Ngày \",CalendarDay-DATE(YEAR(CalendarDay),1,0)),CONCATENATE(\"Ngày \",CalendarDay-DATE(YEAR(CalendarDay),1,0)))","v":"Ngày 199"},{"$f":"IF(WEEKDAY(CalendarDay)=Giá_trị_đầu_tuần,CONCATENATE(\"Tuần \",WEEKNUM(CalendarDay),\"/Ngày \",CalendarDay-DATE(YEAR(CalendarDay),1,0)),CONCATENATE(\"Ngày \",CalendarDay-DATE(YEAR(CalendarDay),1,0)))","v":"Ngày 200"},{"$f":"IF(WEEKDAY(CalendarDay)=Giá_trị_đầu_tuần,CONCATENATE(\"Tuần \",WEEKNUM(CalendarDay),\"/Ngày \",CalendarDay-DATE(YEAR(CalendarDay),1,0)),CONCATENATE(\"Ngày \",CalendarDay-DATE(YEAR(CalendarDay),1,0)))","v":"Ngày 201"},{"$f":"IF(WEEKDAY(CalendarDay)=Giá_trị_đầu_tuần,CONCATENATE(\"Tuần \",WEEKNUM(CalendarDay),\"/Ngày \",CalendarDay-DATE(YEAR(CalendarDay),1,0)),CONCATENATE(\"Ngày \",CalendarDay-DATE(YEAR(CalendarDay),1,0)))","v":"Ngày 202"}]
[]
[null,null,{"$f":"Ngày_và_tuần+DATE(Năm_trên_lịch,7,1)-WEEKDAY(DATE(Năm_trên_lịch,7,1),(Đầu_tuần=\"T2\")+1)+22","v":"2018-07-22"},"2018-07-23","2018-07-24","2018-07-25","2018-07-26","2018-07-27","2018-07-28"]
[null,null,{"$f":"IF(WEEKDAY(CalendarDay)=Giá_trị_đầu_tuần,CONCATENATE(\"Tuần \",WEEKNUM(CalendarDay),\"/Ngày \",CalendarDay-DATE(YEAR(CalendarDay),1,0)),CONCATENATE(\"Ngày \",CalendarDay-DATE(YEAR(CalendarDay),1,0)))","v":"Tuần 30/Ngày 203"},{"$f":"IF(WEEKDAY(CalendarDay)=Giá_trị_đầu_tuần,CONCATENATE(\"Tuần \",WEEKNUM(CalendarDay),\"/Ngày \",CalendarDay-DATE(YEAR(CalendarDay),1,0)),CONCATENATE(\"Ngày \",CalendarDay-DATE(YEAR(CalendarDay),1,0)))","v":"Ngày 204"},{"$f":"IF(WEEKDAY(CalendarDay)=Giá_trị_đầu_tuần,CONCATENATE(\"Tuần \",WEEKNUM(CalendarDay),\"/Ngày \",CalendarDay-DATE(YEAR(CalendarDay),1,0)),CONCATENATE(\"Ngày \",CalendarDay-DATE(YEAR(CalendarDay),1,0)))","v":"Ngày 205"},{"$f":"IF(WEEKDAY(CalendarDay)=Giá_trị_đầu_tuần,CONCATENATE(\"Tuần \",WEEKNUM(CalendarDay),\"/Ngày \",CalendarDay-DATE(YEAR(CalendarDay),1,0)),CONCATENATE(\"Ngày \",CalendarDay-DATE(YEAR(CalendarDay),1,0)))","v":"Ngày 206"},{"$f":"IF(WEEKDAY(CalendarDay)=Giá_trị_đầu_tuần,CONCATENATE(\"Tuần \",WEEKNUM(CalendarDay),\"/Ngày \",CalendarDay-DATE(YEAR(CalendarDay),1,0)),CONCATENATE(\"Ngày \",CalendarDay-DATE(YEAR(CalendarDay),1,0)))","v":"Ngày 207"},{"$f":"IF(WEEKDAY(CalendarDay)=Giá_trị_đầu_tuần,CONCATENATE(\"Tuần \",WEEKNUM(CalendarDay),\"/Ngày \",CalendarDay-DATE(YEAR(CalendarDay),1,0)),CONCATENATE(\"Ngày \",CalendarDay-DATE(YEAR(CalendarDay),1,0)))","v":"Ngày 208"},{"$f":"IF(WEEKDAY(CalendarDay)=Giá_trị_đầu_tuần,CONCATENATE(\"Tuần \",WEEKNUM(CalendarDay),\"/Ngày \",CalendarDay-DATE(YEAR(CalendarDay),1,0)),CONCATENATE(\"Ngày \",CalendarDay-DATE(YEAR(CalendarDay),1,0)))","v":"Ngày 209"}]
[]
[null,null,{"$f":"Ngày_và_tuần+DATE(Năm_trên_lịch,7,1)-WEEKDAY(DATE(Năm_trên_lịch,7,1),(Đầu_tuần=\"T2\")+1)+29","v":"2018-07-29"},"2018-07-30","2018-07-31","2018-08-01","2018-08-02","2018-08-03","2018-08-04"]
[null,null,{"$f":"IF(WEEKDAY(CalendarDay)=Giá_trị_đầu_tuần,CONCATENATE(\"Tuần \",WEEKNUM(CalendarDay),\"/Ngày \",CalendarDay-DATE(YEAR(CalendarDay),1,0)),CONCATENATE(\"Ngày \",CalendarDay-DATE(YEAR(CalendarDay),1,0)))","v":"Tuần 31/Ngày 210"},{"$f":"IF(WEEKDAY(CalendarDay)=Giá_trị_đầu_tuần,CONCATENATE(\"Tuần \",WEEKNUM(CalendarDay),\"/Ngày \",CalendarDay-DATE(YEAR(CalendarDay),1,0)),CONCATENATE(\"Ngày \",CalendarDay-DATE(YEAR(CalendarDay),1,0)))","v":"Ngày 211"},{"$f":"IF(WEEKDAY(CalendarDay)=Giá_trị_đầu_tuần,CONCATENATE(\"Tuần \",WEEKNUM(CalendarDay),\"/Ngày \",CalendarDay-DATE(YEAR(CalendarDay),1,0)),CONCATENATE(\"Ngày \",CalendarDay-DATE(YEAR(CalendarDay),1,0)))","v":"Ngày 212"},{"$f":"IF(WEEKDAY(CalendarDay)=Giá_trị_đầu_tuần,CONCATENATE(\"Tuần \",WEEKNUM(CalendarDay),\"/Ngày \",CalendarDay-DATE(YEAR(CalendarDay),1,0)),CONCATENATE(\"Ngày \",CalendarDay-DATE(YEAR(CalendarDay),1,0)))","v":"Ngày 213"},{"$f":"IF(WEEKDAY(CalendarDay)=Giá_trị_đầu_tuần,CONCATENATE(\"Tuần \",WEEKNUM(CalendarDay),\"/Ngày \",CalendarDay-DATE(YEAR(CalendarDay),1,0)),CONCATENATE(\"Ngày \",CalendarDay-DATE(YEAR(CalendarDay),1,0)))","v":"Ngày 214"},{"$f":"IF(WEEKDAY(CalendarDay)=Giá_trị_đầu_tuần,CONCATENATE(\"Tuần \",WEEKNUM(CalendarDay),\"/Ngày \",CalendarDay-DATE(YEAR(CalendarDay),1,0)),CONCATENATE(\"Ngày \",CalendarDay-DATE(YEAR(CalendarDay),1,0)))","v":"Ngày 215"},{"$f":"IF(WEEKDAY(CalendarDay)=Giá_trị_đầu_tuần,CONCATENATE(\"Tuần \",WEEKNUM(CalendarDay),\"/Ngày \",CalendarDay-DATE(YEAR(CalendarDay),1,0)),CONCATENATE(\"Ngày \",CalendarDay-DATE(YEAR(CalendarDay),1,0)))","v":"Ngày 216"}]
[{"$nulls":4},"GHI CHÚ"]
[]
[null,null,{"$f":"Ngày_và_tuần+DATE(Năm_trên_lịch,7,1)-WEEKDAY(DATE(Năm_trên_lịch,7,1),(Đầu_tuần=\"T2\")+1)+36","v":"2018-08-05"},"2018-08-06"]
[null,null,{"$f":"IF(WEEKDAY(CalendarDay)=Giá_trị_đầu_tuần,CONCATENATE(\"Tuần \",WEEKNUM(CalendarDay),\"/Ngày \",CalendarDay-DATE(YEAR(CalendarDay),1,0)),CONCATENATE(\"Ngày \",CalendarDay-DATE(YEAR(CalendarDay),1,0)))","v":"Tuần 32/Ngày 217"},{"$f":"IF(WEEKDAY(CalendarDay)=Giá_trị_đầu_tuần,CONCATENATE(\"Tuần \",WEEKNUM(CalendarDay),\"/Ngày \",CalendarDay-DATE(YEAR(CalendarDay),1,0)),CONCATENATE(\"Ngày \",CalendarDay-DATE(YEAR(CalendarDay),1,0)))","v":"Ngày 218"}]

{"sheet":"THG8","index":7,"n_rows":20,"n_cols":9,"rows_kept":20,"merged":[[16,2,17,2],[17,4,19,8]]}
[null,"THG8",{"$f":"UPPER(TEXT(Đầu_tuần,\"ddd\"))","v":"CN"},{"$f":"UPPER(TEXT(D3,\"aaa\"))","v":"T2"},"T3","TƯ","NĂM","SÁU","BẢY"]
[null,{"$f":"Năm_trên_lịch","v":2018}]
[null,null,{"$f":"Ngày_và_tuần+DATE(Năm_trên_lịch,8,1)-WEEKDAY(DATE(Năm_trên_lịch,8,1),(Đầu_tuần=\"T2\")+1)+1","v":"2018-07-29"},"2018-07-30","2018-07-31","2018-08-01","2018-08-02","2018-08-03","2018-08-04"]
[null,null,{"$f":"IF(DAY(CalendarDay)=1,CONCATENATE(\"Tuần \",WEEKNUM(CalendarDay),\"/Ngày \",CalendarDay-DATE(YEAR(CalendarDay),1,0)),CONCATENATE(\"Ngày \",CalendarDay-DATE(YEAR(CalendarDay),1,0)))","v":"Ngày 210"},{"$f":"IF(DAY(CalendarDay)=1,CONCATENATE(\"Tuần \",WEEKNUM(CalendarDay),\"/Ngày \",CalendarDay-DATE(YEAR(CalendarDay),1,0)),CONCATENATE(\"Ngày \",CalendarDay-DATE(YEAR(CalendarDay),1,0)))","v":"Ngày 211"},{"$f":"IF(DAY(CalendarDay)=1,CONCATENATE(\"Tuần \",WEEKNUM(CalendarDay),\"/Ngày \",CalendarDay-DATE(YEAR(CalendarDay),1,0)),CONCATENATE(\"Ngày \",CalendarDay-DATE(YEAR(CalendarDay),1,0)))","v":"Ngày 212"},{"$f":"IF(DAY(CalendarDay)=1,CONCATENATE(\"Tuần \",WEEKNUM(CalendarDay),\"/Ngày \",CalendarDay-DATE(YEAR(CalendarDay),1,0)),CONCATENATE(\"Ngày \",CalendarDay-DATE(YEAR(CalendarDay),1,0)))","v":"Tuần 31/Ngày 213"},{"$f":"IF(DAY(CalendarDay)=1,CONCATENATE(\"Tuần \",WEEKNUM(CalendarDay),\"/Ngày \",CalendarDay-DATE(YEAR(CalendarDay),1,0)),CONCATENATE(\"Ngày \",CalendarDay-DATE(YEAR(CalendarDay),1,0)))","v":"Ngày 214"},{"$f":"IF(DAY(CalendarDay)=1,CONCATENATE(\"Tuần \",WEEKNUM(CalendarDay),\"/Ngày \",CalendarDay-DATE(YEAR(CalendarDay),1,0)),CONCATENATE(\"Ngày \",CalendarDay-DATE(YEAR(CalendarDay),1,0)))","v":"Ngày 215"},{"$f":"IF(DAY(CalendarDay)=1,CONCATENATE(\"Tuần \",WEEKNUM(CalendarDay),\"/Ngày \",CalendarDay-DATE(YEAR(CalendarDay),1,0)),CONCATENATE(\"Ngày \",CalendarDay-DATE(YEAR(CalendarDay),1,0)))","v":"Ngày 216"}]
[]
[null,null,{"$f":"Ngày_và_tuần+DATE(Năm_trên_lịch,8,1)-WEEKDAY(DATE(Năm_trên_lịch,8,1),(Đầu_tuần=\"T2\")+1)+8","v":"2018-08-05"},"2018-08-06","2018-08-07","2018-08-08","2018-08-09","2018-08-10","2018-08-11"]
[null,null,{"$f":"IF(WEEKDAY(CalendarDay)=Giá_trị_đầu_tuần,CONCATENATE(\"Tuần \",WEEKNUM(CalendarDay),\"/Ngày \",CalendarDay-DATE(YEAR(CalendarDay),1,0)),CONCATENATE(\"Ngày \",CalendarDay-DATE(YEAR(CalendarDay),1,0)))","v":"Tuần 32/Ngày 217"},{"$f":"IF(WEEKDAY(CalendarDay)=Giá_trị_đầu_tuần,CONCATENATE(\"Tuần \",WEEKNUM(CalendarDay),\"/Ngày \",CalendarDay-DATE(YEAR(CalendarDay),1,0)),CONCATENATE(\"Ngày \",CalendarDay-DATE(YEAR(CalendarDay),1,0)))","v":"Ngày 218"},{"$f":"IF(WEEKDAY(CalendarDay)=Giá_trị_đầu_tuần,CONCATENATE(\"Tuần \",WEEKNUM(CalendarDay),\"/Ngày \",CalendarDay-DATE(YEAR(CalendarDay),1,0)),CONCATENATE(\"Ngày \",CalendarDay-DATE(YEAR(CalendarDay),1,0)))","v":"Ngày 219"},{"$f":"IF(WEEKDAY(CalendarDay)=Giá_trị_đầu_tuần,CONCATENATE(\"Tuần \",WEEKNUM(CalendarDay),\"/Ngày \",CalendarDay-DATE(YEAR(CalendarDay),1,0)),CONCATENATE(\"Ngày \",CalendarDay-DATE(YEAR(CalendarDay),1,0)))","v":"Ngày 220"},{"$f":"IF(WEEKDAY(CalendarDay)=Giá_trị_đầu_tuần,CONCATENATE(\"Tuần \",WEEKNUM(CalendarDay),\"/Ngày \",CalendarDay-DATE(YEAR(CalendarDay),1,0)),CONCATENATE(\"Ngày \",CalendarDay-DATE(YEAR(CalendarDay),1,0)))","v":"Ngày 221"},{"$f":"IF(WEEKDAY(CalendarDay)=Giá_trị_đầu_tuần,CONCATENATE(\"Tuần \",WEEKNUM(CalendarDay),\"/Ngày \",CalendarDay-DATE(YEAR(CalendarDay),1,0)),CONCATENATE(\"Ngày \",CalendarDay-DATE(YEAR(CalendarDay),1,0)))","v":"Ngày 222"},{"$f":"IF(WEEKDAY(CalendarDay)=Giá_trị_đầu_tuần,CONCATENATE(\"Tuần \",WEEKNUM(CalendarDay),\"/Ngày \",CalendarDay-DATE(YEAR(CalendarDay),1,0)),CONCATENATE(\"Ngày \",CalendarDay-DATE(YEAR(CalendarDay),1,0)))","v":"Ngày 223"}]
[]
[null,null,{"$f":"Ngày_và_tuần+DATE(Năm_trên_lịch,8,1)-WEEKDAY(DATE(Năm_trên_lịch,8,1),(Đầu_tuần=\"T2\")+1)+15","v":"2018-08-12"},"2018-08-13","2018-08-14","2018-08-15","2018-08-16","2018-08-17","2018-08-18"]
[null,null,{"$f":"IF(WEEKDAY(CalendarDay)=Giá_trị_đầu_tuần,CONCATENATE(\"Tuần \",WEEKNUM(CalendarDay),\"/Ngày \",CalendarDay-DATE(YEAR(CalendarDay),1,0)),CONCATENATE(\"Ngày \",CalendarDay-DATE(YEAR(CalendarDay),1,0)))","v":"Tuần 33/Ngày 224"},{"$f":"IF(WEEKDAY(CalendarDay)=Giá_trị_đầu_tuần,CONCATENATE(\"Tuần \",WEEKNUM(CalendarDay),\"/Ngày \",CalendarDay-DATE(YEAR(CalendarDay),1,0)),CONCATENATE(\"Ngày \",CalendarDay-DATE(YEAR(CalendarDay),1,0)))","v":"Ngày 225"},{"$f":"IF(WEEKDAY(CalendarDay)=Giá_trị_đầu_tuần,CONCATENATE(\"Tuần \",WEEKNUM(CalendarDay),\"/Ngày \",CalendarDay-DATE(YEAR(CalendarDay),1,0)),CONCATENATE(\"Ngày \",CalendarDay-DATE(YEAR(CalendarDay),1,0)))","v":"Ngày 226"},{"$f":"IF(WEEKDAY(CalendarDay)=Giá_trị_đầu_tuần,CONCATENATE(\"Tuần \",WEEKNUM(CalendarDay),\"/Ngày \",CalendarDay-DATE(YEAR(CalendarDay),1,0)),CONCATENATE(\"Ngày \",CalendarDay-DATE(YEAR(CalendarDay),1,0)))","v":"Ngày 227"},{"$f":"IF(WEEKDAY(CalendarDay)=Giá_trị_đầu_tuần,CONCATENATE(\"Tuần \",WEEKNUM(CalendarDay),\"/Ngày \",CalendarDay-DATE(YEAR(CalendarDay),1,0)),CONCATENATE(\"Ngày \",CalendarDay-DATE(YEAR(CalendarDay),1,0)))","v":"Ngày 228"},{"$f":"IF(WEEKDAY(CalendarDay)=Giá_trị_đầu_tuần,CONCATENATE(\"Tuần \",WEEKNUM(CalendarDay),\"/Ngày \",CalendarDay-DATE(YEAR(CalendarDay),1,0)),CONCATENATE(\"Ngày \",CalendarDay-DATE(YEAR(CalendarDay),1,0)))","v":"Ngày 229"},{"$f":"IF(WEEKDAY(CalendarDay)=Giá_trị_đầu_tuần,CONCATENATE(\"Tuần \",WEEKNUM(CalendarDay),\"/Ngày \",CalendarDay-DATE(YEAR(CalendarDay),1,0)),CONCATENATE(\"Ngày \",CalendarDay-DATE(YEAR(CalendarDay),1,0)))","v":"Ngày 230"}]
[]
[null,null,{"$f":"Ngày_và_tuần+DATE(Năm_trên_lịch,8,1)-WEEKDAY(DATE(Năm_trên_lịch,8,1),(Đầu_tuần=\"T2\")+1)+22","v":"2018-08-19"},"2018-08-20","2018-08-21","2018-08-22","2018-08-23","2018-08-24","2018-08-25"]
[null,null,{"$f":"IF(WEEKDAY(CalendarDay)=Giá_trị_đầu_tuần,CONCATENATE(\"Tuần \",WEEKNUM(CalendarDay),\"/Ngày \",CalendarDay-DATE(YEAR(CalendarDay),1,0)),CONCATENATE(\"Ngày \",CalendarDay-DATE(YEAR(CalendarDay),1,0)))","v":"Tuần 34/Ngày 231"},{"$f":"IF(WEEKDAY(CalendarDay)=Giá_trị_đầu_tuần,CONCATENATE(\"Tuần \",WEEKNUM(CalendarDay),\"/Ngày \",CalendarDay-DATE(YEAR(CalendarDay),1,0)),CONCATENATE(\"Ngày \",CalendarDay-DATE(YEAR(CalendarDay),1,0)))","v":"Ngày 232"},{"$f":"IF(WEEKDAY(CalendarDay)=Giá_trị_đầu_tuần,CONCATENATE(\"Tuần \",WEEKNUM(CalendarDay),\"/Ngày \",CalendarDay-DATE(YEAR(CalendarDay),1,0)),CONCATENATE(\"Ngày \",CalendarDay-DATE(YEAR(CalendarDay),1,0)))","v":"Ngày 233"},{"$f":"IF(WEEKDAY(CalendarDay)=Giá_trị_đầu_tuần,CONCATENATE(\"Tuần \",WEEKNUM(CalendarDay),\"/Ngày \",CalendarDay-DATE(YEAR(CalendarDay),1,0)),CONCATENATE(\"Ngày \",CalendarDay-DATE(YEAR(CalendarDay),1,0)))","v":"Ngày 234"},{"$f":"IF(WEEKDAY(CalendarDay)=Giá_trị_đầu_tuần,CONCATENATE(\"Tuần \",WEEKNUM(CalendarDay),\"/Ngày \",CalendarDay-DATE(YEAR(CalendarDay),1,0)),CONCATENATE(\"Ngày \",CalendarDay-DATE(YEAR(CalendarDay),1,0)))","v":"Ngày 235"},{"$f":"IF(WEEKDAY(CalendarDay)=Giá_trị_đầu_tuần,CONCATENATE(\"Tuần \",WEEKNUM(CalendarDay),\"/Ngày \",CalendarDay-DATE(YEAR(CalendarDay),1,0)),CONCATENATE(\"Ngày \",CalendarDay-DATE(YEAR(CalendarDay),1,0)))","v":"Ngày 236"},{"$f":"IF(WEEKDAY(CalendarDay)=Giá_trị_đầu_tuần,CONCATENATE(\"Tuần \",WEEKNUM(CalendarDay),\"/Ngày \",CalendarDay-DATE(YEAR(CalendarDay),1,0)),CONCATENATE(\"Ngày \",CalendarDay-DATE(YEAR(CalendarDay),1,0)))","v":"Ngày 237"}]
[]
[null,null,{"$f":"Ngày_và_tuần+DATE(Năm_trên_lịch,8,1)-WEEKDAY(DATE(Năm_trên_lịch,8,1),(Đầu_tuần=\"T2\")+1)+29","v":"2018-08-26"},"2018-08-27","2018-08-28","2018-08-29","2018-08-30","2018-08-31","2018-09-01"]
[null,null,{"$f":"IF(WEEKDAY(CalendarDay)=Giá_trị_đầu_tuần,CONCATENATE(\"Tuần \",WEEKNUM(CalendarDay),\"/Ngày \",CalendarDay-DATE(YEAR(CalendarDay),1,0)),CONCATENATE(\"Ngày \",CalendarDay-DATE(YEAR(CalendarDay),1,0)))","v":"Tuần 35/Ngày 238"},{"$f":"IF(WEEKDAY(CalendarDay)=Giá_trị_đầu_tuần,CONCATENATE(\"Tuần \",WEEKNUM(CalendarDay),\"/Ngày \",CalendarDay-DATE(YEAR(CalendarDay),1,0)),CONCATENATE(\"Ngày \",CalendarDay-DATE(YEAR(CalendarDay),1,0)))","v":"Ngày 239"},{"$f":"IF(WEEKDAY(CalendarDay)=Giá_trị_đầu_tuần,CONCATENATE(\"Tuần \",WEEKNUM(CalendarDay),\"/Ngày \",CalendarDay-DATE(YEAR(CalendarDay),1,0)),CONCATENATE(\"Ngày \",CalendarDay-DATE(YEAR(CalendarDay),1,0)))","v":"Ngày 240"},{"$f":"IF(WEEKDAY(CalendarDay)=Giá_trị_đầu_tuần,CONCATENATE(\"Tuần \",WEEKNUM(CalendarDay),\"/Ngày \",CalendarDay-DATE(YEAR(CalendarDay),1,0)),CONCATENATE(\"Ngày \",CalendarDay-DATE(YEAR(CalendarDay),1,0)))","v":"Ngày 241"},{"$f":"IF(WEEKDAY(CalendarDay)=Giá_trị_đầu_tuần,CONCATENATE(\"Tuần \",WEEKNUM(CalendarDay),\"/Ngày \",CalendarDay-DATE(YEAR(CalendarDay),1,0)),CONCATENATE(\"Ngày \",CalendarDay-DATE(YEAR(CalendarDay),1,0)))","v":"Ngày 242"},{"$f":"IF(WEEKDAY(CalendarDay)=Giá_trị_đầu_tuần,CONCATENATE(\"Tuần \",WEEKNUM(CalendarDay),\"/Ngày \",CalendarDay-DATE(YEAR(CalendarDay),1,0)),CONCATENATE(\"Ngày \",CalendarDay-DATE(YEAR(CalendarDay),1,0)))","v":"Ngày 243"},{"$f":"IF(WEEKDAY(CalendarDay)=Giá_trị_đầu_tuần,CONCATENATE(\"Tuần \",WEEKNUM(CalendarDay),\"/Ngày \",CalendarDay-DATE(YEAR(CalendarDay),1,0)),CONCATENATE(\"Ngày \",CalendarDay-DATE(YEAR(CalendarDay),1,0)))","v":"Ngày 244"}]
[{"$nulls":4},"GHI CHÚ"]
[]
[null,null,{"$f":"Ngày_và_tuần+DATE(Năm_trên_lịch,8,1)-WEEKDAY(DATE(Năm_trên_lịch,8,1),(Đầu_tuần=\"T2\")+1)+36","v":"2018-09-02"},"2018-09-03"]
[null,null,{"$f":"IF(WEEKDAY(CalendarDay)=Giá_trị_đầu_tuần,CONCATENATE(\"Tuần \",WEEKNUM(CalendarDay),\"/Ngày \",CalendarDay-DATE(YEAR(CalendarDay),1,0)),CONCATENATE(\"Ngày \",CalendarDay-DATE(YEAR(CalendarDay),1,0)))","v":"Tuần 36/Ngày 245"},{"$f":"IF(WEEKDAY(CalendarDay)=Giá_trị_đầu_tuần,CONCATENATE(\"Tuần \",WEEKNUM(CalendarDay),\"/Ngày \",CalendarDay-DATE(YEAR(CalendarDay),1,0)),CONCATENATE(\"Ngày \",CalendarDay-DATE(YEAR(CalendarDay),1,0)))","v":"Ngày 246"}]

{"sheet":"THG9","index":8,"n_rows":20,"n_cols":9,"rows_kept":20,"merged":[[16,2,17,2],[17,4,19,8]]}
[null,"THG9",{"$f":"UPPER(TEXT(Đầu_tuần,\"ddd\"))","v":"CN"},{"$f":"UPPER(TEXT(D3,\"aaa\"))","v":"T2"},"T3","TƯ","NĂM","SÁU","BẢY"]
[null,{"$f":"Năm_trên_lịch","v":2018}]
[null,null,{"$f":"Ngày_và_tuần+DATE(Năm_trên_lịch,9,1)-WEEKDAY(DATE(Năm_trên_lịch,9,1),(Đầu_tuần=\"T2\")+1)+1","v":"2018-08-26"},"2018-08-27","2018-08-28","2018-08-29","2018-08-30","2018-08-31","2018-09-01"]
[null,null,{"$f":"IF(DAY(CalendarDay)=1,CONCATENATE(\"Tuần \",WEEKNUM(CalendarDay),\"/Ngày \",CalendarDay-DATE(YEAR(CalendarDay),1,0)),CONCATENATE(\"Ngày \",CalendarDay-DATE(YEAR(CalendarDay),1,0)))","v":"Ngày 238"},{"$f":"IF(DAY(CalendarDay)=1,CONCATENATE(\"Tuần \",WEEKNUM(CalendarDay),\"/Ngày \",CalendarDay-DATE(YEAR(CalendarDay),1,0)),CONCATENATE(\"Ngày \",CalendarDay-DATE(YEAR(CalendarDay),1,0)))","v":"Ngày 239"},{"$f":"IF(DAY(CalendarDay)=1,CONCATENATE(\"Tuần \",WEEKNUM(CalendarDay),\"/Ngày \",CalendarDay-DATE(YEAR(CalendarDay),1,0)),CONCATENATE(\"Ngày \",CalendarDay-DATE(YEAR(CalendarDay),1,0)))","v":"Ngày 240"},{"$f":"IF(DAY(CalendarDay)=1,CONCATENATE(\"Tuần \",WEEKNUM(CalendarDay),\"/Ngày \",CalendarDay-DATE(YEAR(CalendarDay),1,0)),CONCATENATE(\"Ngày \",CalendarDay-DATE(YEAR(CalendarDay),1,0)))","v":"Ngày 241"},{"$f":"IF(DAY(CalendarDay)=1,CONCATENATE(\"Tuần \",WEEKNUM(CalendarDay),\"/Ngày \",CalendarDay-DATE(YEAR(CalendarDay),1,0)),CONCATENATE(\"Ngày \",CalendarDay-DATE(YEAR(CalendarDay),1,0)))","v":"Ngày 242"},{"$f":"IF(DAY(CalendarDay)=1,CONCATENATE(\"Tuần \",WEEKNUM(CalendarDay),\"/Ngày \",CalendarDay-DATE(YEAR(CalendarDay),1,0)),CONCATENATE(\"Ngày \",CalendarDay-DATE(YEAR(CalendarDay),1,0)))","v":"Ngày 243"},{"$f":"IF(DAY(CalendarDay)=1,CONCATENATE(\"Tuần \",WEEKNUM(CalendarDay),\"/Ngày \",CalendarDay-DATE(YEAR(CalendarDay),1,0)),CONCATENATE(\"Ngày \",CalendarDay-DATE(YEAR(CalendarDay),1,0)))","v":"Tuần 35/Ngày 244"}]
[]
[null,null,{"$f":"Ngày_và_tuần+DATE(Năm_trên_lịch,9,1)-WEEKDAY(DATE(Năm_trên_lịch,9,1),(Đầu_tuần=\"T2\")+1)+8","v":"2018-09-02"},"2018-09-03","2018-09-04","2018-09-05","2018-09-06","2018-09-07","2018-09-08"]
[null,null,{"$f":"IF(WEEKDAY(CalendarDay)=Giá_trị_đầu_tuần,CONCATENATE(\"Tuần \",WEEKNUM(CalendarDay),\"/Ngày \",CalendarDay-DATE(YEAR(CalendarDay),1,0)),CONCATENATE(\"Ngày \",CalendarDay-DATE(YEAR(CalendarDay),1,0)))","v":"Tuần 36/Ngày 245"},{"$f":"IF(WEEKDAY(CalendarDay)=Giá_trị_đầu_tuần,CONCATENATE(\"Tuần \",WEEKNUM(CalendarDay),\"/Ngày \",CalendarDay-DATE(YEAR(CalendarDay),1,0)),CONCATENATE(\"Ngày \",CalendarDay-DATE(YEAR(CalendarDay),1,0)))","v":"Ngày 246"},{"$f":"IF(WEEKDAY(CalendarDay)=Giá_trị_đầu_tuần,CONCATENATE(\"Tuần \",WEEKNUM(CalendarDay),\"/Ngày \",CalendarDay-DATE(YEAR(CalendarDay),1,0)),CONCATENATE(\"Ngày \",CalendarDay-DATE(YEAR(CalendarDay),1,0)))","v":"Ngày 247"},{"$f":"IF(WEEKDAY(CalendarDay)=Giá_trị_đầu_tuần,CONCATENATE(\"Tuần \",WEEKNUM(CalendarDay),\"/Ngày \",CalendarDay-DATE(YEAR(CalendarDay),1,0)),CONCATENATE(\"Ngày \",CalendarDay-DATE(YEAR(CalendarDay),1,0)))","v":"Ngày 248"},{"$f":"IF(WEEKDAY(CalendarDay)=Giá_trị_đầu_tuần,CONCATENATE(\"Tuần \",WEEKNUM(CalendarDay),\"/Ngày \",CalendarDay-DATE(YEAR(CalendarDay),1,0)),CONCATENATE(\"Ngày \",CalendarDay-DATE(YEAR(CalendarDay),1,0)))","v":"Ngày 249"},{"$f":"IF(WEEKDAY(CalendarDay)=Giá_trị_đầu_tuần,CONCATENATE(\"Tuần \",WEEKNUM(CalendarDay),\"/Ngày \",CalendarDay-DATE(YEAR(CalendarDay),1,0)),CONCATENATE(\"Ngày \",CalendarDay-DATE(YEAR(CalendarDay),1,0)))","v":"Ngày 250"},{"$f":"IF(WEEKDAY(CalendarDay)=Giá_trị_đầu_tuần,CONCATENATE(\"Tuần \",WEEKNUM(CalendarDay),\"/Ngày \",CalendarDay-DATE(YEAR(CalendarDay),1,0)),CONCATENATE(\"Ngày \",CalendarDay-DATE(YEAR(CalendarDay),1,0)))","v":"Ngày 251"}]
[]
[null,null,{"$f":"Ngày_và_tuần+DATE(Năm_trên_lịch,9,1)-WEEKDAY(DATE(Năm_trên_lịch,9,1),(Đầu_tuần=\"T2\")+1)+15","v":"2018-09-09"},"2018-09-10","2018-09-11","2018-09-12","2018-09-13","2018-09-14","2018-09-15"]
[null,null,{"$f":"IF(WEEKDAY(CalendarDay)=Giá_trị_đầu_tuần,CONCATENATE(\"Tuần \",WEEKNUM(CalendarDay),\"/Ngày \",CalendarDay-DATE(YEAR(CalendarDay),1,0)),CONCATENATE(\"Ngày \",CalendarDay-DATE(YEAR(CalendarDay),1,0)))","v":"Tuần 37/Ngày 252"},{"$f":"IF(WEEKDAY(CalendarDay)=Giá_trị_đầu_tuần,CONCATENATE(\"Tuần \",WEEKNUM(CalendarDay),\"/Ngày \",CalendarDay-DATE(YEAR(CalendarDay),1,0)),CONCATENATE(\"Ngày \",CalendarDay-DATE(YEAR(CalendarDay),1,0)))","v":"Ngày 253"},{"$f":"IF(WEEKDAY(CalendarDay)=Giá_trị_đầu_tuần,CONCATENATE(\"Tuần \",WEEKNUM(CalendarDay),\"/Ngày \",CalendarDay-DATE(YEAR(CalendarDay),1,0)),CONCATENATE(\"Ngày \",CalendarDay-DATE(YEAR(CalendarDay),1,0)))","v":"Ngày 254"},{"$f":"IF(WEEKDAY(CalendarDay)=Giá_trị_đầu_tuần,CONCATENATE(\"Tuần \",WEEKNUM(CalendarDay),\"/Ngày \",CalendarDay-DATE(YEAR(CalendarDay),1,0)),CONCATENATE(\"Ngày \",CalendarDay-DATE(YEAR(CalendarDay),1,0)))","v":"Ngày 255"},{"$f":"IF(WEEKDAY(CalendarDay)=Giá_trị_đầu_tuần,CONCATENATE(\"Tuần \",WEEKNUM(CalendarDay),\"/Ngày \",CalendarDay-DATE(YEAR(CalendarDay),1,0)),CONCATENATE(\"Ngày \",CalendarDay-DATE(YEAR(CalendarDay),1,0)))","v":"Ngày 256"},{"$f":"IF(WEEKDAY(CalendarDay)=Giá_trị_đầu_tuần,CONCATENATE(\"Tuần \",WEEKNUM(CalendarDay),\"/Ngày \",CalendarDay-DATE(YEAR(CalendarDay),1,0)),CONCATENATE(\"Ngày \",CalendarDay-DATE(YEAR(CalendarDay),1,0)))","v":"Ngày 257"},{"$f":"IF(WEEKDAY(CalendarDay)=Giá_trị_đầu_tuần,CONCATENATE(\"Tuần \",WEEKNUM(CalendarDay),\"/Ngày \",CalendarDay-DATE(YEAR(CalendarDay),1,0)),CONCATENATE(\"Ngày \",CalendarDay-DATE(YEAR(CalendarDay),1,0)))","v":"Ngày 258"}]
[]
[null,null,{"$f":"Ngày_và_tuần+DATE(Năm_trên_lịch,9,1)-WEEKDAY(DATE(Năm_trên_lịch,9,1),(Đầu_tuần=\"T2\")+1)+22","v":"2018-09-16"},"2018-09-17","2018-09-18","2018-09-19","2018-09-20","2018-09-21","2018-09-22"]
[null,null,{"$f":"IF(WEEKDAY(CalendarDay)=Giá_trị_đầu_tuần,CONCATENATE(\"Tuần \",WEEKNUM(CalendarDay),\"/Ngày \",CalendarDay-DATE(YEAR(CalendarDay),1,0)),CONCATENATE(\"Ngày \",CalendarDay-DATE(YEAR(CalendarDay),1,0)))","v":"Tuần 38/Ngày 259"},{"$f":"IF(WEEKDAY(CalendarDay)=Giá_trị_đầu_tuần,CONCATENATE(\"Tuần \",WEEKNUM(CalendarDay),\"/Ngày \",CalendarDay-DATE(YEAR(CalendarDay),1,0)),CONCATENATE(\"Ngày \",CalendarDay-DATE(YEAR(CalendarDay),1,0)))","v":"Ngày 260"},{"$f":"IF(WEEKDAY(CalendarDay)=Giá_trị_đầu_tuần,CONCATENATE(\"Tuần \",WEEKNUM(CalendarDay),\"/Ngày \",CalendarDay-DATE(YEAR(CalendarDay),1,0)),CONCATENATE(\"Ngày \",CalendarDay-DATE(YEAR(CalendarDay),1,0)))","v":"Ngày 261"},{"$f":"IF(WEEKDAY(CalendarDay)=Giá_trị_đầu_tuần,CONCATENATE(\"Tuần \",WEEKNUM(CalendarDay),\"/Ngày \",CalendarDay-DATE(YEAR(CalendarDay),1,0)),CONCATENATE(\"Ngày \",CalendarDay-DATE(YEAR(CalendarDay),1,0)))","v":"Ngày 262"},{"$f":"IF(WEEKDAY(CalendarDay)=Giá_trị_đầu_tuần,CONCATENATE(\"Tuần \",WEEKNUM(CalendarDay),\"/Ngày \",CalendarDay-DATE(YEAR(CalendarDay),1,0)),CONCATENATE(\"Ngày \",CalendarDay-DATE(YEAR(CalendarDay),1,0)))","v":"Ngày 263"},{"$f":"IF(WEEKDAY(CalendarDay)=Giá_trị_đầu_tuần,CONCATENATE(\"Tuần \",WEEKNUM(CalendarDay),\"/Ngày \",CalendarDay-DATE(YEAR(CalendarDay),1,0)),CONCATENATE(\"Ngày \",CalendarDay-DATE(YEAR(CalendarDay),1,0)))","v":"Ngày 264"},{"$f":"IF(WEEKDAY(CalendarDay)=Giá_trị_đầu_tuần,CONCATENATE(\"Tuần \",WEEKNUM(CalendarDay),\"/Ngày \",CalendarDay-DATE(YEAR(CalendarDay),1,0)),CONCATENATE(\"Ngày \",CalendarDay-DATE(YEAR(CalendarDay),1,0)))","v":"Ngày 265"}]
[]
[null,null,{"$f":"Ngày_và_tuần+DATE(Năm_trên_lịch,9,1)-WEEKDAY(DATE(Năm_trên_lịch,9,1),(Đầu_tuần=\"T2\")+1)+29","v":"2018-09-23"},"2018-09-24","2018-09-25","2018-09-26","2018-09-27","2018-09-28","2018-09-29"]
[null,null,{"$f":"IF(WEEKDAY(CalendarDay)=Giá_trị_đầu_tuần,CONCATENATE(\"Tuần \",WEEKNUM(CalendarDay),\"/Ngày \",CalendarDay-DATE(YEAR(CalendarDay),1,0)),CONCATENATE(\"Ngày \",CalendarDay-DATE(YEAR(CalendarDay),1,0)))","v":"Tuần 39/Ngày 266"},{"$f":"IF(WEEKDAY(CalendarDay)=Giá_trị_đầu_tuần,CONCATENATE(\"Tuần \",WEEKNUM(CalendarDay),\"/Ngày \",CalendarDay-DATE(YEAR(CalendarDay),1,0)),CONCATENATE(\"Ngày \",CalendarDay-DATE(YEAR(CalendarDay),1,0)))","v":"Ngày 267"},{"$f":"IF(WEEKDAY(CalendarDay)=Giá_trị_đầu_tuần,CONCATENATE(\"Tuần \",WEEKNUM(CalendarDay),\"/Ngày \",CalendarDay-DATE(YEAR(CalendarDay),1,0)),CONCATENATE(\"Ngày \",CalendarDay-DATE(YEAR(CalendarDay),1,0)))","v":"Ngày 268"},{"$f":"IF(WEEKDAY(CalendarDay)=Giá_trị_đầu_tuần,CONCATENATE(\"Tuần \",WEEKNUM(CalendarDay),\"/Ngày \",CalendarDay-DATE(YEAR(CalendarDay),1,0)),CONCATENATE(\"Ngày \",CalendarDay-DATE(YEAR(CalendarDay),1,0)))","v":"Ngày 269"},{"$f":"IF(WEEKDAY(CalendarDay)=Giá_trị_đầu_tuần,CONCATENATE(\"Tuần \",WEEKNUM(CalendarDay),\"/Ngày \",CalendarDay-DATE(YEAR(CalendarDay),1,0)),CONCATENATE(\"Ngày \",CalendarDay-DATE(YEAR(CalendarDay),1,0)))","v":"Ngày 270"},{"$f":"IF(WEEKDAY(CalendarDay)=Giá_trị_đầu_tuần,CONCATENATE(\"Tuần \",WEEKNUM(CalendarDay),\"/Ngày \",CalendarDay-DATE(YEAR(CalendarDay),1,0)),CONCATENATE(\"Ngày \",CalendarDay-DATE(YEAR(CalendarDay),1,0)))","v":"Ngày 271"},{"$f":"IF(WEEKDAY(CalendarDay)=Giá_trị_đầu_tuần,CONCATENATE(\"Tuần \",WEEKNUM(CalendarDay),\"/Ngày \",CalendarDay-DATE(YEAR(CalendarDay),1,0)),CONCATENATE(\"Ngày \",CalendarDay-DATE(YEAR(CalendarDay),1,0)))","v":"Ngày 272"}]
[{"$nulls":4},"GHI CHÚ"]
[]
[null,null,{"$f":"Ngày_và_tuần+DATE(Năm_trên_lịch,9,1)-WEEKDAY(DATE(Năm_trên_lịch,9,1),(Đầu_tuần=\"T2\")+1)+36","v":"2018-09-30"},"2018-10-01"]
[null,null,{"$f":"IF(WEEKDAY(CalendarDay)=Giá_trị_đầu_tuần,CONCATENATE(\"Tuần \",WEEKNUM(CalendarDay),\"/Ngày \",CalendarDay-DATE(YEAR(CalendarDay),1,0)),CONCATENATE(\"Ngày \",CalendarDay-DATE(YEAR(CalendarDay),1,0)))","v":"Tuần 40/Ngày 273"},{"$f":"IF(WEEKDAY(CalendarDay)=Giá_trị_đầu_tuần,CONCATENATE(\"Tuần \",WEEKNUM(CalendarDay),\"/Ngày \",CalendarDay-DATE(YEAR(CalendarDay),1,0)),CONCATENATE(\"Ngày \",CalendarDay-DATE(YEAR(CalendarDay),1,0)))","v":"Ngày 274"}]

{"sheet":"THG10","index":9,"n_rows":20,"n_cols":9,"rows_kept":20,"merged":[[16,2,17,2],[17,4,19,8]]}
[null,"THG10",{"$f":"UPPER(TEXT(Đầu_tuần,\"ddd\"))","v":"CN"},{"$f":"UPPER(TEXT(D3,\"aaa\"))","v":"T2"},"T3","TƯ","NĂM","SÁU","BẢY"]
[null,{"$f":"Năm_trên_lịch","v":2018}]
[null,null,{"$f":"Ngày_và_tuần+DATE(Năm_trên_lịch,10,1)-WEEKDAY(DATE(Năm_trên_lịch,10,1),(Đầu_tuần=\"T2\")+1)+1","v":"2018-09-30"},"2018-10-01","2018-10-02","2018-10-03","2018-10-04","2018-10-05","2018-10-06"]
[null,null,{"$f":"IF(DAY(CalendarDay)=1,CONCATENATE(\"Tuần \",WEEKNUM(CalendarDay),\"/Ngày \",CalendarDay-DATE(YEAR(CalendarDay),1,0)),CONCATENATE(\"Ngày \",CalendarDay-DATE(YEAR(CalendarDay),1,0)))","v":"Ngày 273"},{"$f":"IF(DAY(CalendarDay)=1,CONCATENATE(\"Tuần \",WEEKNUM(CalendarDay),\"/Ngày \",CalendarDay-DATE(YEAR(CalendarDay),1,0)),CONCATENATE(\"Ngày \",CalendarDay-DATE(YEAR(CalendarDay),1,0)))","v":"Tuần 40/Ngày 274"},{"$f":"IF(DAY(CalendarDay)=1,CONCATENATE(\"Tuần \",WEEKNUM(CalendarDay),\"/Ngày \",CalendarDay-DATE(YEAR(CalendarDay),1,0)),CONCATENATE(\"Ngày \",CalendarDay-DATE(YEAR(CalendarDay),1,0)))","v":"Ngày 275"},{"$f":"IF(DAY(CalendarDay)=1,CONCATENATE(\"Tuần \",WEEKNUM(CalendarDay),\"/Ngày \",CalendarDay-DATE(YEAR(CalendarDay),1,0)),CONCATENATE(\"Ngày \",CalendarDay-DATE(YEAR(CalendarDay),1,0)))","v":"Ngày 276"},{"$f":"IF(DAY(CalendarDay)=1,CONCATENATE(\"Tuần \",WEEKNUM(CalendarDay),\"/Ngày \",CalendarDay-DATE(YEAR(CalendarDay),1,0)),CONCATENATE(\"Ngày \",CalendarDay-DATE(YEAR(CalendarDay),1,0)))","v":"Ngày 277"},{"$f":"IF(DAY(CalendarDay)=1,CONCATENATE(\"Tuần \",WEEKNUM(CalendarDay),\"/Ngày \",CalendarDay-DATE(YEAR(CalendarDay),1,0)),CONCATENATE(\"Ngày \",CalendarDay-DATE(YEAR(CalendarDay),1,0)))","v":"Ngày 278"},{"$f":"IF(DAY(CalendarDay)=1,CONCATENATE(\"Tuần \",WEEKNUM(CalendarDay),\"/Ngày \",CalendarDay-DATE(YEAR(CalendarDay),1,0)),CONCATENATE(\"Ngày \",CalendarDay-DATE(YEAR(CalendarDay),1,0)))","v":"Ngày 279"}]
[]
[null,null,{"$f":"Ngày_và_tuần+DATE(Năm_trên_lịch,10,1)-WEEKDAY(DATE(Năm_trên_lịch,10,1),(Đầu_tuần=\"T2\")+1)+8","v":"2018-10-07"},"2018-10-08","2018-10-09","2018-10-10","2018-10-11","2018-10-12","2018-10-13"]
[null,null,{"$f":"IF(WEEKDAY(CalendarDay)=Giá_trị_đầu_tuần,CONCATENATE(\"Tuần \",WEEKNUM(CalendarDay),\"/Ngày \",CalendarDay-DATE(YEAR(CalendarDay),1,0)),CONCATENATE(\"Ngày \",CalendarDay-DATE(YEAR(CalendarDay),1,0)))","v":"Tuần 41/Ngày 280"},{"$f":"IF(WEEKDAY(CalendarDay)=Giá_trị_đầu_tuần,CONCATENATE(\"Tuần \",WEEKNUM(CalendarDay),\"/Ngày \",CalendarDay-DATE(YEAR(CalendarDay),1,0)),CONCATENATE(\"Ngày \",CalendarDay-DATE(YEAR(CalendarDay),1,0)))","v":"Ngày 281"},{"$f":"IF(WEEKDAY(CalendarDay)=Giá_trị_đầu_tuần,CONCATENATE(\"Tuần \",WEEKNUM(CalendarDay),\"/Ngày \",CalendarDay-DATE(YEAR(CalendarDay),1,0)),CONCATENATE(\"Ngày \",CalendarDay-DATE(YEAR(CalendarDay),1,0)))","v":"Ngày 282"},{"$f":"IF(WEEKDAY(CalendarDay)=Giá_trị_đầu_tuần,CONCATENATE(\"Tuần \",WEEKNUM(CalendarDay),\"/Ngày \",CalendarDay-DATE(YEAR(CalendarDay),1,0)),CONCATENATE(\"Ngày \",CalendarDay-DATE(YEAR(CalendarDay),1,0)))","v":"Ngày 283"},{"$f":"IF(WEEKDAY(CalendarDay)=Giá_trị_đầu_tuần,CONCATENATE(\"Tuần \",WEEKNUM(CalendarDay),\"/Ngày \",CalendarDay-DATE(YEAR(CalendarDay),1,0)),CONCATENATE(\"Ngày \",CalendarDay-DATE(YEAR(CalendarDay),1,0)))","v":"Ngày 284"},{"$f":"IF(WEEKDAY(CalendarDay)=Giá_trị_đầu_tuần,CONCATENATE(\"Tuần \",WEEKNUM(CalendarDay),\"/Ngày \",CalendarDay-DATE(YEAR(CalendarDay),1,0)),CONCATENATE(\"Ngày \",CalendarDay-DATE(YEAR(CalendarDay),1,0)))","v":"Ngày 285"},{"$f":"IF(WEEKDAY(CalendarDay)=Giá_trị_đầu_tuần,CONCATENATE(\"Tuần \",WEEKNUM(CalendarDay),\"/Ngày \",CalendarDay-DATE(YEAR(CalendarDay),1,0)),CONCATENATE(\"Ngày \",CalendarDay-DATE(YEAR(CalendarDay),1,0)))","v":"Ngày 286"}]
[]
[null,null,{"$f":"Ngày_và_tuần+DATE(Năm_trên_lịch,10,1)-WEEKDAY(DATE(Năm_trên_lịch,10,1),(Đầu_tuần=\"T2\")+1)+15","v":"2018-10-14"},"2018-10-15","2018-10-16","2018-10-17","2018-10-18","2018-10-19","2018-10-20"]
[null,null,{"$f":"IF(WEEKDAY(CalendarDay)=Giá_trị_đầu_tuần,CONCATENATE(\"Tuần \",WEEKNUM(CalendarDay),\"/Ngày \",CalendarDay-DATE(YEAR(CalendarDay),1,0)),CONCATENATE(\"Ngày \",CalendarDay-DATE(YEAR(CalendarDay),1,0)))","v":"Tuần 42/Ngày 287"},{"$f":"IF(WEEKDAY(CalendarDay)=Giá_trị_đầu_tuần,CONCATENATE(\"Tuần \",WEEKNUM(CalendarDay),\"/Ngày \",CalendarDay-DATE(YEAR(CalendarDay),1,0)),CONCATENATE(\"Ngày \",CalendarDay-DATE(YEAR(CalendarDay),1,0)))","v":"Ngày 288"},{"$f":"IF(WEEKDAY(CalendarDay)=Giá_trị_đầu_tuần,CONCATENATE(\"Tuần \",WEEKNUM(CalendarDay),\"/Ngày \",CalendarDay-DATE(YEAR(CalendarDay),1,0)),CONCATENATE(\"Ngày \",CalendarDay-DATE(YEAR(CalendarDay),1,0)))","v":"Ngày 289"},{"$f":"IF(WEEKDAY(CalendarDay)=Giá_trị_đầu_tuần,CONCATENATE(\"Tuần \",WEEKNUM(CalendarDay),\"/Ngày \",CalendarDay-DATE(YEAR(CalendarDay),1,0)),CONCATENATE(\"Ngày \",CalendarDay-DATE(YEAR(CalendarDay),1,0)))","v":"Ngày 290"},{"$f":"IF(WEEKDAY(CalendarDay)=Giá_trị_đầu_tuần,CONCATENATE(\"Tuần \",WEEKNUM(CalendarDay),\"/Ngày \",CalendarDay-DATE(YEAR(CalendarDay),1,0)),CONCATENATE(\"Ngày \",CalendarDay-DATE(YEAR(CalendarDay),1,0)))","v":"Ngày 291"},{"$f":"IF(WEEKDAY(CalendarDay)=Giá_trị_đầu_tuần,CONCATENATE(\"Tuần \",WEEKNUM(CalendarDay),\"/Ngày \",CalendarDay-DATE(YEAR(CalendarDay),1,0)),CONCATENATE(\"Ngày \",CalendarDay-DATE(YEAR(CalendarDay),1,0)))","v":"Ngày 292"},{"$f":"IF(WEEKDAY(CalendarDay)=Giá_trị_đầu_tuần,CONCATENATE(\"Tuần \",WEEKNUM(CalendarDay),\"/Ngày \",CalendarDay-DATE(YEAR(CalendarDay),1,0)),CONCATENATE(\"Ngày \",CalendarDay-DATE(YEAR(CalendarDay),1,0)))","v":"Ngày 293"}]
[]
[null,null,{"$f":"Ngày_và_tuần+DATE(Năm_trên_lịch,10,1)-WEEKDAY(DATE(Năm_trên_lịch,10,1),(Đầu_tuần=\"T2\")+1)+22","v":"2018-10-21"},"2018-10-22","2018-10-23","2018-10-24","2018-10-25","2018-10-26","2018-10-27"]
[null,null,{"$f":"IF(WEEKDAY(CalendarDay)=Giá_trị_đầu_tuần,CONCATENATE(\"Tuần \",WEEKNUM(CalendarDay),\"/Ngày \",CalendarDay-DATE(YEAR(CalendarDay),1,0)),CONCATENATE(\"Ngày \",CalendarDay-DATE(YEAR(CalendarDay),1,0)))","v":"Tuần 43/Ngày 294"},{"$f":"IF(WEEKDAY(CalendarDay)=Giá_trị_đầu_tuần,CONCATENATE(\"Tuần \",WEEKNUM(CalendarDay),\"/Ngày \",CalendarDay-DATE(YEAR(CalendarDay),1,0)),CONCATENATE(\"Ngày \",CalendarDay-DATE(YEAR(CalendarDay),1,0)))","v":"Ngày 295"},{"$f":"IF(WEEKDAY(CalendarDay)=Giá_trị_đầu_tuần,CONCATENATE(\"Tuần \",WEEKNUM(CalendarDay),\"/Ngày \",CalendarDay-DATE(YEAR(CalendarDay),1,0)),CONCATENATE(\"Ngày \",CalendarDay-DATE(YEAR(CalendarDay),1,0)))","v":"Ngày 296"},{"$f":"IF(WEEKDAY(CalendarDay)=Giá_trị_đầu_tuần,CONCATENATE(\"Tuần \",WEEKNUM(CalendarDay),\"/Ngày \",CalendarDay-DATE(YEAR(CalendarDay),1,0)),CONCATENATE(\"Ngày \",CalendarDay-DATE(YEAR(CalendarDay),1,0)))","v":"Ngày 297"},{"$f":"IF(WEEKDAY(CalendarDay)=Giá_trị_đầu_tuần,CONCATENATE(\"Tuần \",WEEKNUM(CalendarDay),\"/Ngày \",CalendarDay-DATE(YEAR(CalendarDay),1,0)),CONCATENATE(\"Ngày \",CalendarDay-DATE(YEAR(CalendarDay),1,0)))","v":"Ngày 298"},{"$f":"IF(WEEKDAY(CalendarDay)=Giá_trị_đầu_tuần,CONCATENATE(\"Tuần \",WEEKNUM(CalendarDay),\"/Ngày \",CalendarDay-DATE(YEAR(CalendarDay),1,0)),CONCATENATE(\"Ngày \",CalendarDay-DATE(YEAR(CalendarDay),1,0)))","v":"Ngày 299"},{"$f":"IF(WEEKDAY(CalendarDay)=Giá_trị_đầu_tuần,CONCATENATE(\"Tuần \",WEEKNUM(CalendarDay),\"/Ngày \",CalendarDay-DATE(YEAR(CalendarDay),1,0)),CONCATENATE(\"Ngày \",CalendarDay-DATE(YEAR(CalendarDay),1,0)))","v":"Ngày 300"}]
[]
[null,null,{"$f":"Ngày_và_tuần+DATE(Năm_trên_lịch,10,1)-WEEKDAY(DATE(Năm_trên_lịch,10,1),(Đầu_tuần=\"T2\")+1)+29","v":"2018-10-28"},"2018-10-29","2018-10-30","2018-10-31","2018-11-01","2018-11-02","2018-11-03"]
[null,null,{"$f":"IF(WEEKDAY(CalendarDay)=Giá_trị_đầu_tuần,CONCATENATE(\"Tuần \",WEEKNUM(CalendarDay),\"/Ngày \",CalendarDay-DATE(YEAR(CalendarDay),1,0)),CONCATENATE(\"Ngày \",CalendarDay-DATE(YEAR(CalendarDay),1,0)))","v":"Tuần 44/Ngày 301"},{"$f":"IF(WEEKDAY(CalendarDay)=Giá_trị_đầu_tuần,CONCATENATE(\"Tuần \",WEEKNUM(CalendarDay),\"/Ngày \",CalendarDay-DATE(YEAR(CalendarDay),1,0)),CONCATENATE(\"Ngày \",CalendarDay-DATE(YEAR(CalendarDay),1,0)))","v":"Ngày 302"},{"$f":"IF(WEEKDAY(CalendarDay)=Giá_trị_đầu_tuần,CONCATENATE(\"Tuần \",WEEKNUM(CalendarDay),\"/Ngày \",CalendarDay-DATE(YEAR(CalendarDay),1,0)),CONCATENATE(\"Ngày \",CalendarDay-DATE(YEAR(CalendarDay),1,0)))","v":"Ngày 303"},{"$f":"IF(WEEKDAY(CalendarDay)=Giá_trị_đầu_tuần,CONCATENATE(\"Tuần \",WEEKNUM(CalendarDay),\"/Ngày \",CalendarDay-DATE(YEAR(CalendarDay),1,0)),CONCATENATE(\"Ngày \",CalendarDay-DATE(YEAR(CalendarDay),1,0)))","v":"Ngày 304"},{"$f":"IF(WEEKDAY(CalendarDay)=Giá_trị_đầu_tuần,CONCATENATE(\"Tuần \",WEEKNUM(CalendarDay),\"/Ngày \",CalendarDay-DATE(YEAR(CalendarDay),1,0)),CONCATENATE(\"Ngày \",CalendarDay-DATE(YEAR(CalendarDay),1,0)))","v":"Ngày 305"},{"$f":"IF(WEEKDAY(CalendarDay)=Giá_trị_đầu_tuần,CONCATENATE(\"Tuần \",WEEKNUM(CalendarDay),\"/Ngày \",CalendarDay-DATE(YEAR(CalendarDay),1,0)),CONCATENATE(\"Ngày \",CalendarDay-DATE(YEAR(CalendarDay),1,0)))","v":"Ngày 306"},{"$f":"IF(WEEKDAY(CalendarDay)=Giá_trị_đầu_tuần,CONCATENATE(\"Tuần \",WEEKNUM(CalendarDay),\"/Ngày \",CalendarDay-DATE(YEAR(CalendarDay),1,0)),CONCATENATE(\"Ngày \",CalendarDay-DATE(YEAR(CalendarDay),1,0)))","v":"Ngày 307"}]
[{"$nulls":4},"GHI CHÚ"]
[]
[null,null,{"$f":"Ngày_và_tuần+DATE(Năm_trên_lịch,10,1)-WEEKDAY(DATE(Năm_trên_lịch,10,1),(Đầu_tuần=\"T2\")+1)+36","v":"2018-11-04"},"2018-11-05"]
[null,null,{"$f":"IF(WEEKDAY(CalendarDay)=Giá_trị_đầu_tuần,CONCATENATE(\"Tuần \",WEEKNUM(CalendarDay),\"/Ngày \",CalendarDay-DATE(YEAR(CalendarDay),1,0)),CONCATENATE(\"Ngày \",CalendarDay-DATE(YEAR(CalendarDay),1,0)))","v":"Tuần 45/Ngày 308"},{"$f":"IF(WEEKDAY(CalendarDay)=Giá_trị_đầu_tuần,CONCATENATE(\"Tuần \",WEEKNUM(CalendarDay),\"/Ngày \",CalendarDay-DATE(YEAR(CalendarDay),1,0)),CONCATENATE(\"Ngày \",CalendarDay-DATE(YEAR(CalendarDay),1,0)))","v":"Ngày 309"}]

{"sheet":"THG11","index":10,"n_rows":20,"n_cols":9,"rows_kept":20,"merged":[[16,2,17,2],[17,4,19,8]]}
[null,"THG11",{"$f":"UPPER(TEXT(Đầu_tuần,\"ddd\"))","v":"CN"},{"$f":"UPPER(TEXT(D3,\"aaa\"))","v":"T2"},"T3","TƯ","NĂM","SÁU","BẢY"]
[null,{"$f":"Năm_trên_lịch","v":2018}]
[null,null,{"$f":"Ngày_và_tuần+DATE(Năm_trên_lịch,11,1)-WEEKDAY(DATE(Năm_trên_lịch,11,1),(Đầu_tuần=\"T2\")+1)+1","v":"2018-10-28"},"2018-10-29","2018-10-30","2018-10-31","2018-11-01","2018-11-02","2018-11-03"]
[null,null,{"$f":"IF(DAY(CalendarDay)=1,CONCATENATE(\"Tuần \",WEEKNUM(CalendarDay),\"/Ngày \",CalendarDay-DATE(YEAR(CalendarDay),1,0)),CONCATENATE(\"Ngày \",CalendarDay-DATE(YEAR(CalendarDay),1,0)))","v":"Ngày 301"},{"$f":"IF(DAY(CalendarDay)=1,CONCATENATE(\"Tuần \",WEEKNUM(CalendarDay),\"/Ngày \",CalendarDay-DATE(YEAR(CalendarDay),1,0)),CONCATENATE(\"Ngày \",CalendarDay-DATE(YEAR(CalendarDay),1,0)))","v":"Ngày 302"},{"$f":"IF(DAY(CalendarDay)=1,CONCATENATE(\"Tuần \",WEEKNUM(CalendarDay),\"/Ngày \",CalendarDay-DATE(YEAR(CalendarDay),1,0)),CONCATENATE(\"Ngày \",CalendarDay-DATE(YEAR(CalendarDay),1,0)))","v":"Ngày 303"},{"$f":"IF(DAY(CalendarDay)=1,CONCATENATE(\"Tuần \",WEEKNUM(CalendarDay),\"/Ngày \",CalendarDay-DATE(YEAR(CalendarDay),1,0)),CONCATENATE(\"Ngày \",CalendarDay-DATE(YEAR(CalendarDay),1,0)))","v":"Ngày 304"},{"$f":"IF(DAY(CalendarDay)=1,CONCATENATE(\"Tuần \",WEEKNUM(CalendarDay),\"/Ngày \",CalendarDay-DATE(YEAR(CalendarDay),1,0)),CONCATENATE(\"Ngày \",CalendarDay-DATE(YEAR(CalendarDay),1,0)))","v":"Tuần 44/Ngày 305"},{"$f":"IF(DAY(CalendarDay)=1,CONCATENATE(\"Tuần \",WEEKNUM(CalendarDay),\"/Ngày \",CalendarDay-DATE(YEAR(CalendarDay),1,0)),CONCATENATE(\"Ngày \",CalendarDay-DATE(YEAR(CalendarDay),1,0)))","v":"Ngày 306"},{"$f":"IF(DAY(CalendarDay)=1,CONCATENATE(\"Tuần \",WEEKNUM(CalendarDay),\"/Ngày \",CalendarDay-DATE(YEAR(CalendarDay),1,0)),CONCATENATE(\"Ngày \",CalendarDay-DATE(YEAR(CalendarDay),1,0)))","v":"Ngày 307"}]
[]
[null,null,{"$f":"Ngày_và_tuần+DATE(Năm_trên_lịch,11,1)-WEEKDAY(DATE(Năm_trên_lịch,11,1),(Đầu_tuần=\"T2\")+1)+8","v":"2018-11-04"},"2018-11-05","2018-11-06","2018-11-07","2018-11-08","2018-11-09","2018-11-10"]
[null,null,{"$f":"IF(WEEKDAY(CalendarDay)=Giá_trị_đầu_tuần,CONCATENATE(\"Tuần \",WEEKNUM(CalendarDay),\"/Ngày \",CalendarDay-DATE(YEAR(CalendarDay),1,0)),CONCATENATE(\"Ngày \",CalendarDay-DATE(YEAR(CalendarDay),1,0)))","v":"Tuần 45/Ngày 308"},{"$f":"IF(WEEKDAY(CalendarDay)=Giá_trị_đầu_tuần,CONCATENATE(\"Tuần \",WEEKNUM(CalendarDay),\"/Ngày \",CalendarDay-DATE(YEAR(CalendarDay),1,0)),CONCATENATE(\"Ngày \",CalendarDay-DATE(YEAR(CalendarDay),1,0)))","v":"Ngày 309"},{"$f":"IF(WEEKDAY(CalendarDay)=Giá_trị_đầu_tuần,CONCATENATE(\"Tuần \",WEEKNUM(CalendarDay),\"/Ngày \",CalendarDay-DATE(YEAR(CalendarDay),1,0)),CONCATENATE(\"Ngày \",CalendarDay-DATE(YEAR(CalendarDay),1,0)))","v":"Ngày 310"},{"$f":"IF(WEEKDAY(CalendarDay)=Giá_trị_đầu_tuần,CONCATENATE(\"Tuần \",WEEKNUM(CalendarDay),\"/Ngày \",CalendarDay-DATE(YEAR(CalendarDay),1,0)),CONCATENATE(\"Ngày \",CalendarDay-DATE(YEAR(CalendarDay),1,0)))","v":"Ngày 311"},{"$f":"IF(WEEKDAY(CalendarDay)=Giá_trị_đầu_tuần,CONCATENATE(\"Tuần \",WEEKNUM(CalendarDay),\"/Ngày \",CalendarDay-DATE(YEAR(CalendarDay),1,0)),CONCATENATE(\"Ngày \",CalendarDay-DATE(YEAR(CalendarDay),1,0)))","v":"Ngày 312"},{"$f":"IF(WEEKDAY(CalendarDay)=Giá_trị_đầu_tuần,CONCATENATE(\"Tuần \",WEEKNUM(CalendarDay),\"/Ngày \",CalendarDay-DATE(YEAR(CalendarDay),1,0)),CONCATENATE(\"Ngày \",CalendarDay-DATE(YEAR(CalendarDay),1,0)))","v":"Ngày 313"},{"$f":"IF(WEEKDAY(CalendarDay)=Giá_trị_đầu_tuần,CONCATENATE(\"Tuần \",WEEKNUM(CalendarDay),\"/Ngày \",CalendarDay-DATE(YEAR(CalendarDay),1,0)),CONCATENATE(\"Ngày \",CalendarDay-DATE(YEAR(CalendarDay),1,0)))","v":"Ngày 314"}]
[]
[null,null,{"$f":"Ngày_và_tuần+DATE(Năm_trên_lịch,11,1)-WEEKDAY(DATE(Năm_trên_lịch,11,1),(Đầu_tuần=\"T2\")+1)+15","v":"2018-11-11"},"2018-11-12","2018-11-13","2018-11-14","2018-11-15","2018-11-16","2018-11-17"]
[null,null,{"$f":"IF(WEEKDAY(CalendarDay)=Giá_trị_đầu_tuần,CONCATENATE(\"Tuần \",WEEKNUM(CalendarDay),\"/Ngày \",CalendarDay-DATE(YEAR(CalendarDay),1,0)),CONCATENATE(\"Ngày \",CalendarDay-DATE(YEAR(CalendarDay),1,0)))","v":"Tuần 46/Ngày 315"},{"$f":"IF(WEEKDAY(CalendarDay)=Giá_trị_đầu_tuần,CONCATENATE(\"Tuần \",WEEKNUM(CalendarDay),\"/Ngày \",CalendarDay-DATE(YEAR(CalendarDay),1,0)),CONCATENATE(\"Ngày \",CalendarDay-DATE(YEAR(CalendarDay),1,0)))","v":"Ngày 316"},{"$f":"IF(WEEKDAY(CalendarDay)=Giá_trị_đầu_tuần,CONCATENATE(\"Tuần \",WEEKNUM(CalendarDay),\"/Ngày \",CalendarDay-DATE(YEAR(CalendarDay),1,0)),CONCATENATE(\"Ngày \",CalendarDay-DATE(YEAR(CalendarDay),1,0)))","v":"Ngày 317"},{"$f":"IF(WEEKDAY(CalendarDay)=Giá_trị_đầu_tuần,CONCATENATE(\"Tuần \",WEEKNUM(CalendarDay),\"/Ngày \",CalendarDay-DATE(YEAR(CalendarDay),1,0)),CONCATENATE(\"Ngày \",CalendarDay-DATE(YEAR(CalendarDay),1,0)))","v":"Ngày 318"},{"$f":"IF(WEEKDAY(CalendarDay)=Giá_trị_đầu_tuần,CONCATENATE(\"Tuần \",WEEKNUM(CalendarDay),\"/Ngày \",CalendarDay-DATE(YEAR(CalendarDay),1,0)),CONCATENATE(\"Ngày \",CalendarDay-DATE(YEAR(CalendarDay),1,0)))","v":"Ngày 319"},{"$f":"IF(WEEKDAY(CalendarDay)=Giá_trị_đầu_tuần,CONCATENATE(\"Tuần \",WEEKNUM(CalendarDay),\"/Ngày \",CalendarDay-DATE(YEAR(CalendarDay),1,0)),CONCATENATE(\"Ngày \",CalendarDay-DATE(YEAR(CalendarDay),1,0)))","v":"Ngày 320"},{"$f":"IF(WEEKDAY(CalendarDay)=Giá_trị_đầu_tuần,CONCATENATE(\"Tuần \",WEEKNUM(CalendarDay),\"/Ngày \",CalendarDay-DATE(YEAR(CalendarDay),1,0)),CONCATENATE(\"Ngày \",CalendarDay-DATE(YEAR(CalendarDay),1,0)))","v":"Ngày 321"}]
[]
[null,null,{"$f":"Ngày_và_tuần+DATE(Năm_trên_lịch,11,1)-WEEKDAY(DATE(Năm_trên_lịch,11,1),(Đầu_tuần=\"T2\")+1)+22","v":"2018-11-18"},"2018-11-19","2018-11-20","2018-11-21","2018-11-22","2018-11-23","2018-11-24"]
[null,null,{"$f":"IF(WEEKDAY(CalendarDay)=Giá_trị_đầu_tuần,CONCATENATE(\"Tuần \",WEEKNUM(CalendarDay),\"/Ngày \",CalendarDay-DATE(YEAR(CalendarDay),1,0)),CONCATENATE(\"Ngày \",CalendarDay-DATE(YEAR(CalendarDay),1,0)))","v":"Tuần 47/Ngày 322"},{"$f":"IF(WEEKDAY(CalendarDay)=Giá_trị_đầu_tuần,CONCATENATE(\"Tuần \",WEEKNUM(CalendarDay),\"/Ngày \",CalendarDay-DATE(YEAR(CalendarDay),1,0)),CONCATENATE(\"Ngày \",CalendarDay-DATE(YEAR(CalendarDay),1,0)))","v":"Ngày 323"},{"$f":"IF(WEEKDAY(CalendarDay)=Giá_trị_đầu_tuần,CONCATENATE(\"Tuần \",WEEKNUM(CalendarDay),\"/Ngày \",CalendarDay-DATE(YEAR(CalendarDay),1,0)),CONCATENATE(\"Ngày \",CalendarDay-DATE(YEAR(CalendarDay),1,0)))","v":"Ngày 324"},{"$f":"IF(WEEKDAY(CalendarDay)=Giá_trị_đầu_tuần,CONCATENATE(\"Tuần \",WEEKNUM(CalendarDay),\"/Ngày \",CalendarDay-DATE(YEAR(CalendarDay),1,0)),CONCATENATE(\"Ngày \",CalendarDay-DATE(YEAR(CalendarDay),1,0)))","v":"Ngày 325"},{"$f":"IF(WEEKDAY(CalendarDay)=Giá_trị_đầu_tuần,CONCATENATE(\"Tuần \",WEEKNUM(CalendarDay),\"/Ngày \",CalendarDay-DATE(YEAR(CalendarDay),1,0)),CONCATENATE(\"Ngày \",CalendarDay-DATE(YEAR(CalendarDay),1,0)))","v":"Ngày 326"},{"$f":"IF(WEEKDAY(CalendarDay)=Giá_trị_đầu_tuần,CONCATENATE(\"Tuần \",WEEKNUM(CalendarDay),\"/Ngày \",CalendarDay-DATE(YEAR(CalendarDay),1,0)),CONCATENATE(\"Ngày \",CalendarDay-DATE(YEAR(CalendarDay),1,0)))","v":"Ngày 327"},{"$f":"IF(WEEKDAY(CalendarDay)=Giá_trị_đầu_tuần,CONCATENATE(\"Tuần \",WEEKNUM(CalendarDay),\"/Ngày \",CalendarDay-DATE(YEAR(CalendarDay),1,0)),CONCATENATE(\"Ngày \",CalendarDay-DATE(YEAR(CalendarDay),1,0)))","v":"Ngày 328"}]
[]
[null,null,{"$f":"Ngày_và_tuần+DATE(Năm_trên_lịch,11,1)-WEEKDAY(DATE(Năm_trên_lịch,11,1),(Đầu_tuần=\"T2\")+1)+29","v":"2018-11-25"},"2018-11-26","2018-11-27","2018-11-28","2018-11-29","2018-11-30","2018-12-01"]
[null,null,{"$f":"IF(WEEKDAY(CalendarDay)=Giá_trị_đầu_tuần,CONCATENATE(\"Tuần \",WEEKNUM(CalendarDay),\"/Ngày \",CalendarDay-DATE(YEAR(CalendarDay),1,0)),CONCATENATE(\"Ngày \",CalendarDay-DATE(YEAR(CalendarDay),1,0)))","v":"Tuần 48/Ngày 329"},{"$f":"IF(WEEKDAY(CalendarDay)=Giá_trị_đầu_tuần,CONCATENATE(\"Tuần \",WEEKNUM(CalendarDay),\"/Ngày \",CalendarDay-DATE(YEAR(CalendarDay),1,0)),CONCATENATE(\"Ngày \",CalendarDay-DATE(YEAR(CalendarDay),1,0)))","v":"Ngày 330"},{"$f":"IF(WEEKDAY(CalendarDay)=Giá_trị_đầu_tuần,CONCATENATE(\"Tuần \",WEEKNUM(CalendarDay),\"/Ngày \",CalendarDay-DATE(YEAR(CalendarDay),1,0)),CONCATENATE(\"Ngày \",CalendarDay-DATE(YEAR(CalendarDay),1,0)))","v":"Ngày 331"},{"$f":"IF(WEEKDAY(CalendarDay)=Giá_trị_đầu_tuần,CONCATENATE(\"Tuần \",WEEKNUM(CalendarDay),\"/Ngày \",CalendarDay-DATE(YEAR(CalendarDay),1,0)),CONCATENATE(\"Ngày \",CalendarDay-DATE(YEAR(CalendarDay),1,0)))","v":"Ngày 332"},{"$f":"IF(WEEKDAY(CalendarDay)=Giá_trị_đầu_tuần,CONCATENATE(\"Tuần \",WEEKNUM(CalendarDay),\"/Ngày \",CalendarDay-DATE(YEAR(CalendarDay),1,0)),CONCATENATE(\"Ngày \",CalendarDay-DATE(YEAR(CalendarDay),1,0)))","v":"Ngày 333"},{"$f":"IF(WEEKDAY(CalendarDay)=Giá_trị_đầu_tuần,CONCATENATE(\"Tuần \",WEEKNUM(CalendarDay),\"/Ngày \",CalendarDay-DATE(YEAR(CalendarDay),1,0)),CONCATENATE(\"Ngày \",CalendarDay-DATE(YEAR(CalendarDay),1,0)))","v":"Ngày 334"},{"$f":"IF(WEEKDAY(CalendarDay)=Giá_trị_đầu_tuần,CONCATENATE(\"Tuần \",WEEKNUM(CalendarDay),\"/Ngày \",CalendarDay-DATE(YEAR(CalendarDay),1,0)),CONCATENATE(\"Ngày \",CalendarDay-DATE(YEAR(CalendarDay),1,0)))","v":"Ngày 335"}]
[{"$nulls":4},"GHI CHÚ"]
[]
[null,null,{"$f":"Ngày_và_tuần+DATE(Năm_trên_lịch,11,1)-WEEKDAY(DATE(Năm_trên_lịch,11,1),(Đầu_tuần=\"T2\")+1)+36","v":"2018-12-02"},"2018-12-03"]
[null,null,{"$f":"IF(WEEKDAY(CalendarDay)=Giá_trị_đầu_tuần,CONCATENATE(\"Tuần \",WEEKNUM(CalendarDay),\"/Ngày \",CalendarDay-DATE(YEAR(CalendarDay),1,0)),CONCATENATE(\"Ngày \",CalendarDay-DATE(YEAR(CalendarDay),1,0)))","v":"Tuần 49/Ngày 336"},{"$f":"IF(WEEKDAY(CalendarDay)=Giá_trị_đầu_tuần,CONCATENATE(\"Tuần \",WEEKNUM(CalendarDay),\"/Ngày \",CalendarDay-DATE(YEAR(CalendarDay),1,0)),CONCATENATE(\"Ngày \",CalendarDay-DATE(YEAR(CalendarDay),1,0)))","v":"Ngày 337"}]

{"sheet":"THG12","index":11,"n_rows":20,"n_cols":9,"rows_kept":20,"merged":[[16,2,17,2],[17,4,19,8]]}
[null,"THG12",{"$f":"UPPER(TEXT(Đầu_tuần,\"ddd\"))","v":"CN"},{"$f":"UPPER(TEXT(D3,\"aaa\"))","v":"T2"},"T3","TƯ","NĂM","SÁU","BẢY"]
[null,{"$f":"Năm_trên_lịch","v":2018}]
[null,null,{"$f":"Ngày_và_tuần+DATE(Năm_trên_lịch,12,1)-WEEKDAY(DATE(Năm_trên_lịch,12,1),(Đầu_tuần=\"T2\")+1)+1","v":"2018-11-25"},"2018-11-26","2018-11-27","2018-11-28","2018-11-29","2018-11-30","2018-12-01"]
[null,null,{"$f":"IF(DAY(CalendarDay)=1,CONCATENATE(\"Tuần \",WEEKNUM(CalendarDay),\"/Ngày \",CalendarDay-DATE(YEAR(CalendarDay),1,0)),CONCATENATE(\"Ngày \",CalendarDay-DATE(YEAR(CalendarDay),1,0)))","v":"Ngày 329"},{"$f":"IF(DAY(CalendarDay)=1,CONCATENATE(\"Tuần \",WEEKNUM(CalendarDay),\"/Ngày \",CalendarDay-DATE(YEAR(CalendarDay),1,0)),CONCATENATE(\"Ngày \",CalendarDay-DATE(YEAR(CalendarDay),1,0)))","v":"Ngày 330"},{"$f":"IF(DAY(CalendarDay)=1,CONCATENATE(\"Tuần \",WEEKNUM(CalendarDay),\"/Ngày \",CalendarDay-DATE(YEAR(CalendarDay),1,0)),CONCATENATE(\"Ngày \",CalendarDay-DATE(YEAR(CalendarDay),1,0)))","v":"Ngày 331"},{"$f":"IF(DAY(CalendarDay)=1,CONCATENATE(\"Tuần \",WEEKNUM(CalendarDay),\"/Ngày \",CalendarDay-DATE(YEAR(CalendarDay),1,0)),CONCATENATE(\"Ngày \",CalendarDay-DATE(YEAR(CalendarDay),1,0)))","v":"Ngày 332"},{"$f":"IF(DAY(CalendarDay)=1,CONCATENATE(\"Tuần \",WEEKNUM(CalendarDay),\"/Ngày \",CalendarDay-DATE(YEAR(CalendarDay),1,0)),CONCATENATE(\"Ngày \",CalendarDay-DATE(YEAR(CalendarDay),1,0)))","v":"Ngày 333"},{"$f":"IF(DAY(CalendarDay)=1,CONCATENATE(\"Tuần \",WEEKNUM(CalendarDay),\"/Ngày \",CalendarDay-DATE(YEAR(CalendarDay),1,0)),CONCATENATE(\"Ngày \",CalendarDay-DATE(YEAR(CalendarDay),1,0)))","v":"Ngày 334"},{"$f":"IF(DAY(CalendarDay)=1,CONCATENATE(\"Tuần \",WEEKNUM(CalendarDay),\"/Ngày \",CalendarDay-DATE(YEAR(CalendarDay),1,0)),CONCATENATE(\"Ngày \",CalendarDay-DATE(YEAR(CalendarDay),1,0)))","v":"Tuần 48/Ngày 335"}]
[]
[null,null,{"$f":"Ngày_và_tuần+DATE(Năm_trên_lịch,12,1)-WEEKDAY(DATE(Năm_trên_lịch,12,1),(Đầu_tuần=\"T2\")+1)+8","v":"2018-12-02"},"2018-12-03","2018-12-04","2018-12-05","2018-12-06","2018-12-07","2018-12-08"]
[null,null,{"$f":"IF(WEEKDAY(CalendarDay)=Giá_trị_đầu_tuần,CONCATENATE(\"Tuần \",WEEKNUM(CalendarDay),\"/Ngày \",CalendarDay-DATE(YEAR(CalendarDay),1,0)),CONCATENATE(\"Ngày \",CalendarDay-DATE(YEAR(CalendarDay),1,0)))","v":"Tuần 49/Ngày 336"},{"$f":"IF(WEEKDAY(CalendarDay)=Giá_trị_đầu_tuần,CONCATENATE(\"Tuần \",WEEKNUM(CalendarDay),\"/Ngày \",CalendarDay-DATE(YEAR(CalendarDay),1,0)),CONCATENATE(\"Ngày \",CalendarDay-DATE(YEAR(CalendarDay),1,0)))","v":"Ngày 337"},{"$f":"IF(WEEKDAY(CalendarDay)=Giá_trị_đầu_tuần,CONCATENATE(\"Tuần \",WEEKNUM(CalendarDay),\"/Ngày \",CalendarDay-DATE(YEAR(CalendarDay),1,0)),CONCATENATE(\"Ngày \",CalendarDay-DATE(YEAR(CalendarDay),1,0)))","v":"Ngày 338"},{"$f":"IF(WEEKDAY(CalendarDay)=Giá_trị_đầu_tuần,CONCATENATE(\"Tuần \",WEEKNUM(CalendarDay),\"/Ngày \",CalendarDay-DATE(YEAR(CalendarDay),1,0)),CONCATENATE(\"Ngày \",CalendarDay-DATE(YEAR(CalendarDay),1,0)))","v":"Ngày 339"},{"$f":"IF(WEEKDAY(CalendarDay)=Giá_trị_đầu_tuần,CONCATENATE(\"Tuần \",WEEKNUM(CalendarDay),\"/Ngày \",CalendarDay-DATE(YEAR(CalendarDay),1,0)),CONCATENATE(\"Ngày \",CalendarDay-DATE(YEAR(CalendarDay),1,0)))","v":"Ngày 340"},{"$f":"IF(WEEKDAY(CalendarDay)=Giá_trị_đầu_tuần,CONCATENATE(\"Tuần \",WEEKNUM(CalendarDay),\"/Ngày \",CalendarDay-DATE(YEAR(CalendarDay),1,0)),CONCATENATE(\"Ngày \",CalendarDay-DATE(YEAR(CalendarDay),1,0)))","v":"Ngày 341"},{"$f":"IF(WEEKDAY(CalendarDay)=Giá_trị_đầu_tuần,CONCATENATE(\"Tuần \",WEEKNUM(CalendarDay),\"/Ngày \",CalendarDay-DATE(YEAR(CalendarDay),1,0)),CONCATENATE(\"Ngày \",CalendarDay-DATE(YEAR(CalendarDay),1,0)))","v":"Ngày 342"}]
[]
[null,null,{"$f":"Ngày_và_tuần+DATE(Năm_trên_lịch,12,1)-WEEKDAY(DATE(Năm_trên_lịch,12,1),(Đầu_tuần=\"T2\")+1)+15","v":"2018-12-09"},"2018-12-10","2018-12-11","2018-12-12","2018-12-13","2018-12-14","2018-12-15"]
[null,null,{"$f":"IF(WEEKDAY(CalendarDay)=Giá_trị_đầu_tuần,CONCATENATE(\"Tuần \",WEEKNUM(CalendarDay),\"/Ngày \",CalendarDay-DATE(YEAR(CalendarDay),1,0)),CONCATENATE(\"Ngày \",CalendarDay-DATE(YEAR(CalendarDay),1,0)))","v":"Tuần 50/Ngày 343"},{"$f":"IF(WEEKDAY(CalendarDay)=Giá_trị_đầu_tuần,CONCATENATE(\"Tuần \",WEEKNUM(CalendarDay),\"/Ngày \",CalendarDay-DATE(YEAR(CalendarDay),1,0)),CONCATENATE(\"Ngày \",CalendarDay-DATE(YEAR(CalendarDay),1,0)))","v":"Ngày 344"},{"$f":"IF(WEEKDAY(CalendarDay)=Giá_trị_đầu_tuần,CONCATENATE(\"Tuần \",WEEKNUM(CalendarDay),\"/Ngày \",CalendarDay-DATE(YEAR(CalendarDay),1,0)),CONCATENATE(\"Ngày \",CalendarDay-DATE(YEAR(CalendarDay),1,0)))","v":"Ngày 345"},{"$f":"IF(WEEKDAY(CalendarDay)=Giá_trị_đầu_tuần,CONCATENATE(\"Tuần \",WEEKNUM(CalendarDay),\"/Ngày \",CalendarDay-DATE(YEAR(CalendarDay),1,0)),CONCATENATE(\"Ngày \",CalendarDay-DATE(YEAR(CalendarDay),1,0)))","v":"Ngày 346"},{"$f":"IF(WEEKDAY(CalendarDay)=Giá_trị_đầu_tuần,CONCATENATE(\"Tuần \",WEEKNUM(CalendarDay),\"/Ngày \",CalendarDay-DATE(YEAR(CalendarDay),1,0)),CONCATENATE(\"Ngày \",CalendarDay-DATE(YEAR(CalendarDay),1,0)))","v":"Ngày 347"},{"$f":"IF(WEEKDAY(CalendarDay)=Giá_trị_đầu_tuần,CONCATENATE(\"Tuần \",WEEKNUM(CalendarDay),\"/Ngày \",CalendarDay-DATE(YEAR(CalendarDay),1,0)),CONCATENATE(\"Ngày \",CalendarDay-DATE(YEAR(CalendarDay),1,0)))","v":"Ngày 348"},{"$f":"IF(WEEKDAY(CalendarDay)=Giá_trị_đầu_tuần,CONCATENATE(\"Tuần \",WEEKNUM(CalendarDay),\"/Ngày \",CalendarDay-DATE(YEAR(CalendarDay),1,0)),CONCATENATE(\"Ngày \",CalendarDay-DATE(YEAR(CalendarDay),1,0)))","v":"Ngày 349"}]
[]
[null,null,{"$f":"Ngày_và_tuần+DATE(Năm_trên_lịch,12,1)-WEEKDAY(DATE(Năm_trên_lịch,12,1),(Đầu_tuần=\"T2\")+1)+22","v":"2018-12-16"},"2018-12-17","2018-12-18","2018-12-19","2018-12-20","2018-12-21","2018-12-22"]
[null,null,{"$f":"IF(WEEKDAY(CalendarDay)=Giá_trị_đầu_tuần,CONCATENATE(\"Tuần \",WEEKNUM(CalendarDay),\"/Ngày \",CalendarDay-DATE(YEAR(CalendarDay),1,0)),CONCATENATE(\"Ngày \",CalendarDay-DATE(YEAR(CalendarDay),1,0)))","v":"Tuần 51/Ngày 350"},{"$f":"IF(WEEKDAY(CalendarDay)=Giá_trị_đầu_tuần,CONCATENATE(\"Tuần \",WEEKNUM(CalendarDay),\"/Ngày \",CalendarDay-DATE(YEAR(CalendarDay),1,0)),CONCATENATE(\"Ngày \",CalendarDay-DATE(YEAR(CalendarDay),1,0)))","v":"Ngày 351"},{"$f":"IF(WEEKDAY(CalendarDay)=Giá_trị_đầu_tuần,CONCATENATE(\"Tuần \",WEEKNUM(CalendarDay),\"/Ngày \",CalendarDay-DATE(YEAR(CalendarDay),1,0)),CONCATENATE(\"Ngày \",CalendarDay-DATE(YEAR(CalendarDay),1,0)))","v":"Ngày 352"},{"$f":"IF(WEEKDAY(CalendarDay)=Giá_trị_đầu_tuần,CONCATENATE(\"Tuần \",WEEKNUM(CalendarDay),\"/Ngày \",CalendarDay-DATE(YEAR(CalendarDay),1,0)),CONCATENATE(\"Ngày \",CalendarDay-DATE(YEAR(CalendarDay),1,0)))","v":"Ngày 353"},{"$f":"IF(WEEKDAY(CalendarDay)=Giá_trị_đầu_tuần,CONCATENATE(\"Tuần \",WEEKNUM(CalendarDay),\"/Ngày \",CalendarDay-DATE(YEAR(CalendarDay),1,0)),CONCATENATE(\"Ngày \",CalendarDay-DATE(YEAR(CalendarDay),1,0)))","v":"Ngày 354"},{"$f":"IF(WEEKDAY(CalendarDay)=Giá_trị_đầu_tuần,CONCATENATE(\"Tuần \",WEEKNUM(CalendarDay),\"/Ngày \",CalendarDay-DATE(YEAR(CalendarDay),1,0)),CONCATENATE(\"Ngày \",CalendarDay-DATE(YEAR(CalendarDay),1,0)))","v":"Ngày 355"},{"$f":"IF(WEEKDAY(CalendarDay)=Giá_trị_đầu_tuần,CONCATENATE(\"Tuần \",WEEKNUM(CalendarDay),\"/Ngày \",CalendarDay-DATE(YEAR(CalendarDay),1,0)),CONCATENATE(\"Ngày \",CalendarDay-DATE(YEAR(CalendarDay),1,0)))","v":"Ngày 356"}]
[]
[null,null,{"$f":"Ngày_và_tuần+DATE(Năm_trên_lịch,12,1)-WEEKDAY(DATE(Năm_trên_lịch,12,1),(Đầu_tuần=\"T2\")+1)+29","v":"2018-12-23"},"2018-12-24","2018-12-25","2018-12-26","2018-12-27","2018-12-28","2018-12-29"]
[null,null,{"$f":"IF(WEEKDAY(CalendarDay)=Giá_trị_đầu_tuần,CONCATENATE(\"Tuần \",WEEKNUM(CalendarDay),\"/Ngày \",CalendarDay-DATE(YEAR(CalendarDay),1,0)),CONCATENATE(\"Ngày \",CalendarDay-DATE(YEAR(CalendarDay),1,0)))","v":"Tuần 52/Ngày 357"},{"$f":"IF(WEEKDAY(CalendarDay)=Giá_trị_đầu_tuần,CONCATENATE(\"Tuần \",WEEKNUM(CalendarDay),\"/Ngày \",CalendarDay-DATE(YEAR(CalendarDay),1,0)),CONCATENATE(\"Ngày \",CalendarDay-DATE(YEAR(CalendarDay),1,0)))","v":"Ngày 358"},{"$f":"IF(WEEKDAY(CalendarDay)=Giá_trị_đầu_tuần,CONCATENATE(\"Tuần \",WEEKNUM(CalendarDay),\"/Ngày \",CalendarDay-DATE(YEAR(CalendarDay),1,0)),CONCATENATE(\"Ngày \",CalendarDay-DATE(YEAR(CalendarDay),1,0)))","v":"Ngày 359"},{"$f":"IF(WEEKDAY(CalendarDay)=Giá_trị_đầu_tuần,CONCATENATE(\"Tuần \",WEEKNUM(CalendarDay),\"/Ngày \",CalendarDay-DATE(YEAR(CalendarDay),1,0)),CONCATENATE(\"Ngày \",CalendarDay-DATE(YEAR(CalendarDay),1,0)))","v":"Ngày 360"},{"$f":"IF(WEEKDAY(CalendarDay)=Giá_trị_đầu_tuần,CONCATENATE(\"Tuần \",WEEKNUM(CalendarDay),\"/Ngày \",CalendarDay-DATE(YEAR(CalendarDay),1,0)),CONCATENATE(\"Ngày \",CalendarDay-DATE(YEAR(CalendarDay),1,0)))","v":"Ngày 361"},{"$f":"IF(WEEKDAY(CalendarDay)=Giá_trị_đầu_tuần,CONCATENATE(\"Tuần \",WEEKNUM(CalendarDay),\"/Ngày \",CalendarDay-DATE(YEAR(CalendarDay),1,0)),CONCATENATE(\"Ngày \",CalendarDay-DATE(YEAR(CalendarDay),1,0)))","v":"Ngày 362"},{"$f":"IF(WEEKDAY(CalendarDay)=Giá_trị_đầu_tuần,CONCATENATE(\"Tuần \",WEEKNUM(CalendarDay),\"/Ngày \",CalendarDay-DATE(YEAR(CalendarDay),1,0)),CONCATENATE(\"Ngày \",CalendarDay-DATE(YEAR(CalendarDay),1,0)))","v":"Ngày 363"}]
[{"$nulls":4},"GHI CHÚ"]
[]
[null,null,{"$f":"Ngày_và_tuần+DATE(Năm_trên_lịch,12,1)-WEEKDAY(DATE(Năm_trên_lịch,12,1),(Đầu_tuần=\"T2\")+1)+36","v":"2018-12-30"},"2018-12-31"]
[null,null,{"$f":"IF(WEEKDAY(CalendarDay)=Giá_trị_đầu_tuần,CONCATENATE(\"Tuần \",WEEKNUM(CalendarDay),\"/Ngày \",CalendarDay-DATE(YEAR(CalendarDay),1,0)),CONCATENATE(\"Ngày \",CalendarDay-DATE(YEAR(CalendarDay),1,0)))","v":"Tuần 53/Ngày 364"},{"$f":"IF(WEEKDAY(CalendarDay)=Giá_trị_đầu_tuần,CONCATENATE(\"Tuần \",WEEKNUM(CalendarDay),\"/Ngày \",CalendarDay-DATE(YEAR(CalendarDay),1,0)),CONCATENATE(\"Ngày \",CalendarDay-DATE(YEAR(CalendarDay),1,0)))","v":"Ngày 365"}]